Workbook

Sheet تقرير حركة يومية
B1: الإدارة المالية
D2: تحـــليــل جـــــرد فــــــــرع شــــــكـــرى القــــــــــوتـــــــلى بــــــتـــــــاريــــــخ | O2: 2025-11-12
B3: بيـــــــــــــــــــان | C3: تسجيل الرصيد
B4: رصيد اول المدة | C4: نعم | G4: إجمالي وزن الكازرولات | I4: 0 | J4: =I4+(I4*0.1) -> 0 | M4: سيخ شاورما فراخ | P4: =((O4)-40/100*O4) -> 0
B5: رصيد اخر المدة | C5: نعم | M5: سيخ شاورما لحم | P5: =((O5)-25/100*O5) -> 0 | Z5: =SUBTOTAL(9,Z7:Z281) -> 441.63 | AB5: =SUBTOTAL(9,AB7:AB281) -> 527.4 | AC5: 1300.79 | AD5: 1119.925 | AE5: 337.395 | AF5: 0 | AG5: 0 | AH5: 202 | AJ5: =SUBTOTAL(9,AJ9:AJ283) -> 144735.24 | AK5: =SUBTOTAL(9,AK9:AK283) -> 2980.62 | AL5: =SUBTOTAL(9,AL9:AL283) -> 9641.3 | AM5: =SUBTOTAL(9,AM9:AM283) -> 157357.16
C7: =SUBTOTAL(9,C9:C283) -> 1464.69 | D7: =SUBTOTAL(9,D9:D283) -> 3507.51 | E7: =SUBTOTAL(9,E9:E283) -> 221.62 | F7: 2078.05 | G7: 15711.72 | H7: 2672.53 | I7: 15707.165 | J7: 213 | K7: 12.795 | L7: 0 | M7: 2664.29 | N7: 28683.767 | O7: 149328.3175 | P7: 157144.16 | Q7: 7815.8425 | R7: مـــلاحظــــــــــــــــة | U7: اجمالى المنصرف للفرع ( 6 ) | AB7: اجمالى وارد السيارات ( 2 ) | AJ7: شرايط المبيعات
A8: التصنيف | C8: رصيد اول المدة المخزن | D8: اجمالى الوارد | E8: تصنيع / تحويلات | F8: صافى رصيد المخزن | G8: رصيد اول المدة الفرع | H8: إجمالي المنصرف للفرع | I8: رصيد اخر المدة | J8: مردودات مبيعات | K8: مرتجعات للمصنع | L8: التسويات تبديل في المبيعات | M8: الفرق | N8: السعر | O8: قيمة المباع 10*11 | P8: قيمة داخل شريط الجرد | Q8: فرق القيمة | R8: عجز | S8: زيادة | U8: صرف 1 | V8: صرف 2 | W8: صرف 3 | X8: صرف 4 | Y8: صرف 5 | Z8: مرتجع للمخزن | AB8: سيارة 1 | AC8: سيارة 2 | AD8: سيارة 3 | AE8: سيارة 4 | AF8: سيارة 5 | AG8: سيارة 6 | AH8: وارد مشتريات خارجية | AJ8: عمومي | AK8: كافيتريا | AL8: دليفري | AM8: الإجمالي
A9: جاتوه | B9: قطعه جاتوه كلاسيك | C9: 203 | D9: =SUM(AB9:AH9) -> 899 | E9: 18 | F9: =C9+D9-E9-H9 -> 471 | G9: 0 | H9: =SUM(U9:Y9)-Z9 -> 613 | I9: 13 | M9: =H9+G9-I9-K9-L9 -> 600 | N9: 27 | O9: =N9*M9 -> 16200 | P9: =AM9-J9 -> 16254 | Q9: =P9-O9 -> 54 | R9: =IF(Q9<0,Q9/N9,"_") -> _ | S9: =IF(Q9>0,Q9/N9,"_") -> 2 | U9: 329 | V9: 42 | W9: 56 | X9: 386 | Z9: =18+18+35+21+34+42+5+27 -> 200 | AB9: 168 | AC9: 210 | AD9: 410 | AE9: =34+40+21+16 -> 111 | AJ9: =7128+8100 -> 15228 | AK9: 135 | AL9: =324+567 -> 891 | AM9: =SUM(AJ9:AL9) -> 16254
A10: جاتوه | B10: قطعه جاتوه موس | C10: 38 | D10: =SUM(AB10:AH10) -> 89 | E10: 1 | F10: 0 | G10: 0 | H10: 126 | I10: 6 | M10: =H10+G10-I10-K10-L10 -> 120 | N10: 39 | O10: 4680 | P10: 4641 | Q10: -39 | R10: =IF(Q10<0,Q10/N10,"_") -> -1 | S10: _ | U10: 18 | V10: 20 | W10: 89 | Z10: 1 | AD10: 89 | AJ10: 4641 | AM10: =SUM(AJ10:AL10) -> 4641
A11: جاتوه | B11: جاتوة سواريه | C11: 0 | D11: 1.66 | F11: 0 | G11: 0 | H11: 1.66 | I11: 0 | M11: 1.66 | N11: 315 | O11: 522.9 | P11: 521.3 | Q11: -1.6 | R11: -0.005079365079 | S11: _ | U11: 1.66 | AE11: 1.66 | AJ11: 521.3 | AM11: 521.3
A12: نواشف حلو | B12: اكلير / دنش | C12: 25 | D12: 99 | F12: 11 | G12: 0 | H12: 113 | I12: 0 | M12: 113 | N12: 27 | O12: 3051 | P12: 3024 | Q12: -27 | R12: -1 | S12: _ | U12: 85 | V12: 10 | W12: 29 | Z12: 11 | AC12: 70 | AD12: 29 | AJ12: 2700 | AK12: 27 | AL12: 297 | AM12: 3024
A13: نواشف حلو | B13: ملفاى | C13: 0 | D13: 28 | E13: 12 | F13: 0 | G13: 0 | H13: 16 | I13: 0 | M13: 16 | N13: 30 | O13: 480 | P13: 480 | Q13: 0 | R13: _ | S13: _ | U13: 16 | V13: 12 | Z13: 12 | AC13: 28 | AJ13: 480 | AM13: 480
A14: نواشف حلو | B14: شوهات | C14: 0 | D14: 18 | E14: 6 | F14: 0 | G14: 0 | H14: 12 | I14: 0 | M14: 12 | N14: 30 | O14: 360 | P14: 360 | Q14: 0 | R14: _ | S14: _ | U14: 12 | V14: 6 | Z14: 6 | AD14: 18 | AJ14: 360 | AM14: 360
A15: نواشف حلو | B15: كب جار بوبس | C15: 0 | D15: 0 | F15: 0 | G15: 0 | H15: 0 | M15: 0 | N15: 40 | O15: 0 | P15: 0 | Q15: 0 | R15: _ | S15: _ | AM15: 0
B16: تورته اوستيك موس / فادج | C16: 0 | D16: 0 | F16: 0 | G16: 0 | H16: 0 | M16: 0 | N16: 480 | O16: 0 | P16: 0 | Q16: 0 | R16: _ | S16: _ | AM16: 0
A17: تورت | B17: تورتة ميني موس 210 | C17: 0 | D17: 0 | F17: 0 | G17: 0 | H17: 0 | M17: 0 | N17: 210 | O17: 0 | P17: 0 | Q17: 0 | R17: _ | S17: _ | AM17: 0
A18: تورت | B18: تورتة مينى شوكلت كيك 320 | C18: 0 | D18: 0 | F18: 0 | G18: 0 | H18: 0 | M18: 0 | N18: 320 | O18: 0 | P18: 0 | Q18: 0 | R18: _ | S18: _ | AM18: 0
A19: تورت | B19: تورته دائري شوكلت كاملة | C19: 0 | D19: 2 | F19: 0 | G19: 0 | H19: 2 | M19: 2 | N19: 400 | O19: 800 | P19: 0 | Q19: -800 | R19: -2 | S19: _ | V19: 2 | AE19: 2 | AM19: 0
A20: تورت | B20: تورته مربع صغير310 | C20: 2 | D20: 11 | F20: 6 | G20: 0 | H20: 7 | I20: 4 | M20: 3 | N20: 310 | O20: 930 | P20: 930 | Q20: 0 | R20: _ | S20: _ | V20: 7 | AC20: 11 | AJ20: 930 | AM20: 930
A21: تورت | B21: تورتة هاف دائرى / فاكهة كاملة 380 | C21: 0 | D21: 27 | F21: 6 | G21: 0 | H21: =SUM(U21:Y21)-Z21 -> 21 | I21: 3 | M21: 18 | N21: 380 | O21: 6840 | P21: 6840 | Q21: 0 | R21: _ | S21: _ | U21: 7 | V21: 14 | AC21: 9 | AD21: 9 | AE21: 9 | AJ21: 6460 | AL21: 380 | AM21: 6840
A22: تورت | B22: تورته فور سيزون 440 | C22: 0 | D22: 4 | F22: 0 | G22: 0 | H22: 4 | I22: 1 | M22: 3 | N22: 440 | O22: 1320 | P22: 1320 | Q22: 0 | R22: _ | S22: _ | U22: 3 | V22: 1 | AC22: 4 | AJ22: 1320 | AM22: 1320
A23: تورت | B23: تورته مربع كبير 435 | C23: 0 | D23: 8 | F23: 2 | G23: 0 | H23: 6 | I23: 2 | M23: 4 | N23: 435 | O23: 1740 | P23: 1740 | Q23: 0 | R23: _ | S23: _ | U23: 3 | V23: 3 | AC23: 4 | AE23: 4 | AJ23: 1740 | AM23: 1740
A24: تورت | B24: تورته هاف كيت كات / روشيه / ويفر 430 | C24: 0 | D24: 11 | F24: 1 | G24: 0 | H24: 10 | I24: 1 | M24: 9 | N24: 430 | O24: 3870 | P24: 3870 | Q24: 0 | R24: _ | S24: _ | U24: 4 | V24: =2+4 -> 6 | AC24: 5 | AD24: 4 | AE24: 2 | AJ24: 3870 | AM24: 3870
A25: تورت | B25: تورته قلب كبير 445 | C25: 0 | D25: 11 | F25: 2 | G25: 0 | H25: 9 | I25: 1 | M25: 8 | N25: 445 | O25: 3560 | P25: 3560 | Q25: 0 | R25: _ | S25: _ | U25: 2 | V25: 7 | AC25: 2 | AE25: 9 | AJ25: 3115 | AL25: 445 | AM25: 3560
A26: تورت | B26: تورته فونتانا 480 | C26: 0 | D26: 0 | F26: 0 | G26: 0 | H26: 0 | M26: 0 | N26: 480 | O26: 0 | P26: 0 | Q26: 0 | R26: _ | S26: _ | AM26: 0
B27: تورته دويــــــتـــــــو 30*30 (500) | C27: 0 | D27: 0 | F27: 0 | G27: 0 | H27: 0 | M27: 0 | N27: 500 | O27: 0 | P27: 0 | Q27: 0 | R27: _ | S27: _ | AM27: 0
A28: تورت | B28: تورتة هاف 20*40 (550) | C28: 0 | D28: 0 | F28: 0 | G28: 0 | H28: 0 | M28: 0 | N28: 600 | O28: 0 | P28: 0 | Q28: 0 | R28: _ | S28: _ | AM28: 0
A29: تورت ايس | B29: تورته ايس سوسرول 245 | C29: 0 | D29: 3 | F29: 0 | G29: 4 | H29: 3 | I29: 6 | M29: 1 | N29: 245 | O29: 245 | P29: 244 | Q29: -1 | R29: -0.004081632653 | S29: _ | U29: 3 | AD29: 3 | AL29: 244 | AM29: 244
A30: تورت ايس | B30: تورته ايس كاساتا 315 | C30: 0 | D30: 3 | F30: 0 | G30: 4 | H30: 3 | I30: 6 | M30: 1 | N30: 315 | O30: 315 | P30: 315 | Q30: 0 | R30: =IF(Q30<0,Q30/N30,"_") -> _ | S30: _ | U30: 3 | AD30: 3 | AJ30: 315 | AM30: 315
A31: كبات | B31: كب بوبس ( دبل سوفت - ديو ) | C31: 25 | D31: 155 | F31: 0 | G31: 24 | H31: 180 | I31: 0 | J31: 33 | K31: 3 | M31: 201 | N31: 33 | O31: 6633 | P31: 6600 | Q31: -33 | R31: =IF(Q31<0,Q31/N31,"_") -> -1 | S31: _ | U31: 120 | V31: 25 | W31: 35 | AB31: 39 | AC31: 81 | AD31: 35 | AJ31: 6237 | AL31: 396 | AM31: 6633
A32: كبات | B32: كب مينى ديسباسيتو | C32: 0 | D32: 10 | F32: 0 | G32: 7 | H32: 10 | I32: 2 | M32: 15 | N32: 33 | O32: 495 | P32: 495 | Q32: 0 | R32: _ | S32: _ | U32: 10 | AB32: 10 | AJ32: 462 | AK32: 33 | AM32: 495
A33: كبات | B33: كب شوكلت كيك | C33: 30 | D33: 52 | F33: 0 | G33: 0 | H33: 82 | I33: 0 | M33: 82 | N33: 28 | O33: 2296 | P33: 2296 | Q33: 0 | R33: _ | S33: _ | U33: 33 | V33: 30 | W33: 19 | AC33: 33 | AD33: 19 | AJ33: 2296 | AM33: 2296
A34: كبات | B34: ترايفل | C34: 10 | D34: 93 | E34: 20 | F34: 0 | G34: 0 | H34: 83 | I34: 0 | M34: 83 | N34: 15 | O34: 1245 | P34: 1245 | Q34: 0 | R34: _ | S34: _ | U34: 93 | V34: 10 | Z34: 20 | AE34: =13+80 -> 93 | AJ34: 1245 | AM34: 1245
A35: كبات | B35: كب اساتوك دبي | C35: 0 | D35: 5 | F35: 0 | G35: 0 | H35: 5 | I35: 0 | M35: 5 | N35: 35 | O35: 175 | P35: 175 | Q35: 0 | R35: _ | S35: _ | U35: 5 | AD35: 5 | AJ35: 175 | AM35: 175
A36: كبات | B36: ديسباسيتو | C36: 5 | D36: 10 | F36: 0 | G36: 2 | H36: 15 | I36: 0 | M36: 17 | N36: 80 | O36: 1360 | P36: 1360 | Q36: 0 | R36: _ | S36: _ | U36: 10 | V36: 5 | AB36: 10 | AJ36: 960 | AK36: 400 | AM36: 1360
A37: كبات | B37: مولتن كيك | C37: 5 | D37: 10 | F37: 0 | G37: 0 | H37: 15 | I37: 6 | M37: 9 | N37: 65 | O37: 585 | P37: 650 | Q37: 65 | R37: _ | S37: 1 | U37: 15 | AC37: 10 | AJ37: 650 | AM37: 650
A38: كبات | B38: باباز | C38: 0 | D38: 5 | F38: 0 | G38: 0 | H38: 5 | I38: 0 | M38: 5 | N38: 30 | O38: 150 | P38: 150 | Q38: 0 | R38: _ | S38: _ | U38: 5 | AD38: 5 | AJ38: 150 | AM38: 150
A39: كبات | B39: كوكتيل | C39: 0 | D39: 0 | F39: 0 | G39: 0 | H39: 0 | M39: 0 | N39: 25 | O39: 0 | P39: 0 | Q39: 0 | R39: _ | S39: =IF(Q39>0,Q39/N39,"_") -> _ | AM39: 0
A40: كبات | B40: كب قشطوطة صغير | C40: 0 | D40: 35 | F40: 0 | G40: 3 | H40: 35 | I40: 0 | M40: 38 | N40: 30 | O40: 1140 | P40: 1200 | Q40: 60 | R40: _ | S40: 2 | U40: 35 | AD40: 35 | AJ40: 1170 | AL40: 30 | AM40: 1200
B41: كب قشطوطة كاندي /بسبوسه /ليزي كيك | C41: 0 | D41: 3 | F41: 0 | G41: 3 | H41: 3 | I41: 2 | M41: 4 | N41: 35 | O41: 140 | P41: 140 | Q41: 0 | R41: _ | S41: _ | U41: 3 | AD41: 3 | AJ41: 35 | AL41: 105 | AM41: 140
A42: البان | B42: ام علي ساده | C42: 0 | D42: 11 | F42: 0 | G42: 0 | H42: 11 | I42: 1 | M42: 10 | N42: 25 | O42: 250 | P42: 250 | Q42: 0 | R42: _ | S42: _ | U42: 11 | AC42: 11 | AJ42: 250 | AM42: 250
A43: البان | B43: ارز بلبن اسبيشيال عفروتو | C43: 0 | D43: 0 | E43: -5 | F43: 0 | G43: 2 | H43: 5 | I43: 6 | M43: 1 | N43: 75 | O43: 75 | P43: 75 | Q43: 0 | R43: _ | S43: _ | U43: 5 | AL43: 75 | AM43: 75
A44: البان | B44: ارز بلبن اسبشيال مكسرات وقشطة | C44: 0 | D44: 0 | E44: -30 | F44: 0 | G44: 0 | H44: 30 | I44: 4 | M44: 26 | N44: 55 | O44: 1430 | P44: 1430 | Q44: 0 | R44: _ | S44: _ | U44: 30 | AJ44: 880 | AL44: 550 | AM44: 1430
A45: البان | B45: ارز بلبن اسبيشيال اوريو | C45: 0 | D45: 0 | E45: -10 | F45: 0 | G45: 2 | H45: 10 | I45: 2 | M45: 10 | N45: 55 | O45: 550 | P45: 550 | Q45: 0 | R45: _ | S45: _ | U45: 10 | AJ45: 550 | AM45: 550
A46: البان | B46: ارز بلبن اسبيشيال قراصيا | C46: 0 | D46: 0 | F46: 0 | G46: 0 | H46: 0 | M46: 0 | N46: 60 | O46: 0 | P46: 0 | Q46: 0 | R46: _ | S46: _ | AM46: 0
A47: البان | B47: ارز بلبن اسبيشيال لوتس | C47: 2 | D47: 0 | E47: -10 | F47: 0 | G47: 0 | H47: 12 | I47: 6 | M47: 6 | N47: 55 | O47: 330 | P47: 330 | Q47: 0 | R47: _ | S47: _ | U47: 10 | V47: 2 | AJ47: 330 | AM47: 330
A48: البان | B48: ارز بلبن اسبيشيال نوتيلا | C48: 2 | D48: 0 | E48: -10 | F48: 0 | G48: 0 | H48: 12 | I48: 2 | M48: 10 | N48: 55 | O48: 550 | P48: 550 | Q48: 0 | R48: _ | S48: _ | U48: 10 | V48: 2 | AJ48: 550 | AM48: 550
A49: البان | B49: ارز بلبن بسابيسو | C49: 0 | D49: 0 | F49: 0 | G49: 0 | H49: 0 | M49: 0 | N49: 65 | O49: 0 | P49: 0 | Q49: 0 | R49: _ | S49: _ | AM49: 0
A50: البان | B50: ارز بلبن خدود الست | C50: 0 | D50: 0 | F50: 0 | G50: 0 | H50: 0 | M50: 0 | N50: 60 | O50: 0 | P50: 0 | Q50: 0 | R50: _ | S50: _ | AM50: 0
A51: البان | B51: ارز بلبن ساده | C51: 0 | D51: 120 | E51: 85 | F51: 0 | G51: 0 | H51: 35 | I51: 5 | M51: 30 | N51: 25 | O51: 750 | P51: 750 | Q51: 0 | R51: _ | S51: _ | U51: 15 | V51: 20 | AB51: 120 | AJ51: 625 | AK51: 50 | AL51: 75 | AM51: 750
A52: البان | B52: ارز بلبن مكس الصياد | C52: 0 | D52: 0 | E52: -10 | F52: 0 | G52: 0 | H52: 10 | I52: 0 | M52: 10 | N52: 60 | O52: 600 | P52: 600 | Q52: 0 | R52: _ | S52: _ | U52: 10 | AJ52: 540 | AK52: 60 | AM52: 600
A53: البان | B53: ارز اسبيشيال كنافة مانجو | C53: 0 | D53: 0 | F53: 0 | G53: 0 | H53: 0 | M53: 0 | N53: 50 | O53: 0 | P53: 0 | Q53: 0 | R53: _ | S53: _ | AM53: 0
A54: البان | B54: ارز قنبلة فراوله | C54: 0 | D54: 0 | E54: -10 | F54: 0 | G54: 0 | H54: 10 | I54: 0 | M54: 10 | N54: 65 | O54: 650 | P54: 650 | Q54: 0 | R54: _ | S54: _ | U54: 10 | AJ54: 585 | AL54: 65 | AM54: 650
A55: البان | B55: ارز قنبلة موز وكراميل | C55: 0 | D55: 0 | F55: 0 | G55: 0 | H55: 0 | M55: 0 | N55: 60 | O55: 0 | P55: 0 | Q55: 0 | R55: _ | S55: _ | AM55: 0
A56: قشطوطة | B56: ارز قشطوطة سادة | C56: 0 | D56: 45 | E56: 45 | F56: 0 | G56: 0 | H56: 0 | M56: 0 | N56: 1 | O56: 0 | P56: 0 | Q56: 0 | R56: _ | S56: _ | AB56: 45 | AM56: 0
A57: قشطوطة | B57: قشطوطة فراولة | C57: 0 | D57: 0 | F57: 0 | G57: 0 | H57: 0 | M57: 0 | N57: 55 | O57: 0 | P57: 0 | Q57: 0 | R57: _ | S57: _ | AM57: 0
A58: قشطوطة | B58: قشطوطة كراميل | C58: 0 | D58: 0 | F58: 0 | G58: 0 | H58: 0 | M58: 0 | N58: 50 | O58: 0 | P58: 0 | Q58: 0 | R58: _ | S58: _ | AM58: 0
A59: قشطوطة | B59: قشطوطه لوتس | C59: 2 | D59: 0 | E59: -10 | F59: 0 | G59: 0 | H59: 12 | I59: 4 | M59: 8 | N59: 60 | O59: 480 | P59: 480 | Q59: 0 | R59: _ | S59: _ | U59: 10 | V59: 2 | AJ59: 480 | AM59: 480
A60: قشطوطة | B60: قشطوطه مانجو / فاكهة | C60: 4 | D60: 0 | E60: -15 | F60: 0 | G60: 0 | H60: 19 | I60: 3 | M60: 16 | N60: 60 | O60: 960 | P60: 960 | Q60: 0 | R60: _ | S60: _ | U60: 15 | V60: 4 | AJ60: 960 | AM60: 960
A61: قشطوطة | B61: قشطوطه نوتيلا | C61: 5 | D61: 0 | E61: -20 | F61: 0 | G61: 2 | H61: 25 | I61: 10 | J61: 60 | M61: 17 | N61: 60 | O61: 1020 | P61: 1020 | Q61: 0 | R61: _ | S61: _ | U61: 20 | V61: 5 | AJ61: =480+600 -> 1080 | AM61: 1080
A62: قشطوطة | B62: قشطوطة دندو | C62: 0 | D62: 0 | F62: 0 | G62: 0 | H62: 0 | M62: 0 | N62: 60 | O62: 0 | P62: 0 | Q62: 0 | R62: _ | S62: _ | AM62: 0
A63: قشطوطة | B63: قشطوطة كراميل صواني | C63: 0 | D63: 0 | F63: 0 | G63: 0 | H63: 0 | M63: 0 | N63: 1 | O63: 0 | P63: 0 | Q63: 0 | R63: _ | S63: _ | AM63: 0
A64: قشطوطة | B64: قشطوطة كريمة صواني | C64: 0 | D64: 45 | E64: 45 | F64: 0 | G64: 0 | H64: 0 | M64: 0 | N64: 1 | O64: 0 | P64: 0 | Q64: 0 | R64: _ | S64: _ | AC64: 45 | AM64: 0
A65: ايس كريم | B65: ايس كريم كافيتريا - خام عادي | C65: 0 | D65: 0 | E65: =-14.1+10.83 -> -3.27 | F65: 0 | G65: 0 | H65: 3.27 | I65: 0 | M65: 3.27 | N65: 220 | O65: 719.4 | P65: 720 | Q65: 0.6 | R65: _ | S65: 0.002727272727 | U65: 14.1 | Z65: 10.83 | AK65: =60+3*60+5*60+80+60+40 -> 720 | AM65: 720
A66: ايس كريم | B66: ايس كريم كافيتريا - خام اسبيشيال | C66: 0 | D66: 0 | F66: 0 | G66: 0 | H66: 0 | M66: 0 | N66: 280 | O66: 0 | P66: 0 | Q66: 0 | R66: _ | S66: _ | AM66: 0
A67: ايس كريم | B67: ايس كريم - خام عادي 180 | C67: 0 | D67: 71.95 | E67: =-185.95+14.1-10.83 -> -182.68 | F67: 0 | G67: 125.45 | H67: 254.63 | I67: 175.75 | M67: 204.33 | N67: 205 | O67: 41887.65 | P67: 42500 | Q67: 612.35 | R67: =IF(Q67<0,Q67/N67,"_") -> _ | S67: 2.987073171 | U67: 57.85 | V67: 185.95 | W67: 10.83 | AC67: 68.55 | AD67: 3.4 | AJ67: =17940+2320+720+21200-33*20-4*100 -> 41120 | AL67: =80+13*100 -> 1380 | AM67: 42500
A68: ايس كريم | B68: ايس كريم - خام اسبيشيال 250 | C68: 0 | D68: 19.5 | F68: 0 | G68: 6 | H68: 19.5 | I68: 7.5 | M68: 18 | N68: 308 | O68: 5544 | P68: 5208 | Q68: -336 | R68: =IF(Q68<0,Q68/N68,"_") -> -1.090909091 | S68: _ | U68: 12.2 | V68: 7.3 | AC68: 12.2 | AD68: 7.3 | AJ68: =33*28+4*140+1036+13*140 -> 4340 | AK68: =6*28 -> 168 | AL68: =5*140 -> 700 | AM68: 5208
A69: ايس كريم | B69: كزرولة لبن ص 5.800 | C69: 0 | D69: 30.1 | E69: 30.1 | F69: 0 | G69: 0 | H69: 0 | M69: 0 | N69: 1 | O69: 0 | P69: 0 | Q69: 0 | R69: _ | S69: _ | AB69: 30.1 | AM69: 0
A70: ايس كريم | B70: كزرولة لبن ك 3.600 | C70: 0 | D70: 0 | F70: 0 | G70: 0 | H70: 0 | M70: 0 | N70: 1 | O70: 0 | P70: 0 | Q70: 0 | R70: _ | S70: _ | AM70: 0
A71: ايس كريم | B71: كزرولة لبن ك 6.300 | C71: 0 | D71: 0 | F71: 0 | G71: 0 | H71: 0 | M71: 0 | N71: 1 | O71: 0 | P71: 0 | Q71: 0 | R71: _ | S71: _ | AM71: 0
A72: ايس كريم | B72: كزرولة لبن ك 6.600 | C72: 0 | D72: 155.85 | E72: 155.85 | F72: 0 | G72: 0 | H72: 0 | M72: 0 | N72: 1 | O72: 0 | P72: 0 | Q72: 0 | R72: _ | S72: _ | AB72: 40.45 | AC72: 37.95 | AD72: 38.7 | AE72: 38.75 | AM72: 0
A73: مكسرات | B73: مكسرات أيس | C73: 83 | D73: 50 | E73: 48 | F73: =C73+D73-E73-H73 -> 85 | G73: 0 | H73: 0 | M73: 0 | N73: 1 | O73: 0 | P73: 0 | Q73: 0 | R73: _ | S73: =IF(Q73>0,Q73/N73,"_") -> _ | AC73: 50 | AM73: 0
A74: فطير | B74: بسكوت اوريو مطحون فطير | C74: 0 | D74: =SUM(AB74:AH74) -> 0 | F74: 0 | G74: 0.5 | H74: =SUM(U74:Y74)-Z74 -> 0 | I74: 0.2 | M74: =H74+G74-I74-K74-L74 -> 0.3 | N74: 1 | O74: =N74*M74 -> 0.3 | P74: =AM74-J74 -> 0 | Q74: =P74-O74 -> -0.3 | R74: =IF(Q74<0,Q74/N74,"_") -> -0.3 | S74: _ | AM74: =SUM(AJ74:AL74) -> 0
A75: فطير | B75: بسكوت لوتس مطحون فطير | C75: 0 | D75: 0 | F75: 0 | G75: 0.25 | H75: 0 | I75: 0 | M75: 0.25 | N75: 1 | O75: 0.25 | P75: 0.85 | Q75: 0.6 | R75: =IF(Q75<0,Q75/N75,"_") -> _ | S75: 0.6 | AJ75: =16*0.05 -> 0.8 | AL75: 0.05 | AM75: 0.85
A76: فطير | B76: صوص شوكلت وايت فطير | C76: 0 | D76: 0 | F76: 0 | G76: 2.5 | H76: 0 | I76: 2.4 | M76: 0.1 | N76: 1 | O76: 0.1 | P76: 0 | Q76: -0.1 | R76: -0.1 | S76: _ | AM76: 0
A77: فطير | B77: صوص نوتيلا فطير | C77: 0 | D77: 0 | E77: -2.5 | F77: 0 | G77: 1 | H77: 2.5 | I77: 2.3 | M77: 1.2 | N77: 1 | O77: 1.2 | P77: 2.35 | Q77: 1.15 | R77: _ | S77: 1.15 | U77: 2.5 | AJ77: =44*0.05 -> 2.2 | AL77: 0.15 | AM77: 2.35
A78: فطير | B78: صوص لوتس فطير | C78: 0 | D78: 0 | F78: 0 | G78: 3 | H78: 0 | I78: 2 | M78: 1 | N78: 1 | O78: 1 | P78: 0.85 | Q78: -0.15 | R78: -0.15 | S78: _ | AJ78: =16*0.05 -> 0.8 | AL78: 0.05 | AM78: 0.85
A79: فطير | B79: علب مكسرات فطير | C79: 0 | D79: 0 | F79: 0 | G79: 9 | H79: 0 | I79: 4 | L79: -1 | M79: 6 | N79: 25 | O79: 150 | P79: 150 | Q79: 0 | R79: =IF(Q79<0,Q79/N79,"_") -> _ | S79: _ | AJ79: 75 | AK79: 75 | AM79: 150
A80: مكسرات | B80: علب مكسرات ارز فرع | C80: 72 | D80: 45 | E80: 30 | F80: 87 | G80: 2 | H80: 0 | I80: 0 | L80: 1 | M80: 1 | N80: 25 | O80: 25 | P80: 25 | Q80: 0 | R80: _ | S80: _ | AC80: 45 | AL80: 25 | AM80: 25
B81: علب مكسرات بليلة | C81: 0 | D81: 0 | F81: 0 | G81: 0 | H81: 0 | M81: 0 | N81: 1 | O81: 0 | P81: 0 | Q81: 0 | R81: _ | S81: _ | AM81: 0
A82: مكسرات | B82: كيس مكسرات بليلة | C82: 0 | D82: 0 | F82: 0 | G82: 0 | H82: 0 | M82: 0 | N82: 1 | O82: 0 | P82: 0 | Q82: 0 | R82: _ | S82: _ | AM82: 0
A83: شرقي | B83: مشبك دمياطي | C83: 0 | D83: 5 | F83: 0 | G83: 7 | H83: 5 | I83: 11 | M83: 1 | N83: 60 | O83: 60 | P83: 60 | Q83: 0 | R83: _ | S83: _ | U83: 5 | AB83: 5 | AJ83: 60 | AM83: 60
A84: اطباق مشكله | B84: ساليزونات مشكله | C84: 0 | D84: 1.9 | F84: 0 | G84: 1.27 | H84: 1.9 | I84: 1.165 | M84: 2.005 | N84: 190 | O84: 380.95 | P84: 391.4 | Q84: 10.45 | R84: _ | S84: 0.055 | U84: 1.9 | AD84: 1.9 | AJ84: 319.2 | AL84: 72.2 | AM84: 391.4
B85: اسبيشيال لوكس 1/2 كيلو | C85: 0 | D85: 0 | F85: 0 | G85: 0 | H85: 0 | M85: 0 | N85: 137.5 | O85: 0 | P85: 0 | Q85: 0 | R85: _ | S85: _ | AM85: 0
A86: اطباق مشكله | B86: اسبيشيال لوكس | C86: 0 | D86: 13.685 | F86: 0 | G86: 6.255 | H86: 13.685 | I86: 5.88 | M86: 14.06 | N86: 290 | O86: 4077.4 | P86: 4083.2 | Q86: 5.8 | R86: _ | S86: 0.02 | U86: 11.55 | V86: 2.135 | AD86: 11.55 | AE86: 2.135 | AJ86: 4083.2 | AM86: 4083.2
B87: مشكل شعبيات | C87: 0 | D87: 0 | F87: 0 | G87: 0 | H87: 0 | M87: 0 | N87: 150 | O87: 0 | P87: 0 | Q87: 0 | R87: _ | S87: _ | AM87: 0
A88: كنافات ومكرونه | B88: كنافه كريمه | C88: 0 | D88: 2.77 | F88: 0 | G88: 0 | H88: 2.77 | I88: 0 | M88: 2.77 | N88: 135 | O88: 373.95 | P88: 372.6 | Q88: -1.35 | R88: -0.01 | S88: _ | U88: 2.77 | AC88: 2.77 | AJ88: 372.6 | AM88: 372.6
A89: كنافات ومكرونه | B89: كنافه مكسرات | C89: 0 | D89: 2 | F89: 0 | G89: 0.51 | H89: 2 | I89: 0.67 | M89: 1.84 | N89: 185 | O89: 340.4 | P89: 333 | Q89: -7.4 | R89: -0.04 | S89: _ | U89: 2 | AC89: 2 | AJ89: 333 | AM89: 333
A90: كنافات ومكرونه | B90: لينزا | C90: 0 | D90: 2.6 | F90: 0 | G90: 0 | H90: 2.6 | I90: 1.85 | M90: 0.75 | N90: 175 | O90: 131.25 | P90: 105.9 | Q90: -25.35 | R90: -0.1448571429 | S90: _ | U90: 2.6 | AD90: 2.6 | AJ90: 105.9 | AM90: 105.9
A91: كنافات ومكرونه | B91: مكرونه | C91: 0 | D91: 2.7 | F91: 0 | G91: 0 | H91: 2.7 | I91: 0 | M91: 2.7 | N91: 130 | O91: 351 | P91: 334.7 | Q91: -16.3 | R91: -0.1253846154 | S91: _ | U91: 2.7 | AD91: 2.7 | AJ91: 270.4 | AL91: 64.3 | AM91: 334.7
A92: بسبـــــــــوســات | B92: بسبوسه ساده | C92: 0 | D92: 8.64 | E92: 0.975 | F92: 0 | G92: 0.51 | H92: 7.665 | I92: 0 | M92: 8.175 | N92: 150 | O92: 1226.25 | P92: 1250.3 | Q92: 24.05 | R92: _ | S92: 0.1603333333 | U92: 8.27 | Z92: 0.605 | AC92: 8.64 | AJ92: 1169.3 | AL92: 81 | AM92: 1250.3
A93: موسم رمضان | B93: رواني سادة بالعسل | C93: 0 | D93: 0 | F93: 0 | G93: 0 | H93: 0 | M93: 0 | N93: 180 | O93: 0 | P93: 0 | Q93: 0 | R93: _ | S93: _ | AM93: 0
A94: بسبـــــــــوســات | B94: هريسه حشو مكسرات | C94: 0 | D94: 3.4 | F94: 0 | G94: 0.93 | H94: 3.4 | I94: 0.68 | M94: 3.65 | N94: 150 | O94: 547.5 | P94: 568.5 | Q94: 21 | R94: _ | S94: 0.14 | U94: 3.4 | AC94: 3.4 | AJ94: 568.5 | AM94: 568.5
A95: بسبـــــــــوســات | B95: بسبوسه مكسرات | C95: 0 | D95: 13.97 | F95: 0 | G95: 2.88 | H95: 13.97 | I95: 0 | M95: 16.85 | N95: 185 | O95: 3117.25 | P95: 3144.9 | Q95: 27.65 | R95: _ | S95: 0.1494594595 | U95: 13.97 | AC95: 13.97 | AJ95: 2674.1 | AL95: 470.8 | AM95: 3144.9
A96: بسبـــــــــوســات | B96: بسبوسه فستق | C96: 0 | D96: 0 | F96: 0 | G96: 0 | H96: 0 | M96: 0 | N96: 280 | O96: 0 | P96: 0 | Q96: 0 | R96: _ | S96: _ | AM96: 0
A97: قشطات | B97: قشطات / بقلاوة كريمة | C97: 5.74 | D97: 35.63 | F97: 3.45 | G97: 2.92 | H97: 37.92 | I97: =0.78+2.535+0.36 -> 3.675 | K97: 0.195 | M97: 36.97 | N97: 230 | O97: 8503.1 | P97: 8496.2 | Q97: -6.9 | R97: -0.03 | S97: _ | U97: 15.18 | V97: 20.49 | W97: 5.7 | Z97: =6.75-3.3 -> 3.45 | AC97: 14.75 | AD97: 15.18 | AE97: =1.6+1.4+2.7 -> 5.7 | AJ97: 8143.1 | AL97: 353.1 | AM97: 8496.2
A98: زيوت قشطات | B98: بلح شام قشطه /فواكهه | C98: 0 | D98: 0.9 | F98: 0 | G98: 0 | H98: 0.9 | I98: 0 | M98: 0.9 | N98: 230 | O98: 207 | P98: 192.1 | Q98: -14.9 | R98: -0.0647826087 | S98: _ | U98: 0.9 | AD98: 0.9 | AJ98: 192.1 | AM98: 192.1
A99: موسم رمضان | B99: قطايف قشطة | C99: 0 | D99: 0 | F99: 0 | G99: 0 | H99: 0 | M99: 0 | N99: 210 | O99: 0 | P99: 0 | Q99: 0 | R99: _ | S99: _ | AM99: 0
A100: بقـــــلاوات | B100: بقلاوة مكسرات | C100: 0 | D100: 2.78 | F100: 0 | G100: 1.095 | H100: 2.78 | I100: 1.185 | M100: 2.69 | N100: 325 | O100: 874.25 | P100: 919.7 | Q100: 45.45 | R100: _ | S100: 0.1398461538 | U100: 2.78 | AC100: 2.78 | AJ100: 919.7 | AM100: 919.7
A101: سرافيس كنافه | B101: اساور تاج مكسرات | C101: 0 | D101: 0 | F101: 0 | G101: 0 | H101: 0 | M101: 0 | N101: 370 | O101: 0 | P101: 0 | Q101: 0 | R101: _ | S101: _ | AM101: 0
A102: سرافيس كنافه | B102: كنافه سيخ بندق | C102: 0 | D102: 0 | F102: 0 | G102: 0 | H102: 0 | M102: 0 | N102: 510 | O102: 0 | P102: 0 | Q102: 0 | R102: _ | S102: _ | AM102: 0
A103: سرافيس كنافه | B103: كنافه سيخ ساده | C103: 0 | D103: 1.28 | E103: 0.145 | F103: 0 | G103: 0 | H103: 1.135 | I103: 1.17 | M103: -0.035 | N103: 200 | O103: -7 | P103: 51 | Q103: 58 | R103: _ | S103: 0.29 | U103: 1.28 | Z103: 0.145 | AC103: 1.28 | AJ103: 51 | AM103: 51
A104: سرافيس كنافه | B104: كنافه عجوه | C104: 0 | D104: 0 | F104: 0 | G104: 0 | H104: 0 | M104: 0 | N104: 230 | O104: 0 | P104: 0 | Q104: 0 | R104: _ | S104: _ | AM104: 0
A105: سرافيس كنافه | B105: كنافه بورمه فستق | C105: 0 | D105: 0 | F105: 0 | G105: 0 | H105: 0 | M105: 0 | N105: 650 | O105: 0 | P105: 0 | Q105: 0 | R105: _ | S105: _ | AM105: 0
A106: سرافيس كنافه | B106: كنافه بورمه بندق | C106: 0 | D106: 0 | F106: 0 | G106: 0 | H106: 0 | M106: 0 | N106: 500 | O106: 0 | P106: 0 | Q106: 0 | R106: _ | S106: _ | AM106: 0
A107: سرافيس كنافه | B107: كنافه دمياطي | C107: 0 | D107: 0 | F107: 0 | G107: 0 | H107: 0 | M107: 0 | N107: 420 | O107: 0 | P107: 0 | Q107: 0 | R107: _ | S107: _ | AM107: 0
A108: رفـــايــــــــع | B108: رموش / هريسه | C108: 0 | D108: 2 | F108: 0 | G108: 1.81 | H108: 2 | I108: 2.5 | M108: 1.31 | N108: 200 | O108: 262 | P108: 175 | Q108: -87 | R108: -0.435 | S108: _ | U108: 1 | V108: 1 | AC108: 1 | AD108: 1 | AJ108: 175 | AM108: 175
A109: رفـــايــــــــع | B109: كـنـافـة تـمـر سـعـودي | C109: 0 | D109: 0 | F109: 0 | G109: 0 | H109: 0 | M109: 0 | N109: 170 | O109: 0 | P109: 0 | Q109: 0 | R109: _ | S109: _ | AM109: 0
A110: فـــــــــــورم | B110: رطب شو | C110: 0 | D110: 5 | F110: 0 | G110: 3 | H110: 5 | I110: 3 | M110: 5 | N110: 70 | O110: 350 | P110: 350 | Q110: 0 | R110: _ | S110: _ | U110: 5 | AE110: 5 | AJ110: 280 | AL110: 70 | AM110: 350
A111: فـــــــــــورم | B111: فورمه بسبوسه ساده | C111: 0 | D111: 2 | F111: 0 | G111: 0 | H111: 2 | I111: 0 | M111: 2 | N111: 130 | O111: 260 | P111: 260 | Q111: 0 | R111: _ | S111: _ | U111: 2 | AD111: 2 | AJ111: 130 | AL111: 130 | AM111: 260
A112: فـــــــــــورم | B112: فورمه بسبوسه مكسرات | C112: 0 | D112: 2 | F112: 0 | G112: 0 | H112: 2 | I112: 0 | M112: 2 | N112: 155 | O112: 310 | P112: 310 | Q112: 0 | R112: _ | S112: _ | U112: 2 | AD112: 2 | AJ112: 310 | AM112: 310
A113: فـــــــــــورم | B113: فورمه كنافه كريمه | C113: 0 | D113: 2 | F113: 0 | G113: 0 | H113: 2 | I113: 0 | M113: 2 | N113: 135 | O113: 270 | P113: 270 | Q113: 0 | R113: _ | S113: _ | U113: 2 | AC113: 2 | AJ113: 135 | AL113: 135 | AM113: 270
A114: فـــــــــــورم | B114: فورمه كنافه مكسرات | C114: 0 | D114: 2 | F114: 0 | G114: 1 | H114: 2 | I114: 0 | M114: 3 | N114: 185 | O114: 555 | P114: 555 | Q114: 0 | R114: _ | S114: _ | U114: 2 | AC114: 2 | AJ114: 555 | AM114: 555
B115: مشكل مقليات | C115: 0 | D115: 0 | F115: 0 | G115: 0 | H115: 0 | M115: 0 | N115: 170 | O115: 0 | P115: 0 | Q115: 0 | R115: _ | S115: _ | AM115: 0
A116: زيــــــــــوت | B116: صوابع زينب / زلابيا | C116: 0 | D116: 0 | F116: 0 | G116: 0 | H116: 0 | M116: 0 | N116: 170 | O116: 0 | P116: 0 | Q116: 0 | R116: _ | S116: _ | AM116: 0
A117: زيــــــــــوت | B117: بلح شام ساده | C117: 0 | D117: 1.15 | F117: 0 | G117: 0 | H117: 1.15 | I117: 0 | M117: 1.15 | N117: 170 | O117: 195.5 | P117: 188.7 | Q117: -6.8 | R117: -0.04 | S117: _ | U117: 1.15 | AE117: 1.15 | AJ117: 188.7 | AM117: 188.7
A118: موسم رمضان | B118: أصابع السلطان | C118: 0 | D118: 0 | F118: 0 | G118: 0 | H118: 0 | M118: 0 | N118: 170 | O118: 0 | P118: 0 | Q118: 0 | R118: _ | S118: _ | AM118: 0
A119: موسم رمضان | B119: قطايف مكسرات | C119: 0 | D119: 0 | F119: 0 | G119: 0 | H119: 0 | M119: 0 | N119: 170 | O119: 0 | P119: 0 | Q119: 0 | R119: _ | S119: _ | AM119: 0
A120: موسم رمضان | B120: بغاشا | C120: 0 | D120: 0 | F120: 0 | G120: 0 | H120: 0 | M120: 0 | N120: 200 | O120: 0 | P120: 0 | Q120: 0 | R120: _ | S120: _ | AM120: 0
B121: خبز دايت | C121: 0 | D121: 0 | F121: 0 | G121: 0 | H121: 0 | M121: 0 | N121: 40 | O121: 0 | P121: 0 | Q121: 0 | R121: _ | S121: _ | AM121: 0
A122: زيوت قشطات | B122: ميني بان 1/2 كيلو | C122: 1 | D122: 10 | E122: 5 | F122: 0 | G122: 0 | H122: 6 | I122: 0 | M122: 6 | N122: 98 | O122: 588 | P122: 588 | Q122: 0 | R122: _ | S122: _ | U122: 10 | V122: 1 | Z122: 5 | AD122: 10 | AJ122: 588 | AM122: 588
A123: حــــــــــــــوادق | B123: ميني بان | C123: 0 | D123: 0 | F123: 0 | G123: 0 | H123: 0 | M123: 0 | N123: 195 | O123: 0 | P123: 0 | Q123: 0 | R123: _ | S123: _ | AM123: 0
A124: حــــــــــــــوادق | B124: ميني بيتزا | C124: 5 | D124: 7 | F124: 0 | G124: 5 | H124: 12 | I124: 1 | M124: 16 | N124: 27 | O124: 432 | P124: 432 | Q124: 0 | R124: _ | S124: _ | U124: 7 | V124: 5 | AD124: 7 | AJ124: 432 | AM124: 432
A125: حــــــــــــــوادق | B125: مبنى ديب | C125: 7 | D125: 5 | E125: 5 | F125: 0 | G125: 0 | H125: 7 | I125: 0 | M125: 7 | N125: 85 | O125: 595 | P125: 510 | Q125: -85 | R125: -1 | S125: _ | U125: 5 | V125: 7 | Z125: 5 | AD125: 5 | AJ125: 425 | AL125: 85 | AM125: 510
A126: حــــــــــــــوادق | B126: كرواسون حوادق | C126: 0 | D126: 0 | F126: 0 | G126: 4 | H126: 0 | I126: 2 | M126: 2 | N126: 27 | O126: 54 | P126: 54 | Q126: 0 | R126: _ | S126: _ | AJ126: 54 | AM126: 54
A127: نواعم | B127: كيك شاى 1/2 ك | C127: 0 | D127: 0 | F127: 0 | G127: 0 | H127: 0 | M127: 0 | N127: 60 | O127: 0 | P127: 0 | Q127: 0 | R127: _ | S127: _ | AM127: 0
A128: نواعم | B128: قالب كيك | C128: 0 | D128: 8 | F128: 0 | G128: 0 | H128: 8 | I128: 3 | M128: 5 | N128: 50 | O128: 250 | P128: 100 | Q128: -150 | R128: =IF(Q128<0,Q128/N128,"_") -> -3 | S128: _ | U128: 8 | AD128: 8 | AL128: 100 | AM128: 100
A129: نواعم | B129: قراقيش ساده /رايب | C129: 0 | D129: 10 | F129: 0 | G129: 11 | H129: 10 | I129: 2 | M129: 19 | N129: 95 | O129: 1805 | P129: 1805 | Q129: 0 | R129: _ | S129: _ | U129: 10 | AE129: 10 | AJ129: 570 | AL129: 1235 | AM129: 1805
A130: نواعم | B130: قراقيش عجوه | C130: 0 | D130: 0 | F130: 0 | G130: 9 | H130: 0 | I130: 7 | M130: 2 | N130: 110 | O130: 220 | P130: 220 | Q130: 0 | R130: _ | S130: _ | AJ130: 220 | AM130: 220
A131: نواعم | B131: معمول عجوة | C131: 0 | D131: 0 | F131: 0 | G131: 0 | H131: 0 | M131: 0 | N131: 110 | O131: 0 | P131: 0 | Q131: 0 | R131: _ | S131: _ | AM131: 0
A132: نواعم | B132: بسكوتات | C132: 0 | D132: 6 | F132: 0 | G132: 19 | H132: 6 | I132: 22 | M132: 3 | N132: 120 | O132: 360 | P132: 360 | Q132: 0 | R132: _ | S132: _ | U132: 6 | AB132: 6 | AJ132: 360 | AM132: 360
A133: نواعم | B133: بسكوت كوكيز/شوكلت/زبيب/ بالمية / لوز | C133: 0 | D133: 10 | F133: 0 | G133: 12 | H133: 10 | I133: 16 | K133: 5 | M133: 1 | N133: 150 | O133: 150 | P133: 150 | Q133: 0 | R133: _ | S133: _ | U133: 10 | AB133: 10 | AJ133: 150 | AM133: 150
B134: كب كوكيز | C134: 0 | D134: 0 | F134: 0 | G134: 1 | H134: 0 | I134: 1 | M134: 0 | N134: 35 | O134: 0 | P134: 0 | Q134: 0 | R134: _ | S134: _ | AM134: 0
A135: نواعم | B135: سابيله / غريبه / بيتى فور | C135: 0 | D135: 10 | F135: 0 | G135: 23 | H135: 10 | I135: 29 | M135: 4 | N135: 150 | O135: 600 | P135: 600 | Q135: 0 | R135: _ | S135: _ | U135: 10 | AB135: 10 | AJ135: 600 | AM135: 600
A136: نواعم | B136: كريسينا | C136: 0 | D136: 1 | F136: 0 | G136: 0 | H136: 1 | I136: 0 | M136: 1 | N136: 60 | O136: 60 | P136: 60 | Q136: 0 | R136: _ | S136: _ | U136: 1 | AE136: 1 | AJ136: 60 | AM136: 60
A137: نواعم | B137: باتون ساليه | C137: 0 | D137: 0 | F137: =C137+D137-E137-H137 -> 0 | G137: 5 | H137: 0 | I137: 3 | M137: 2 | N137: 55 | O137: 110 | P137: 110 | Q137: 0 | R137: _ | S137: =IF(Q137>0,Q137/N137,"_") -> _ | AJ137: 110 | AM137: 110
A138: نواعم | B138: برازق | C138: 0 | D138: 0 | F138: 0 | G138: 0 | H138: 0 | M138: =H138+G138-I138-K138-L138 -> 0 | N138: 150 | O138: =N138*M138 -> 0 | P138: =AM138-J138 -> 0 | Q138: =P138-O138 -> 0 | R138: =IF(Q138<0,Q138/N138,"_") -> _ | S138: _ | AM138: 0
A139: نواعم | B139: كحك ساده | C139: 0 | D139: =SUM(AB139:AH139) -> 0 | F139: 0 | G139: 10 | H139: =SUM(U139:Y139)-Z139 -> 0 | I139: 10 | M139: 0 | N139: 135 | O139: 0 | P139: 0 | Q139: 0 | R139: _ | S139: _ | AM139: =SUM(AJ139:AL139) -> 0
A140: نواعم | B140: كحك عين جمل | C140: 0 | D140: 0 | F140: 0 | G140: 8 | H140: 0 | I140: 7 | M140: 1 | N140: 145 | O140: 145 | P140: 145 | Q140: 0 | R140: _ | S140: _ | AJ140: 145 | AM140: 145
A141: نواعم | B141: كحك فستق | C141: 0 | D141: 0 | F141: 0 | G141: 0 | H141: 0 | M141: 0 | N141: 195 | O141: 0 | P141: 0 | Q141: 0 | R141: _ | S141: _ | AM141: 0
A142: نواعم | B142: كحك مكسرات | C142: 0 | D142: 0 | F142: 0 | G142: 1 | H142: 0 | I142: 1 | M142: 0 | N142: 145 | O142: 0 | P142: 0 | Q142: 0 | R142: _ | S142: _ | AM142: 0
A143: نواعم | B143: كحك ملبن ساده | C143: 0 | D143: 0 | F143: 0 | G143: 4 | H143: 0 | I143: 3 | M143: 1 | N143: 115 | O143: 115 | P143: 115 | Q143: 0 | R143: _ | S143: _ | AJ143: 115 | AM143: 115
A144: شيكـــــــــــولاتــــــــه | B144: امبلاج | C144: 0 | D144: 0 | F144: 0 | G144: 14970 | H144: 0 | I144: 14970 | M144: 0 | N144: 1 | O144: 0 | P144: 0 | Q144: 0 | R144: _ | S144: _ | AM144: 0
A145: شيكـــــــــــولاتــــــــه | B145: شيكولاته ميكس الصياد | C145: 0 | D145: 0 | F145: 0 | G145: 7 | H145: 0 | I145: 4 | M145: 3 | N145: 400 | O145: 1200 | P145: 1200 | Q145: 0 | R145: _ | S145: _ | AJ145: 1200 | AM145: 1200
A146: موسم حلاوة المولد | B146: علبة التوفير 800. جرام حلاوة مولد | C146: 0 | D146: 0 | F146: 0 | G146: 0 | H146: 0 | M146: 0 | N146: 155 | O146: 0 | P146: 0 | Q146: 0 | R146: _ | S146: _ | AM146: 0
A147: موسم حلاوة المولد | B147: علبة مشكل 1 ك فيستفال | C147: 0 | D147: 0 | F147: 0 | G147: 0 | H147: 0 | M147: 0 | N147: 195 | O147: 0 | P147: 0 | Q147: 0 | R147: _ | S147: _ | AM147: 0
A148: موسم حلاوة المولد | B148: علبة 1.5 ك مشكل كلاسيك | C148: 0 | D148: 0 | F148: 0 | G148: 0 | H148: 0 | M148: 0 | N148: 255 | O148: 0 | P148: 0 | Q148: 0 | R148: _ | S148: _ | AM148: 0
A149: موسم حلاوة المولد | B149: علبة مشكل كرنفال صاج 1.5 ك | C149: 0 | D149: 0 | F149: 0 | G149: 0 | H149: 0 | M149: 0 | N149: 315 | O149: 0 | P149: 0 | Q149: 0 | R149: _ | S149: _ | AM149: 0
A150: موسم حلاوة المولد | B150: علبة مكسات 1.5 ك | C150: 0 | D150: 0 | F150: 0 | G150: 0 | H150: 0 | M150: 0 | N150: 350 | O150: 0 | P150: 0 | Q150: 0 | R150: _ | S150: _ | AM150: 0
A151: موسم حلاوة المولد | B151: علبة جواهر 1.5 ك | C151: 0 | D151: 0 | F151: 0 | G151: 0 | H151: 0 | M151: 0 | N151: 365 | O151: 0 | P151: 0 | Q151: 0 | R151: _ | S151: _ | AM151: 0
A152: موسم حلاوة المولد | B152: علبة جزرية سوداني 1/2 ك | C152: 0 | D152: 0 | F152: 0 | G152: 0 | H152: 0 | M152: 0 | N152: 55 | O152: 0 | P152: 0 | Q152: 0 | R152: _ | S152: _ | AM152: 0
A153: موسم حلاوة المولد | B153: علبة مشكل فرحة المولد 1.5 ك | C153: 0 | D153: 0 | F153: 0 | G153: 0 | H153: 0 | M153: 0 | N153: 305 | O153: 0 | P153: 0 | Q153: 0 | R153: _ | S153: _ | AM153: 0
A154: موسم حلاوة المولد | B154: علبة الليلة الكبيرة 2.2 ك | C154: 0 | D154: 0 | F154: 0 | G154: 0 | H154: 0 | M154: 0 | N154: 680 | O154: 0 | P154: 0 | Q154: 0 | R154: _ | S154: _ | AM154: 0
A155: موسم حلاوة المولد | B155: علبة كنوز 2.5 ك | C155: 0 | D155: 0 | F155: 0 | G155: 0 | H155: 0 | M155: 0 | N155: 890 | O155: 0 | P155: 0 | Q155: 0 | R155: _ | S155: _ | AM155: 0
A156: موسم حلاوة المولد | B156: علبة مشكل علف 1/2 ك | C156: 0 | D156: 0 | F156: 0 | G156: 0 | H156: 0 | M156: 0 | N156: 97.5 | O156: 0 | P156: 0 | Q156: 0 | R156: _ | S156: _ | AM156: 0
A157: موسم حلاوة المولد | B157: علبة مشكل علف 1 ك | C157: 0 | D157: 0 | F157: 0 | G157: 0 | H157: 0 | M157: 0 | N157: 195 | O157: 0 | P157: 0 | Q157: 0 | R157: _ | S157: _ | AM157: 0
A158: موسم حلاوة المولد | B158: علبة علف سوداني 1/2 ك | C158: 0 | D158: 0 | F158: 0 | G158: 0 | H158: 0 | M158: 0 | N158: 97.5 | O158: 0 | P158: 0 | Q158: 0 | R158: _ | S158: _ | AM158: 0
A159: موسم حلاوة المولد | B159: علبة قرص حمصية 1/2 ك | C159: 0 | D159: 0 | F159: 0 | G159: 0 | H159: 0 | M159: 0 | N159: 65 | O159: 0 | P159: 0 | Q159: 0 | R159: _ | S159: _ | AM159: 0
A160: موسم حلاوة المولد | B160: علبة مشكل مربات 1/2 ك | C160: 0 | D160: 0 | F160: 0 | G160: 0 | H160: 0 | M160: 0 | N160: 135 | O160: 0 | P160: 0 | Q160: 0 | R160: _ | S160: _ | AM160: 0
A161: موسم حلاوة المولد | B161: قشطة مارشيملو | C161: 0 | D161: 0 | F161: 0 | G161: 0 | H161: 0 | M161: 0 | N161: 180 | O161: 0 | P161: 0 | Q161: 0 | R161: _ | S161: _ | AM161: 0
A162: موسم حلاوة المولد | B162: علبة ملبن فواكه 1/2 ك | C162: 0 | D162: 0 | F162: 0 | G162: 2 | H162: 0 | I162: 2 | M162: 0 | N162: 50 | O162: 0 | P162: 0 | Q162: 0 | R162: _ | S162: _ | AM162: 0
A163: موسم حلاوة المولد | B163: علبة نوجا سوداني 1/4 ك | C163: 0 | D163: 0 | F163: 0 | G163: 0 | H163: 0 | M163: 0 | N163: 65 | O163: 0 | P163: 0 | Q163: 0 | R163: _ | S163: _ | AM163: 0
A164: موسم حلاوة المولد | B164: علبة ملبن حبل عين جمل 1/2 ك | C164: 0 | D164: 0 | F164: 0 | G164: 1.24 | H164: 0 | I164: 1.24 | M164: 0 | N164: 460 | O164: 0 | P164: 0 | Q164: 0 | R164: _ | S164: _ | AM164: 0
A165: موسم حلاوة المولد | B165: علبة بندقية 1/4 ك | C165: 0 | D165: 0 | F165: 0 | G165: 0 | H165: 0 | M165: 0 | N165: 245 | O165: 0 | P165: 0 | Q165: 0 | R165: _ | S165: _ | AM165: 0
A166: موسم حلاوة المولد | B166: علبة لوزية 1/4 ك | C166: 0 | D166: 0 | F166: 0 | G166: 0 | H166: 0 | M166: 0 | N166: 185 | O166: 0 | P166: 0 | Q166: 0 | R166: _ | S166: _ | AM166: 0
A167: موسم حلاوة المولد | B167: علبة القرمشة 1/2 ك | C167: 0 | D167: 0 | F167: 0 | G167: 0 | H167: 0 | M167: 0 | N167: 97.5 | O167: 0 | P167: 0 | Q167: 0 | R167: _ | S167: _ | AM167: 0
A168: علبة شيكولاته مشكلة 650 جم | B168: علبة شيكولاته مشكلة 650 جم | C168: 0 | D168: 0 | F168: 0 | G168: 0 | H168: 0 | M168: 0 | N168: 165 | O168: 0 | P168: 0 | Q168: 0 | R168: _ | S168: _ | AM168: 0
A169: موسم رمضان | B169: كنافة مانجو كبير / بولة مركب | C169: 0 | D169: 0 | F169: 0 | G169: 0 | H169: 0 | M169: 0 | N169: 175 | O169: 0 | P169: 0 | Q169: 0 | R169: _ | S169: _ | AM169: 0
A170: موسم رمضان | B170: كنافة مانجو ديو نوتيلا وسط | C170: 0 | D170: 0 | F170: 0 | G170: 0 | H170: 0 | M170: 0 | N170: 155 | O170: 0 | P170: 0 | Q170: 0 | R170: _ | S170: _ | AM170: 0
A171: موسم رمضان | B171: كنافة مانجو ديو نوتيلا كبير | C171: 0 | D171: 0 | F171: 0 | G171: 0 | H171: 0 | M171: 0 | N171: 260 | O171: 0 | P171: 0 | Q171: 0 | R171: _ | S171: _ | AM171: 0
A172: موسم رمضان | B172: قشطوطه دبي | C172: 0 | D172: 0 | F172: 0 | G172: 0 | H172: 0 | M172: 0 | N172: 50 | O172: 0 | P172: 0 | Q172: 0 | R172: _ | S172: _ | AM172: 0
A173: موسم رمضان | B173: اساتوك | C173: 0 | D173: 0 | F173: 0 | G173: 0 | H173: 0 | M173: 0 | N173: 90 | O173: 0 | P173: 0 | Q173: 0 | R173: _ | S173: _ | AM173: 0
A174: موسم رمضان | B174: كب كنافة صغير | C174: 0 | D174: 0 | F174: 0 | G174: 0 | H174: 0 | M174: 0 | N174: 35 | O174: 0 | P174: 0 | Q174: 0 | R174: _ | S174: _ | AM174: 0
B175: عصير سوبيا | C175: 0 | D175: 12 | F175: 0 | G175: 5 | H175: 12 | I175: 2 | M175: 15 | N175: 20 | O175: 300 | P175: 300 | Q175: 0 | R175: _ | S175: _ | U175: 12 | AB175: 12 | AJ175: 300 | AM175: 300
A176: موسم رمضان | B176: عصير مانجو فريش | C176: 0 | D176: 5 | F176: 0 | G176: 5 | H176: 5 | I176: 9 | M176: 1 | N176: 35 | O176: 35 | P176: 35 | Q176: 0 | R176: _ | S176: _ | U176: 5 | AB176: 5 | AJ176: 35 | AM176: 35
A177: موسم رمضان | B177: عصير تمر هندى | C177: 0 | D177: 0 | F177: 0 | G177: 0 | H177: 0 | M177: 0 | N177: 25 | O177: 0 | P177: 0 | Q177: 0 | R177: _ | S177: _ | AM177: 0
A178: موسم رمضان | B178: عصير دووم | C178: 0 | D178: 0 | F178: 0 | G178: 0 | H178: 0 | M178: 0 | N178: 25 | O178: 0 | P178: 0 | Q178: 0 | R178: _ | S178: _ | AM178: 0
A179: موسم رمضان | B179: عصير عناب | C179: 0 | D179: 0 | F179: 0 | G179: 0 | H179: 0 | M179: 0 | N179: 25 | O179: 0 | P179: 0 | Q179: 0 | R179: _ | S179: _ | AM179: 0
A180: موسم رمضان | B180: عصير بطيخ | C180: 0 | D180: 0 | F180: 0 | G180: 0 | H180: 0 | M180: 0 | N180: 35 | O180: 0 | P180: 0 | Q180: 0 | R180: _ | S180: _ | AM180: 0
A181: موسم رمضان | B181: عصير بلح | C181: 0 | D181: 0 | F181: 0 | G181: 0 | H181: 0 | M181: 0 | N181: 35 | O181: 0 | P181: 0 | Q181: 0 | R181: _ | S181: _ | AM181: 0
A182: موسم رمضان | B182: عصير خروب | C182: 0 | D182: 0 | F182: 0 | G182: 0 | H182: 0 | M182: 0 | N182: 25 | O182: 0 | P182: 0 | Q182: 0 | R182: _ | S182: _ | AM182: 0
A183: موسم رمضان | B183: عصير توت | C183: 0 | D183: 0 | F183: 0 | G183: 0 | H183: 0 | M183: 0 | N183: 35 | O183: 0 | P183: 0 | Q183: 0 | R183: _ | S183: _ | AM183: 0
A184: موسم رمضان | B184: عصير فراوله | C184: 0 | D184: 0 | F184: 0 | G184: 0 | H184: 0 | M184: 0 | N184: 35 | O184: 0 | P184: 0 | Q184: 0 | R184: _ | S184: _ | AM184: 0
A185: موسم رمضان | B185: وجــبــة بـطـيـخ | C185: 0 | D185: 0 | F185: 0 | G185: 0 | H185: 0 | M185: 0 | N185: 1 | O185: 0 | P185: 0 | Q185: 0 | R185: _ | S185: _ | AM185: 0
A186: موسم رمضان | B186: وجــبــة بـلـح | C186: 0 | D186: 0 | F186: 0 | G186: 0 | H186: 0 | M186: 0 | N186: 1 | O186: 0 | P186: 0 | Q186: 0 | R186: _ | S186: _ | AM186: 0
A187: موسم الشتاء | B187: كنافه بين نارين كريمة | C187: 0 | D187: 0 | F187: 0 | G187: 0 | H187: 0 | M187: 0 | N187: 20 | O187: 0 | P187: 0 | Q187: 0 | R187: _ | S187: _ | AM187: 0
A188: موسم الشتاء | B188: كنافه بين نارين كريمة لوتس | C188: 0 | D188: 0 | F188: 0 | G188: 0 | H188: 0 | M188: 0 | N188: 25 | O188: 0 | P188: 0 | Q188: 0 | R188: _ | S188: _ | AM188: 0
A189: موسم الشتاء | B189: كنافه بين نارين نوتيلا | C189: 0 | D189: 0 | F189: 0 | G189: 0 | H189: 0 | M189: 0 | N189: 25 | O189: 0 | P189: 0 | Q189: 0 | R189: _ | S189: _ | AM189: 0
A190: موسم الشتاء | B190: كسكسي بلبن ومكسرات | C190: 0 | D190: 0 | F190: 0 | G190: 0 | H190: 0 | M190: 0 | N190: 50 | O190: 0 | P190: 0 | Q190: 0 | R190: _ | S190: _ | AM190: 0
A191: موسم الشتاء | B191: بسبوسة بين نارين بالقشطة | C191: 0 | D191: 0 | F191: 0 | G191: 0 | H191: 0 | M191: 0 | N191: 1 | O191: 0 | P191: 0 | Q191: 0 | R191: _ | S191: _ | AM191: 0
A192: موسم الشتاء | B192: زلابيا | C192: 0 | D192: 19.35 | F192: 0 | G192: 0 | H192: 19.35 | I192: 0 | M192: 19.35 | N192: 159.9 | O192: 3094.065 | P192: 3460 | Q192: 365.935 | R192: _ | S192: 2.288524078 | U192: 9.85 | V192: 9.5 | AB192: 9.85 | AC192: 9.5 | AJ192: =1280+2080 -> 3360 | AL192: 100 | AM192: 3460
A193: موسم الشتاء | B193: زلابيا ص | C193: 0 | D193: 0 | F193: 0 | G193: 0 | H193: 0 | M193: 0 | N193: 1 | O193: 0 | P193: 0 | Q193: 0 | R193: _ | S193: _ | AM193: 0
A194: موسم الشتاء | B194: زلابيا ك | C194: 0 | D194: 0 | F194: 0 | G194: 0 | H194: 0 | M194: 0 | N194: 1 | O194: 0 | P194: 0 | Q194: 0 | R194: _ | S194: _ | AM194: 0
A195: فطير | B195: فطير سادة | C195: 0 | D195: 234 | E195: 36 | F195: =C195+D195-E195-H195 -> 0 | G195: 13 | H195: 198 | I195: 0 | M195: 211 | N195: 1 | O195: 211 | P195: 0 | Q195: -211 | R195: -211 | S195: _ | U195: 192 | V195: 42 | Z195: 36 | AD195: 192 | AE195: 42 | AM195: 0
A196: فطير | B196: فطير سكر | C196: 0 | D196: 0 | F196: =C196+D196-E196-H196 -> 0 | G196: 0 | H196: 0 | I196: 0 | J196: 70 | M196: 0 | N196: 35 | O196: 0 | P196: 5040 | Q196: 5040 | R196: _ | S196: 144 | AJ196: =129*35 -> 4515 | AK196: =105+105 -> 210 | AL196: 385 | AM196: 5110
A197: فطير | B197: فطير لوتس | C197: 0 | D197: 0 | F197: 0 | G197: 0 | H197: 0 | I197: 0 | M197: 0 | N197: 50 | O197: 0 | P197: 850 | Q197: 850 | R197: _ | S197: 17 | AJ197: 800 | AL197: 50 | AM197: 850
A198: فطير | B198: فطير نوتيلا | C198: 0 | D198: 0 | F198: 0 | G198: 0 | H198: 0 | I198: 0 | J198: 50 | M198: 0 | N198: 50 | O198: 0 | P198: 2450 | Q198: 2450 | R198: _ | S198: 49 | AJ198: 2200 | AK198: 150 | AL198: 150 | AM198: 2500
A199: فطير | B199: فطير اوريو | C199: 0 | D199: 0 | F199: 0 | G199: 0 | H199: 0 | I199: 0 | M199: 0 | N199: 50 | O199: 0 | P199: 0 | Q199: 0 | R199: _ | S199: _ | AM199: 0
B200: غلة بليلة سادة وزن | C200: 0 | D200: 0 | F200: 0 | G200: 0 | H200: 0 | M200: 0 | N200: 400 | O200: 0 | P200: 0 | Q200: 0 | R200: _ | S200: _ | AM200: 0
B201: بليلة مكسرات | C201: 0 | D201: 0 | F201: =C201+D201-E201-H201 -> 0 | G201: 0 | H201: 0 | M201: 0 | N201: 45 | O201: 0 | P201: 0 | Q201: 0 | R201: _ | S201: =IF(Q201>0,Q201/N201,"_") -> _ | AM201: 0
... 83 more rows

Sheet فصل شيفت
A1: الإدارة المالية
C2: تحليل جرد فصل شيفت شكرى القوتلى بتاريخ | L2: ='تقرير حركة يومية'!O2+1 -> 2025-11-13
A3: بيـــــــــــــــــــان | B3: تسجيل الرصيد
A4: رصيد اول المدة | B4: نعم | F4: إجمالي وزن الكازرولات | H4: 0 | I4: =H4+(H4*0.025) -> 0 | O4: سيخ شاورما فراخ | R4: =((Q4)-40/100*Q4) -> 0
A5: رصيد اخر المدة | B5: نعم | O5: سيخ شاورما لحم | R5: =((Q5)-25/100*Q5) -> 0
A7: ك | B7: =SUM(B9:B283) -> 2078.05 | C7: 1919.985 | D7: 73.31 | E7: 2711.885 | F7: 15707.165 | G7: 1212.84 | H7: 0 | I7: 0 | J7: 0 | K7: 0 | L7: 16920.005 | M7: 28683.767 | N7: 148641.05 | O7: 0 | P7: -148641.05 | Q7: مـــلاحظــــــــــــــــة | T7: اجمالى المنصرف للفرع ( 6 ) | AA7: اجمالى وارد السيارات ( 2 ) | AI7: شرايط المبيعات
A8: الصنف | B8: رصيد اول المدة المخزن | C8: اجمالى الوارد | D8: تصنيع / تحويلات | E8: صافى رصيد المخزن | F8: رصيد اول المدة الفرع | G8: إجمالي المنصرف للفرع | H8: رصيد اخر المدة | I8: مردودات مبيعات | J8: مرتجعات للمصنع | K8: التسويات تبديل في المبيعات | L8: الفرق | M8: السعر | N8: قيمة المباع 10*11 | O8: قيمة داخل شريط الجرد | P8: فرق القيمة 8 - 9 | Q8: عجز | R8: زيادة | T8: صرف 1 | U8: صرف 2 | V8: صرف 3 | W8: صرف 4 | X8: صرف 5 | Y8: مرتجع من فرع للمخزن | AA8: سياره 1 | AB8: سيارة 2 | AC8: سيارة 3 | AD8: سيارة 4 | AE8: سيارة 5 | AF8: سيارة 6 | AG8: وارد مشتريات خارجية | AI8: عمومي | AJ8: كافيتريا | AK8: دليفري | AL8: إجمالي
A9: قطعه جاتوه كلاسيك | B9: ='تقرير حركة يومية'!F9 -> 471 | C9: =SUM(AA9:AG9) -> 504 | E9: =B9+C9-D9-G9 -> 525 | F9: ='تقرير حركة يومية'!I9 -> 13 | G9: =SUM(T9:X9)-Y9 -> 450 | L9: =G9+F9-H9-J9-K9 -> 463 | M9: ='تقرير حركة يومية'!N9 -> 27 | N9: =L9*M9 -> 12501 | O9: =AL9-I9 -> 0 | P9: =O9-N9 -> -12501 | Q9: =IF(P9<0,P9/M9,"_") -> -463 | R9: =IF(P9>0,P9/M9,"_") -> _ | T9: 323 | U9: 41 | V9: =34+34+18 -> 86 | AB9: 210 | AC9: 294 | AL9: =AK9+AJ9+AI9 -> 0
A10: قطعه جاتوه موس | B10: ='تقرير حركة يومية'!F10 -> 0 | C10: 98 | E10: =B10+C10-D10-G10 -> 98 | F10: ='تقرير حركة يومية'!I10 -> 6 | G10: =SUM(T10:X10)-Y10 -> 0 | L10: =G10+F10-H10-J10-K10 -> 6 | M10: ='تقرير حركة يومية'!N10 -> 39 | N10: =L10*M10 -> 234 | O10: 0 | P10: =O10-N10 -> -234 | Q10: =IF(P10<0,P10/M10,"_") -> -6 | R10: =IF(P10>0,P10/M10,"_") -> _ | AC10: 98 | AL10: =AK10+AJ10+AI10 -> 0
A11: جاتوة سواريه | B11: ='تقرير حركة يومية'!F11 -> 0 | C11: 0 | E11: 0 | F11: ='تقرير حركة يومية'!I11 -> 0 | G11: 0 | L11: 0 | M11: ='تقرير حركة يومية'!N11 -> 315 | N11: 0 | O11: 0 | P11: 0 | Q11: =IF(P11<0,P11/M11,"_") -> _ | R11: _ | AL11: 0
A12: اكلير / دنش | B12: ='تقرير حركة يومية'!F12 -> 11 | C12: 83 | E12: 10 | F12: ='تقرير حركة يومية'!I12 -> 0 | G12: 84 | L12: 84 | M12: ='تقرير حركة يومية'!N12 -> 27 | N12: 2268 | O12: 0 | P12: -2268 | Q12: =IF(P12<0,P12/M12,"_") -> -84 | R12: _ | T12: 84 | AB12: 73 | AC12: 10 | AL12: 0
A13: ملفاى | B13: ='تقرير حركة يومية'!F13 -> 0 | C13: 20 | E13: 0 | F13: ='تقرير حركة يومية'!I13 -> 0 | G13: 20 | L13: 20 | M13: ='تقرير حركة يومية'!N13 -> 30 | N13: 600 | O13: 0 | P13: -600 | Q13: -20 | R13: _ | T13: 20 | AB13: 20 | AL13: 0
A14: شوهات | B14: ='تقرير حركة يومية'!F14 -> 0 | C14: 16 | E14: 16 | F14: ='تقرير حركة يومية'!I14 -> 0 | G14: 0 | L14: 0 | M14: ='تقرير حركة يومية'!N14 -> 30 | N14: 0 | O14: 0 | P14: 0 | Q14: _ | R14: _ | AC14: 16 | AL14: 0
A15: كب جار بوبس | B15: ='تقرير حركة يومية'!F15 -> 0 | C15: 0 | E15: 0 | F15: ='تقرير حركة يومية'!I15 -> 0 | G15: 0 | L15: 0 | M15: ='تقرير حركة يومية'!N15 -> 40 | N15: 0 | O15: 0 | P15: 0 | Q15: _ | R15: _ | AL15: 0
A16: تورته اوستيك موس | B16: ='تقرير حركة يومية'!F16 -> 0 | C16: 0 | E16: 0 | F16: ='تقرير حركة يومية'!I16 -> 0 | G16: 0 | L16: 0 | M16: ='تقرير حركة يومية'!N16 -> 480 | N16: 0 | O16: 0 | P16: 0 | Q16: _ | R16: _ | AL16: 0
A17: تورته مينى موس 180 | B17: ='تقرير حركة يومية'!F17 -> 0 | C17: 0 | E17: 0 | F17: ='تقرير حركة يومية'!I17 -> 0 | G17: 0 | L17: 0 | M17: ='تقرير حركة يومية'!N17 -> 210 | N17: 0 | O17: 0 | P17: 0 | Q17: _ | R17: _ | AL17: 0
A18: تورته مينى شوكلت كيك 300 | B18: ='تقرير حركة يومية'!F18 -> 0 | C18: 0 | E18: 0 | F18: ='تقرير حركة يومية'!I18 -> 0 | G18: 0 | L18: 0 | M18: ='تقرير حركة يومية'!N18 -> 320 | N18: 0 | O18: 0 | P18: 0 | Q18: _ | R18: _ | AL18: 0
A19: تورته دائري شوكلت كاملة 400 | B19: ='تقرير حركة يومية'!F19 -> 0 | C19: 1 | E19: 0 | F19: ='تقرير حركة يومية'!I19 -> 0 | G19: 1 | L19: 1 | M19: 400 | N19: 400 | O19: 0 | P19: -400 | Q19: -1 | R19: _ | T19: 1 | AA19: 1 | AL19: 0
A20: تورته مربع صغير310 | B20: ='تقرير حركة يومية'!F20 -> 6 | C20: 8 | E20: =B20+C20-D20-G20 -> 11 | F20: ='تقرير حركة يومية'!I20 -> 4 | G20: 3 | L20: 7 | M20: ='تقرير حركة يومية'!N20 -> 310 | N20: 2170 | O20: 0 | P20: -2170 | Q20: -7 | R20: _ | T20: 3 | AB20: 6 | AC20: 2 | AL20: 0
A21: تورتة هاف دائرى / فاكهة كاملة 380 | B21: ='تقرير حركة يومية'!F21 -> 6 | C21: 15 | E21: =B21+C21-D21-G21 -> 18 | F21: ='تقرير حركة يومية'!I21 -> 3 | G21: 3 | L21: 6 | M21: ='تقرير حركة يومية'!N21 -> 380 | N21: 2280 | O21: 0 | P21: -2280 | Q21: -6 | R21: _ | T21: 3 | AA21: 1 | AB21: 9 | AC21: 5 | AL21: 0
A22: تورته فور سيزون 440 | B22: ='تقرير حركة يومية'!F22 -> 0 | C22: 2 | E22: 2 | F22: ='تقرير حركة يومية'!I22 -> 1 | G22: 0 | L22: 1 | M22: ='تقرير حركة يومية'!N22 -> 440 | N22: 440 | O22: 0 | P22: -440 | Q22: -1 | R22: _ | AA22: 2 | AL22: 0
A23: تورته مربع كبير 435 | B23: ='تقرير حركة يومية'!F23 -> 2 | C23: 0 | E23: 1 | F23: ='تقرير حركة يومية'!I23 -> 2 | G23: 1 | L23: 3 | M23: ='تقرير حركة يومية'!N23 -> 435 | N23: 1305 | O23: 0 | P23: -1305 | Q23: -3 | R23: _ | T23: 1 | AL23: 0
A24: تورته هاف كيت كات / روشيه / ويفر 430 | B24: ='تقرير حركة يومية'!F24 -> 1 | C24: 5 | E24: =B24+C24-D24-G24 -> 5 | F24: ='تقرير حركة يومية'!I24 -> 1 | G24: 1 | L24: 2 | M24: ='تقرير حركة يومية'!N24 -> 430 | N24: 860 | O24: 0 | P24: -860 | Q24: -2 | R24: _ | T24: 1 | AB24: 3 | AC24: 2 | AL24: 0
A25: تورته قلب كبير 445 | B25: ='تقرير حركة يومية'!F25 -> 2 | C25: 2 | E25: 2 | F25: ='تقرير حركة يومية'!I25 -> 1 | G25: 2 | L25: 3 | M25: ='تقرير حركة يومية'!N25 -> 445 | N25: =L25*M25 -> 1335 | O25: =AL25-I25 -> 0 | P25: =O25-N25 -> -1335 | Q25: =IF(P25<0,P25/M25,"_") -> -3 | R25: =IF(P25>0,P25/M25,"_") -> _ | T25: 2 | AC25: 2 | AL25: 0
A26: تورته فونتانا 480 | B26: ='تقرير حركة يومية'!F26 -> 0 | C26: 0 | E26: 0 | F26: ='تقرير حركة يومية'!I26 -> 0 | G26: 0 | L26: 0 | M26: ='تقرير حركة يومية'!N26 -> 480 | N26: 0 | O26: 0 | P26: 0 | Q26: _ | R26: _ | AL26: 0
A27: تورته دويــــــتـــــــو 30*30 (500) | B27: ='تقرير حركة يومية'!F27 -> 0 | C27: 1 | E27: =B27+C27-D27-G27 -> 1 | F27: ='تقرير حركة يومية'!I27 -> 0 | G27: =SUM(T27:X27)-Y27 -> 0 | L27: =G27+F27-H27-J27-K27 -> 0 | M27: ='تقرير حركة يومية'!N27 -> 500 | N27: =M27*L27 -> 0 | O27: =AL27-I27 -> 0 | P27: =O27-N27 -> 0 | Q27: =IF(P27<0,P27/M27,"_") -> _ | R27: =IF(P27>0,P27/M27,"_") -> _ | AA27: 1 | AL27: =SUM(AI27:AK27) -> 0
A28: تورتة هاف 20*40 (550) | B28: ='تقرير حركة يومية'!F28 -> 0 | C28: 0 | E28: 0 | F28: ='تقرير حركة يومية'!I28 -> 0 | G28: 0 | L28: 0 | M28: ='تقرير حركة يومية'!N28 -> 600 | N28: 0 | O28: 0 | P28: 0 | Q28: _ | R28: _ | AL28: 0
A29: تورته ايس سوسرول 245 | B29: ='تقرير حركة يومية'!F29 -> 0 | C29: 0 | E29: 0 | F29: ='تقرير حركة يومية'!I29 -> 6 | G29: 0 | L29: 6 | M29: ='تقرير حركة يومية'!N29 -> 245 | N29: 1470 | O29: 0 | P29: -1470 | Q29: -6 | R29: _ | AL29: 0
A30: تورته ايس كاساتا 315 | B30: ='تقرير حركة يومية'!F30 -> 0 | C30: 0 | E30: 0 | F30: ='تقرير حركة يومية'!I30 -> 6 | G30: 0 | L30: 6 | M30: ='تقرير حركة يومية'!N30 -> 315 | N30: 1890 | O30: 0 | P30: -1890 | Q30: -6 | R30: _ | AL30: 0
A31: كب بوبس ( دبل سوفت - ديو ) | B31: ='تقرير حركة يومية'!F31 -> 0 | C31: 190 | E31: 30 | F31: ='تقرير حركة يومية'!I31 -> 0 | G31: =SUM(T31:X31)-Y31 -> 160 | L31: 160 | M31: ='تقرير حركة يومية'!N31 -> 33 | N31: 5280 | O31: 0 | P31: -5280 | Q31: -160 | R31: _ | T31: 160 | AB31: 160 | AC31: =5+25 -> 30 | AL31: 0
A32: كب مينى ديسباسيتو | B32: ='تقرير حركة يومية'!F32 -> 0 | C32: 10 | E32: 0 | F32: ='تقرير حركة يومية'!I32 -> 2 | G32: 10 | L32: 12 | M32: ='تقرير حركة يومية'!N32 -> 33 | N32: 396 | O32: 0 | P32: -396 | Q32: -12 | R32: _ | T32: 10 | AA32: 10 | AL32: 0
A33: كب شوكلت كيك | B33: ='تقرير حركة يومية'!F33 -> 0 | C33: 40 | E33: 40 | F33: ='تقرير حركة يومية'!I33 -> 0 | G33: 0 | L33: 0 | M33: ='تقرير حركة يومية'!N33 -> 28 | N33: 0 | O33: 0 | P33: 0 | Q33: _ | R33: _ | AC33: 40 | AL33: 0
A34: ترايفل | B34: ='تقرير حركة يومية'!F34 -> 0 | C34: 25 | E34: 25 | F34: ='تقرير حركة يومية'!I34 -> 0 | G34: 0 | L34: 0 | M34: ='تقرير حركة يومية'!N34 -> 15 | N34: 0 | O34: 0 | P34: 0 | Q34: _ | R34: _ | AB34: 25 | AL34: 0
A35: كب اساتوك دبي | B35: ='تقرير حركة يومية'!F35 -> 0 | C35: 5 | E35: 5 | F35: ='تقرير حركة يومية'!I35 -> 0 | G35: 0 | L35: 0 | M35: ='تقرير حركة يومية'!N35 -> 35 | N35: 0 | O35: 0 | P35: 0 | Q35: _ | R35: _ | AC35: 5 | AL35: 0
A36: ديسباسيتو | B36: ='تقرير حركة يومية'!F36 -> 0 | C36: 20 | E36: 0 | F36: ='تقرير حركة يومية'!I36 -> 0 | G36: 20 | L36: 20 | M36: ='تقرير حركة يومية'!N36 -> 80 | N36: 1600 | O36: 0 | P36: -1600 | Q36: -20 | R36: _ | T36: 20 | AA36: 20 | AL36: 0
A37: مولتن كيك | B37: ='تقرير حركة يومية'!F37 -> 0 | C37: 5 | E37: 5 | F37: ='تقرير حركة يومية'!I37 -> 6 | G37: 0 | L37: 6 | M37: ='تقرير حركة يومية'!N37 -> 65 | N37: 390 | O37: 0 | P37: -390 | Q37: -6 | R37: =IF(P37>0,P37/M37,"_") -> _ | AA37: 5 | AL37: 0
A38: باباز | B38: ='تقرير حركة يومية'!F38 -> 0 | C38: 0 | E38: 0 | F38: ='تقرير حركة يومية'!I38 -> 0 | G38: 0 | L38: 0 | M38: ='تقرير حركة يومية'!N38 -> 30 | N38: 0 | O38: 0 | P38: 0 | Q38: _ | R38: _ | AL38: 0
A39: كوكتيل | B39: ='تقرير حركة يومية'!F39 -> 0 | C39: 0 | E39: 0 | F39: ='تقرير حركة يومية'!I39 -> 0 | G39: 0 | L39: 0 | M39: ='تقرير حركة يومية'!N39 -> 25 | N39: 0 | O39: 0 | P39: 0 | Q39: _ | R39: _ | AL39: 0
A40: كب قشطوطة صغير | B40: ='تقرير حركة يومية'!F40 -> 0 | C40: 26 | E40: 26 | F40: ='تقرير حركة يومية'!I40 -> 0 | G40: 0 | L40: 0 | M40: ='تقرير حركة يومية'!N40 -> 30 | N40: 0 | O40: 0 | P40: 0 | Q40: _ | R40: _ | AC40: 26 | AL40: 0
A41: كب قشطوطة كاندي /بسبوسه /ليزي كيك | B41: ='تقرير حركة يومية'!F41 -> 0 | C41: 14 | E41: =B41+C41-D41-G41 -> 14 | F41: ='تقرير حركة يومية'!I41 -> 2 | G41: =SUM(T41:X41)-Y41 -> 0 | L41: =G41+F41-H41-J41-K41 -> 2 | M41: ='تقرير حركة يومية'!N41 -> 35 | N41: =L41*M41 -> 70 | O41: =AL41-I41 -> 0 | P41: =O41-N41 -> -70 | Q41: =IF(P41<0,P41/M41,"_") -> -2 | R41: =IF(P41>0,P41/M41,"_") -> _ | AC41: 14 | AL41: 0
A42: ام علي ساده | B42: ='تقرير حركة يومية'!F42 -> 0 | C42: 10 | E42: 0 | F42: ='تقرير حركة يومية'!I42 -> 1 | G42: 10 | L42: =G42+F42-H42-J42-K42 -> 11 | M42: ='تقرير حركة يومية'!N42 -> 25 | N42: 275 | O42: 0 | P42: -275 | Q42: -11 | R42: _ | T42: 10 | AB42: 10 | AL42: 0
A43: ارز بلبن اسبيشيال عفروتو | B43: ='تقرير حركة يومية'!F43 -> 0 | C43: 0 | E43: =B43+C43-D43-G43 -> 0 | F43: ='تقرير حركة يومية'!I43 -> 6 | G43: 0 | L43: 6 | M43: ='تقرير حركة يومية'!N43 -> 75 | N43: 450 | O43: 0 | P43: -450 | Q43: -6 | R43: _ | AL43: 0
A44: ارز بلبن اسبشيال مكسرات وقشطة | B44: ='تقرير حركة يومية'!F44 -> 0 | C44: 0 | E44: 0 | F44: ='تقرير حركة يومية'!I44 -> 4 | G44: 0 | L44: 4 | M44: ='تقرير حركة يومية'!N44 -> 55 | N44: 220 | O44: 0 | P44: -220 | Q44: -4 | R44: _ | AL44: 0
A45: ارز بلبن اسبيشيال اوريو | B45: ='تقرير حركة يومية'!F45 -> 0 | C45: 0 | D45: -8 | E45: 0 | F45: ='تقرير حركة يومية'!I45 -> 2 | G45: 8 | L45: 10 | M45: ='تقرير حركة يومية'!N45 -> 55 | N45: 550 | O45: 0 | P45: -550 | Q45: -10 | R45: _ | T45: 8 | AL45: 0
A46: ارز بلبن اسبيشيال قراصيا | B46: ='تقرير حركة يومية'!F46 -> 0 | C46: 0 | E46: 0 | F46: ='تقرير حركة يومية'!I46 -> 0 | G46: 0 | L46: 0 | M46: ='تقرير حركة يومية'!N46 -> 60 | N46: 0 | O46: 0 | P46: 0 | Q46: _ | R46: _ | AL46: 0
A47: ارز بلبن اسبيشيال لوتس | B47: ='تقرير حركة يومية'!F47 -> 0 | C47: 0 | D47: -4 | E47: 0 | F47: ='تقرير حركة يومية'!I47 -> 6 | G47: 4 | L47: 10 | M47: ='تقرير حركة يومية'!N47 -> 55 | N47: 550 | O47: 0 | P47: -550 | Q47: -10 | R47: _ | T47: 4 | AL47: 0
A48: ارز بلبن اسبيشيال نوتيلا | B48: ='تقرير حركة يومية'!F48 -> 0 | C48: 0 | D48: -8 | E48: 0 | F48: ='تقرير حركة يومية'!I48 -> 2 | G48: 8 | L48: 10 | M48: ='تقرير حركة يومية'!N48 -> 55 | N48: 550 | O48: 0 | P48: -550 | Q48: -10 | R48: _ | T48: 8 | AL48: 0
A49: ارز بلبن بسابيسو | B49: ='تقرير حركة يومية'!F49 -> 0 | C49: 0 | E49: 0 | F49: ='تقرير حركة يومية'!I49 -> 0 | G49: 0 | L49: 0 | M49: ='تقرير حركة يومية'!N49 -> 65 | N49: 0 | O49: 0 | P49: 0 | Q49: _ | R49: _ | AL49: 0
A50: ارز بلبن خدود الست | B50: ='تقرير حركة يومية'!F50 -> 0 | C50: 10 | E50: 0 | F50: ='تقرير حركة يومية'!I50 -> 0 | G50: 10 | L50: 10 | M50: ='تقرير حركة يومية'!N50 -> 60 | N50: 600 | O50: 0 | P50: -600 | Q50: -10 | R50: _ | T50: 10 | AA50: 10 | AL50: 0
A51: ارز بلبن ساده | B51: ='تقرير حركة يومية'!F51 -> 0 | C51: 150 | D51: 30 | E51: =B51+C51-D51-G51 -> 90 | F51: ='تقرير حركة يومية'!I51 -> 5 | G51: 30 | L51: 35 | M51: ='تقرير حركة يومية'!N51 -> 25 | N51: 875 | O51: 0 | P51: -875 | Q51: -35 | R51: _ | T51: 30 | AA51: 150 | AL51: 0
A52: ارز بلبن مكس الصياد | B52: ='تقرير حركة يومية'!F52 -> 0 | C52: 0 | D52: -10 | E52: 0 | F52: ='تقرير حركة يومية'!I52 -> 0 | G52: 10 | L52: 10 | M52: ='تقرير حركة يومية'!N52 -> 60 | N52: 600 | O52: 0 | P52: -600 | Q52: -10 | R52: _ | T52: 10 | AL52: 0
A53: ارز اسبيشيال كنافة مانجو | B53: ='تقرير حركة يومية'!F53 -> 0 | C53: 0 | E53: 0 | F53: ='تقرير حركة يومية'!I53 -> 0 | G53: 0 | L53: 0 | M53: ='تقرير حركة يومية'!N53 -> 50 | N53: 0 | O53: 0 | P53: 0 | Q53: _ | R53: _ | AL53: 0
A54: ارز قنبلة فراوله | B54: ='تقرير حركة يومية'!F54 -> 0 | C54: 0 | E54: 0 | F54: ='تقرير حركة يومية'!I54 -> 0 | G54: 0 | L54: 0 | M54: ='تقرير حركة يومية'!N54 -> 65 | N54: 0 | O54: 0 | P54: 0 | Q54: _ | R54: _ | AL54: 0
A55: ارز قنبلة موز وكراميل | B55: ='تقرير حركة يومية'!F55 -> 0 | C55: 0 | E55: 0 | F55: ='تقرير حركة يومية'!I55 -> 0 | G55: 0 | L55: 0 | M55: ='تقرير حركة يومية'!N55 -> 60 | N55: 0 | O55: 0 | P55: 0 | Q55: _ | R55: _ | AL55: 0
A56: ارز قشطوطة سادة | B56: ='تقرير حركة يومية'!F56 -> 0 | C56: 30 | D56: 30 | E56: 0 | F56: ='تقرير حركة يومية'!I56 -> 0 | G56: 0 | L56: 0 | M56: ='تقرير حركة يومية'!N56 -> 1 | N56: 0 | O56: 0 | P56: 0 | Q56: _ | R56: _ | AA56: 30 | AL56: 0
A57: قشطوطة فراولة | B57: ='تقرير حركة يومية'!F57 -> 0 | C57: 0 | E57: 0 | F57: ='تقرير حركة يومية'!I57 -> 0 | G57: 0 | L57: 0 | M57: ='تقرير حركة يومية'!N57 -> 55 | N57: 0 | O57: 0 | P57: 0 | Q57: _ | R57: _ | AL57: 0
A58: قشطوطة كراميل | B58: ='تقرير حركة يومية'!F58 -> 0 | C58: 0 | E58: 0 | F58: ='تقرير حركة يومية'!I58 -> 0 | G58: 0 | L58: 0 | M58: ='تقرير حركة يومية'!N58 -> 50 | N58: 0 | O58: 0 | P58: 0 | Q58: _ | R58: _ | AL58: 0
A59: قشطوطه لوتس | B59: ='تقرير حركة يومية'!F59 -> 0 | C59: 0 | D59: -6 | E59: 0 | F59: ='تقرير حركة يومية'!I59 -> 4 | G59: 6 | L59: 10 | M59: ='تقرير حركة يومية'!N59 -> 60 | N59: 600 | O59: 0 | P59: -600 | Q59: -10 | R59: _ | T59: 6 | AL59: 0
A60: قشطوطه مانجو / فاكهة | B60: ='تقرير حركة يومية'!F60 -> 0 | C60: 0 | D60: -10 | E60: 0 | F60: ='تقرير حركة يومية'!I60 -> 3 | G60: 10 | L60: 13 | M60: ='تقرير حركة يومية'!N60 -> 60 | N60: 780 | O60: 0 | P60: -780 | Q60: -13 | R60: _ | T60: 10 | AL60: 0
A61: قشطوطه نوتيلا | B61: ='تقرير حركة يومية'!F61 -> 0 | C61: 0 | D61: -14 | E61: 0 | F61: ='تقرير حركة يومية'!I61 -> 10 | G61: 14 | L61: 24 | M61: ='تقرير حركة يومية'!N61 -> 60 | N61: 1440 | O61: 0 | P61: -1440 | Q61: -24 | R61: _ | T61: 14 | AL61: 0
A62: قشطوطة دندو | B62: ='تقرير حركة يومية'!F62 -> 0 | C62: 0 | E62: 0 | F62: ='تقرير حركة يومية'!I62 -> 0 | G62: 0 | L62: 0 | M62: ='تقرير حركة يومية'!N62 -> 60 | N62: 0 | O62: 0 | P62: 0 | Q62: _ | R62: _ | AL62: 0
A63: قشطوطة كراميل صواني | B63: ='تقرير حركة يومية'!F63 -> 0 | C63: 0 | E63: 0 | F63: ='تقرير حركة يومية'!I63 -> 0 | G63: 0 | L63: 0 | M63: ='تقرير حركة يومية'!N63 -> 1 | N63: 0 | O63: 0 | P63: 0 | Q63: _ | R63: _ | AL63: 0
A64: قشطوطة كريمة صواني | B64: ='تقرير حركة يومية'!F64 -> 0 | C64: 30 | D64: 30 | E64: =B64+C64-D64-G64 -> 0 | F64: ='تقرير حركة يومية'!I64 -> 0 | G64: 0 | L64: 0 | M64: ='تقرير حركة يومية'!N64 -> 1 | N64: 0 | O64: 0 | P64: 0 | Q64: _ | R64: _ | AB64: 30 | AL64: 0
A65: ايس كريم كافيتريا - خام عادي | B65: ='تقرير حركة يومية'!F65 -> 0 | C65: 0 | E65: 0 | F65: ='تقرير حركة يومية'!I65 -> 0 | G65: 0 | L65: 0 | M65: ='تقرير حركة يومية'!N65 -> 220 | N65: 0 | O65: 0 | P65: 0 | Q65: _ | R65: _ | AL65: 0
A66: ايس كريم كافيتريا - خام اسبيشيال | B66: ='تقرير حركة يومية'!F66 -> 0 | C66: 0 | E66: 0 | F66: ='تقرير حركة يومية'!I66 -> 0 | G66: 0 | L66: 0 | M66: ='تقرير حركة يومية'!N66 -> 280 | N66: 0 | O66: 0 | P66: 0 | Q66: _ | R66: _ | AL66: 0
A67: ايس كريم - خام عادي 180 | B67: ='تقرير حركة يومية'!F67 -> 0 | C67: 58.325 | E67: =B67+C67-D67-G67 -> 0 | F67: ='تقرير حركة يومية'!I67 -> 175.75 | G67: 58.325 | L67: 234.075 | M67: ='تقرير حركة يومية'!N67 -> 205 | N67: 47985.375 | O67: 0 | P67: -47985.375 | Q67: =IF(P67<0,P67/M67,"_") -> -234.075 | R67: _ | T67: 58.325 | AB67: =26.7-3+21.8+18.35-3.175-2.35 -> 58.325 | AL67: 0
A68: ايس كريم - خام اسبيشيال 250 | B68: ='تقرير حركة يومية'!F68 -> 0 | C68: 3.825 | E68: 0 | F68: ='تقرير حركة يومية'!I68 -> 7.5 | G68: 3.825 | L68: 11.325 | M68: ='تقرير حركة يومية'!N68 -> 308 | N68: 3488.1 | O68: 0 | P68: -3488.1 | Q68: -11.325 | R68: _ | T68: 3.825 | AB68: =4.825-1 -> 3.825 | AL68: 0
A69: كزرولة لبن ص 5.800 | B69: ='تقرير حركة يومية'!F69 -> 0 | C69: 0 | E69: 0 | F69: ='تقرير حركة يومية'!I69 -> 0 | G69: 0 | L69: 0 | M69: ='تقرير حركة يومية'!N69 -> 1 | N69: 0 | O69: 0 | P69: 0 | Q69: _ | R69: _ | AL69: 0
A70: كزرولة لبن ك 3.600 | B70: ='تقرير حركة يومية'!F70 -> 0 | C70: 0 | E70: 0 | F70: ='تقرير حركة يومية'!I70 -> 0 | G70: 0 | L70: 0 | M70: ='تقرير حركة يومية'!N70 -> 1 | N70: 0 | O70: 0 | P70: 0 | Q70: _ | R70: _ | AL70: 0
A71: كزرولة لبن ك 6.300 | B71: ='تقرير حركة يومية'!F71 -> 0 | C71: 0 | E71: 0 | F71: ='تقرير حركة يومية'!I71 -> 0 | G71: 0 | L71: 0 | M71: ='تقرير حركة يومية'!N71 -> 1 | N71: 0 | O71: 0 | P71: 0 | Q71: _ | R71: _ | AL71: 0
A72: كزرولة لبن ك 6.600 | B72: ='تقرير حركة يومية'!F72 -> 0 | C72: 81.75 | E72: 0 | F72: ='تقرير حركة يومية'!I72 -> 0 | G72: 81.75 | L72: 81.75 | M72: ='تقرير حركة يومية'!N72 -> 1 | N72: 81.75 | O72: 0 | P72: -81.75 | Q72: -81.75 | R72: _ | T72: 81.75 | AA72: =45.95-6.6 -> 39.35 | AB72: =49-6.6 -> 42.4 | AL72: 0
A73: مكسرات أيس | B73: ='تقرير حركة يومية'!F73 -> 85 | C73: =SUM(AA73:AG73) -> 50 | D73: 13 | E73: 122 | F73: ='تقرير حركة يومية'!I73 -> 0 | G73: 0 | L73: 0 | M73: ='تقرير حركة يومية'!N73 -> 1 | N73: 0 | O73: 0 | P73: 0 | Q73: _ | R73: _ | AB73: 50 | AL73: 0
A74: بسكوت اوريو مطحون فطير | B74: ='تقرير حركة يومية'!F74 -> 0 | C74: 0 | E74: 0 | F74: ='تقرير حركة يومية'!I74 -> 0.2 | G74: 0 | L74: 0.2 | M74: ='تقرير حركة يومية'!N74 -> 1 | N74: 0.2 | O74: =AL74-I74 -> 0 | P74: -0.2 | Q74: -0.2 | R74: _ | AL74: =AK74+AJ74+AI74 -> 0
A75: بسكوت لوتس مطحون فطير | B75: ='تقرير حركة يومية'!F75 -> 0 | C75: 0 | E75: =B75+C75-D75-G75 -> 0 | F75: ='تقرير حركة يومية'!I75 -> 0 | G75: =SUM(T75:X75)-Y75 -> 0 | L75: =G75+F75-H75-J75-K75 -> 0 | M75: ='تقرير حركة يومية'!N75 -> 1 | N75: =L75*M75 -> 0 | O75: 0 | P75: =O75-N75 -> 0 | Q75: =IF(P75<0,P75/M75,"_") -> _ | R75: =IF(P75>0,P75/M75,"_") -> _ | AL75: 0
A76: صوص شوكلت وايت فطير | B76: ='تقرير حركة يومية'!F76 -> 0 | C76: 0 | E76: 0 | F76: ='تقرير حركة يومية'!I76 -> 2.4 | G76: 0 | L76: 2.4 | M76: ='تقرير حركة يومية'!N76 -> 1 | N76: 2.4 | O76: 0 | P76: -2.4 | Q76: -2.4 | R76: _ | AL76: 0
A77: صوص نوتيلا فطير | B77: ='تقرير حركة يومية'!F77 -> 0 | C77: 0 | E77: 0 | F77: ='تقرير حركة يومية'!I77 -> 2.3 | G77: 0 | L77: 2.3 | M77: ='تقرير حركة يومية'!N77 -> 1 | N77: 2.3 | O77: 0 | P77: -2.3 | Q77: -2.3 | R77: _ | AL77: 0
A78: صوص لوتس فطير | B78: ='تقرير حركة يومية'!F78 -> 0 | C78: 0 | E78: 0 | F78: ='تقرير حركة يومية'!I78 -> 2 | G78: 0 | L78: 2 | M78: ='تقرير حركة يومية'!N78 -> 1 | N78: 2 | O78: 0 | P78: -2 | Q78: -2 | R78: _ | AL78: 0
A79: علب مكسرات فطير | B79: ='تقرير حركة يومية'!F79 -> 0 | C79: 0 | E79: 0 | F79: ='تقرير حركة يومية'!I79 -> 4 | G79: 0 | L79: 4 | M79: ='تقرير حركة يومية'!N79 -> 25 | N79: 100 | O79: 0 | P79: -100 | Q79: -4 | R79: _ | AL79: 0
A80: علب مكسرات ارز فرع | B80: ='تقرير حركة يومية'!F80 -> 87 | C80: 45 | D80: 30 | E80: =B80+C80-D80-G80 -> 102 | F80: ='تقرير حركة يومية'!I80 -> 0 | G80: 0 | L80: 0 | M80: ='تقرير حركة يومية'!N80 -> 25 | N80: 0 | O80: 0 | P80: 0 | Q80: _ | R80: _ | AB80: 45 | AL80: 0
A81: علب مكسرات بليلة | B81: ='تقرير حركة يومية'!F81 -> 0 | C81: 0 | E81: 0 | F81: ='تقرير حركة يومية'!I81 -> 0 | G81: 0 | L81: 0 | M81: ='تقرير حركة يومية'!N81 -> 1 | N81: 0 | O81: 0 | P81: 0 | Q81: _ | R81: _ | AL81: 0
A82: كيس مكسرات بليلة | B82: ='تقرير حركة يومية'!F82 -> 0 | C82: 0 | E82: 0 | F82: ='تقرير حركة يومية'!I82 -> 0 | G82: 0 | L82: 0 | M82: ='تقرير حركة يومية'!N82 -> 1 | N82: 0 | O82: 0 | P82: 0 | Q82: _ | R82: _ | AL82: 0
A83: مشبك دمياطي | B83: ='تقرير حركة يومية'!F83 -> 0 | C83: 0 | E83: 0 | F83: ='تقرير حركة يومية'!I83 -> 11 | G83: 0 | L83: 11 | M83: ='تقرير حركة يومية'!N83 -> 60 | N83: 660 | O83: 0 | P83: -660 | Q83: -11 | R83: _ | AL83: 0
A84: ساليزونات مشكله | B84: ='تقرير حركة يومية'!F84 -> 0 | C84: 0 | E84: 0 | F84: ='تقرير حركة يومية'!I84 -> 1.165 | G84: 0 | L84: 1.165 | M84: ='تقرير حركة يومية'!N84 -> 190 | N84: 221.35 | O84: 0 | P84: -221.35 | Q84: -1.165 | R84: _ | AL84: 0
A85: اسبيشيال لوكس 1/2 كيلو | B85: ='تقرير حركة يومية'!F85 -> 0 | C85: 0 | E85: 0 | F85: ='تقرير حركة يومية'!I85 -> 0 | G85: 0 | L85: 0 | M85: ='تقرير حركة يومية'!N85 -> 137.5 | N85: 0 | O85: 0 | P85: 0 | Q85: _ | R85: _ | AL85: 0
A86: اسبيشيال لوكس | B86: ='تقرير حركة يومية'!F86 -> 0 | C86: 6.66 | E86: 6.66 | F86: ='تقرير حركة يومية'!I86 -> 5.88 | G86: 0 | L86: 5.88 | M86: ='تقرير حركة يومية'!N86 -> 290 | N86: 1705.2 | O86: 0 | P86: -1705.2 | Q86: -5.88 | R86: _ | AC86: 6.66 | AL86: 0
A87: مشكل شعبيات | B87: ='تقرير حركة يومية'!F87 -> 0 | C87: 0 | E87: 0 | F87: ='تقرير حركة يومية'!I87 -> 0 | G87: 0 | L87: 0 | M87: ='تقرير حركة يومية'!N87 -> 150 | N87: 0 | O87: 0 | P87: 0 | Q87: _ | R87: _ | AL87: 0
A88: كنافه كريمه | B88: ='تقرير حركة يومية'!F88 -> 0 | C88: 0 | E88: 0 | F88: ='تقرير حركة يومية'!I88 -> 0 | G88: 0 | L88: 0 | M88: ='تقرير حركة يومية'!N88 -> 135 | N88: 0 | O88: 0 | P88: 0 | Q88: _ | R88: _ | AL88: 0
A89: كنافه مكسرات | B89: ='تقرير حركة يومية'!F89 -> 0 | C89: 0 | E89: 0 | F89: ='تقرير حركة يومية'!I89 -> 0.67 | G89: 0 | L89: 0.67 | M89: ='تقرير حركة يومية'!N89 -> 185 | N89: 123.95 | O89: 0 | P89: -123.95 | Q89: -0.67 | R89: _ | AL89: 0
A90: لينزا | B90: ='تقرير حركة يومية'!F90 -> 0 | C90: 0 | E90: 0 | F90: ='تقرير حركة يومية'!I90 -> 1.85 | G90: 0 | L90: 1.85 | M90: ='تقرير حركة يومية'!N90 -> 175 | N90: 323.75 | O90: 0 | P90: -323.75 | Q90: -1.85 | R90: _ | AL90: 0
A91: مكرونه | B91: ='تقرير حركة يومية'!F91 -> 0 | C91: 0 | E91: 0 | F91: ='تقرير حركة يومية'!I91 -> 0 | G91: 0 | L91: 0 | M91: ='تقرير حركة يومية'!N91 -> 130 | N91: 0 | O91: 0 | P91: 0 | Q91: _ | R91: _ | AL91: 0
A92: بسبوسه ساده | B92: ='تقرير حركة يومية'!F92 -> 0 | C92: 10.83 | D92: 0.31 | E92: 0 | F92: ='تقرير حركة يومية'!I92 -> 0 | G92: 10.52 | L92: 10.52 | M92: ='تقرير حركة يومية'!N92 -> 150 | N92: 1578 | O92: 0 | P92: -1578 | Q92: -10.52 | R92: _ | T92: 10.52 | AB92: =2.13+2.2+2.15+2.15+2.2 -> 10.83 | AL92: 0
A93: رواني سادة بالعسل | B93: ='تقرير حركة يومية'!F93 -> 0 | C93: 0 | E93: 0 | F93: ='تقرير حركة يومية'!I93 -> 0 | G93: 0 | L93: 0 | M93: ='تقرير حركة يومية'!N93 -> 180 | N93: =L93*M93 -> 0 | O93: 0 | P93: =O93-N93 -> 0 | Q93: =IF(P93<0,P93/M93,"_") -> _ | R93: =IF(P93>0,P93/M93,"_") -> _ | AL93: 0
A94: هريسه حشو مكسرات | B94: ='تقرير حركة يومية'!F94 -> 0 | C94: 0 | E94: 0 | F94: ='تقرير حركة يومية'!I94 -> 0.68 | G94: 0 | L94: 0.68 | M94: ='تقرير حركة يومية'!N94 -> 150 | N94: =L94*M94 -> 102 | O94: 0 | P94: =O94-N94 -> -102 | Q94: =IF(P94<0,P94/M94,"_") -> -0.68 | R94: =IF(P94>0,P94/M94,"_") -> _ | AL94: 0
A95: بسبوسه مكسرات | B95: ='تقرير حركة يومية'!F95 -> 0 | C95: 16.05 | E95: 0 | F95: ='تقرير حركة يومية'!I95 -> 0 | G95: 16.05 | L95: 16.05 | M95: ='تقرير حركة يومية'!N95 -> 185 | N95: =L95*M95 -> 2969.25 | O95: 0 | P95: =O95-N95 -> -2969.25 | Q95: =IF(P95<0,P95/M95,"_") -> -16.05 | R95: =IF(P95>0,P95/M95,"_") -> _ | T95: 16.05 | AB95: =2.3+2.3+2.28+2.3+2.27+2.3+2.3 -> 16.05 | AL95: 0
A96: بسبوسه فستق | B96: ='تقرير حركة يومية'!F96 -> 0 | C96: 0 | E96: 0 | F96: ='تقرير حركة يومية'!I96 -> 0 | G96: 0 | L96: 0 | M96: ='تقرير حركة يومية'!N96 -> 280 | N96: 0 | O96: 0 | P96: 0 | Q96: _ | R96: _ | AL96: 0
A97: قشطات / بقلاوة كريمة | B97: ='تقرير حركة يومية'!F97 -> 3.45 | C97: 46.025 | E97: 30.545 | F97: ='تقرير حركة يومية'!I97 -> 3.675 | G97: 18.93 | L97: 22.605 | M97: ='تقرير حركة يومية'!N97 -> 230 | N97: 5199.15 | O97: 0 | P97: -5199.15 | Q97: -22.605 | R97: _ | T97: 18.93 | AB97: 15.48 | AC97: =0.815+1.4+2.38+1.8+2.3+2+2+1.7+2.38+1.45+1.5+2.76+2.38+1.36+1.9+2.42 -> 30.545 | AL97: 0
A98: بلح شام قشطه /فواكهه | B98: ='تقرير حركة يومية'!F98 -> 0 | C98: 0 | E98: 0 | F98: ='تقرير حركة يومية'!I98 -> 0 | G98: 0 | L98: 0 | M98: ='تقرير حركة يومية'!N98 -> 230 | N98: =L98*M98 -> 0 | O98: 0 | P98: =O98-N98 -> 0 | Q98: =IF(P98<0,P98/M98,"_") -> _ | R98: =IF(P98>0,P98/M98,"_") -> _ | AL98: 0
A99: قطايف قشطة | B99: ='تقرير حركة يومية'!F99 -> 0 | C99: 0 | E99: 0 | F99: ='تقرير حركة يومية'!I99 -> 0 | G99: 0 | L99: 0 | M99: ='تقرير حركة يومية'!N99 -> 210 | N99: =L99*M99 -> 0 | O99: 0 | P99: =O99-N99 -> 0 | Q99: =IF(P99<0,P99/M99,"_") -> _ | R99: =IF(P99>0,P99/M99,"_") -> _ | AL99: 0
A100: بقلاوة مكسرات | B100: ='تقرير حركة يومية'!F100 -> 0 | C100: 4.13 | E100: 1.38 | F100: ='تقرير حركة يومية'!I100 -> 1.185 | G100: 2.75 | L100: 3.935 | M100: ='تقرير حركة يومية'!N100 -> 325 | N100: 1278.875 | O100: 0 | P100: -1278.875 | Q100: -3.935 | R100: _ | T100: 2.75 | AB100: =1.6+1.15 -> 2.75 | AC100: 1.38 | AL100: 0
A101: كنافة اساور تاج | B101: ='تقرير حركة يومية'!F101 -> 0 | C101: 0 | E101: 0 | F101: ='تقرير حركة يومية'!I101 -> 0 | G101: 0 | L101: 0 | M101: ='تقرير حركة يومية'!N101 -> 370 | N101: 0 | O101: 0 | P101: 0 | Q101: _ | R101: _ | AL101: 0
A102: كنافه سيخ بندق | B102: ='تقرير حركة يومية'!F102 -> 0 | C102: 0 | E102: 0 | F102: ='تقرير حركة يومية'!I102 -> 0 | G102: 0 | L102: 0 | M102: ='تقرير حركة يومية'!N102 -> 510 | N102: 0 | O102: 0 | P102: 0 | Q102: _ | R102: _ | AL102: 0
A103: كنافه سيخ ساده | B103: ='تقرير حركة يومية'!F103 -> 0 | C103: 0.69 | E103: 0 | F103: ='تقرير حركة يومية'!I103 -> 1.17 | G103: 0.69 | L103: 1.86 | M103: ='تقرير حركة يومية'!N103 -> 200 | N103: 372 | O103: 0 | P103: -372 | Q103: -1.86 | R103: _ | T103: 0.69 | AB103: 0.69 | AL103: 0
A104: كنافه عجوه | B104: ='تقرير حركة يومية'!F104 -> 0 | C104: 0 | E104: 0 | F104: ='تقرير حركة يومية'!I104 -> 0 | G104: 0 | L104: 0 | M104: ='تقرير حركة يومية'!N104 -> 230 | N104: 0 | O104: 0 | P104: 0 | Q104: _ | R104: _ | AL104: 0
A105: كنافه بورمه فستق | B105: ='تقرير حركة يومية'!F105 -> 0 | C105: 0 | E105: 0 | F105: ='تقرير حركة يومية'!I105 -> 0 | G105: 0 | L105: 0 | M105: ='تقرير حركة يومية'!N105 -> 650 | N105: 0 | O105: 0 | P105: 0 | Q105: _ | R105: _ | AL105: 0
A106: كنافه بورمه بندق | B106: ='تقرير حركة يومية'!F106 -> 0 | C106: 0 | E106: 0 | F106: ='تقرير حركة يومية'!I106 -> 0 | G106: 0 | L106: 0 | M106: ='تقرير حركة يومية'!N106 -> 500 | N106: 0 | O106: 0 | P106: 0 | Q106: _ | R106: _ | AL106: 0
A107: كنافه دمياطي | B107: ='تقرير حركة يومية'!F107 -> 0 | C107: 0 | E107: 0 | F107: ='تقرير حركة يومية'!I107 -> 0 | G107: 0 | L107: 0 | M107: ='تقرير حركة يومية'!N107 -> 420 | N107: 0 | O107: 0 | P107: 0 | Q107: _ | R107: _ | AL107: 0
A108: رموش / هريسه | B108: ='تقرير حركة يومية'!F108 -> 0 | C108: 1.7 | E108: 1.7 | F108: ='تقرير حركة يومية'!I108 -> 2.5 | G108: 0 | L108: 2.5 | M108: ='تقرير حركة يومية'!N108 -> 200 | N108: 500 | O108: 0 | P108: -500 | Q108: -2.5 | R108: _ | AC108: 1.7 | AL108: 0
A109: كـنـافـة تـمـر سـعـودي | B109: ='تقرير حركة يومية'!F109 -> 0 | C109: 0 | E109: 0 | F109: ='تقرير حركة يومية'!I109 -> 0 | G109: 0 | L109: 0 | M109: ='تقرير حركة يومية'!N109 -> 170 | N109: 0 | O109: 0 | P109: 0 | Q109: _ | R109: _ | AL109: 0
A110: رطب شو | B110: ='تقرير حركة يومية'!F110 -> 0 | C110: 0 | E110: 0 | F110: ='تقرير حركة يومية'!I110 -> 3 | G110: 0 | L110: 3 | M110: ='تقرير حركة يومية'!N110 -> 70 | N110: 210 | O110: 0 | P110: -210 | Q110: -3 | R110: _ | AL110: 0
A111: فورمه بسبوسه ساده | B111: ='تقرير حركة يومية'!F111 -> 0 | C111: 2 | E111: 2 | F111: ='تقرير حركة يومية'!I111 -> 0 | G111: 0 | L111: 0 | M111: ='تقرير حركة يومية'!N111 -> 130 | N111: 0 | O111: 0 | P111: 0 | Q111: _ | R111: _ | AC111: 2 | AL111: 0
A112: فورمه بسبوسه مكسرات | B112: ='تقرير حركة يومية'!F112 -> 0 | C112: 2 | E112: 2 | F112: ='تقرير حركة يومية'!I112 -> 0 | G112: 0 | L112: 0 | M112: ='تقرير حركة يومية'!N112 -> 155 | N112: 0 | O112: 0 | P112: 0 | Q112: _ | R112: _ | AC112: 2 | AL112: 0
A113: فورمة كنافة كريمة | B113: ='تقرير حركة يومية'!F113 -> 0 | C113: 2 | E113: 0 | F113: ='تقرير حركة يومية'!I113 -> 0 | G113: 2 | L113: 2 | M113: ='تقرير حركة يومية'!N113 -> 135 | N113: 270 | O113: 0 | P113: -270 | Q113: -2 | R113: _ | T113: 2 | AB113: 2 | AL113: 0
A114: فورمه كنافه مكسرات | B114: ='تقرير حركة يومية'!F114 -> 0 | C114: 2 | E114: 0 | F114: ='تقرير حركة يومية'!I114 -> 0 | G114: 2 | L114: 2 | M114: ='تقرير حركة يومية'!N114 -> 185 | N114: 370 | O114: 0 | P114: -370 | Q114: -2 | R114: _ | T114: 2 | AB114: 2 | AL114: 0
A115: مشكل مقليات | B115: ='تقرير حركة يومية'!F115 -> 0 | C115: 0 | E115: 0 | F115: ='تقرير حركة يومية'!I115 -> 0 | G115: 0 | L115: 0 | M115: ='تقرير حركة يومية'!N115 -> 170 | N115: 0 | O115: 0 | P115: 0 | Q115: _ | R115: _ | AL115: 0
A116: صوابع زينب / زلابيا | B116: ='تقرير حركة يومية'!F116 -> 0 | C116: 0 | E116: 0 | F116: ='تقرير حركة يومية'!I116 -> 0 | G116: 0 | L116: 0 | M116: ='تقرير حركة يومية'!N116 -> 170 | N116: =L116*M116 -> 0 | O116: 0 | P116: =O116-N116 -> 0 | Q116: =IF(P116<0,P116/M116,"_") -> _ | R116: =IF(P116>0,P116/M116,"_") -> _ | AL116: 0
A117: بلح شام ساده | B117: ='تقرير حركة يومية'!F117 -> 0 | C117: 0 | E117: 0 | F117: ='تقرير حركة يومية'!I117 -> 0 | G117: 0 | L117: 0 | M117: ='تقرير حركة يومية'!N117 -> 170 | N117: 0 | O117: 0 | P117: 0 | Q117: _ | R117: _ | AL117: 0
A118: أصابع السلطان | B118: ='تقرير حركة يومية'!F118 -> 0 | C118: 0 | E118: 0 | F118: ='تقرير حركة يومية'!I118 -> 0 | G118: 0 | L118: 0 | M118: ='تقرير حركة يومية'!N118 -> 170 | N118: =L118*M118 -> 0 | O118: 0 | P118: =O118-N118 -> 0 | Q118: =IF(P118<0,P118/M118,"_") -> _ | R118: =IF(P118>0,P118/M118,"_") -> _ | AL118: 0
A119: قطايف مكسرات | B119: ='تقرير حركة يومية'!F119 -> 0 | C119: 0 | E119: 0 | F119: ='تقرير حركة يومية'!I119 -> 0 | G119: 0 | L119: 0 | M119: ='تقرير حركة يومية'!N119 -> 170 | N119: 0 | O119: 0 | P119: 0 | Q119: _ | R119: =IF(P119>0,P119/M119,"_") -> _ | AL119: 0
A120: بغاشا | B120: ='تقرير حركة يومية'!F120 -> 0 | C120: 0 | E120: 0 | F120: ='تقرير حركة يومية'!I120 -> 0 | G120: 0 | L120: 0 | M120: ='تقرير حركة يومية'!N120 -> 200 | N120: 0 | O120: 0 | P120: 0 | Q120: _ | R120: =IF(P120>0,P120/M120,"_") -> _ | AL120: 0
A121: خبز دايت | B121: ='تقرير حركة يومية'!F121 -> 0 | C121: 0 | E121: 0 | F121: ='تقرير حركة يومية'!I121 -> 0 | G121: 0 | L121: 0 | M121: ='تقرير حركة يومية'!N121 -> 40 | N121: 0 | O121: 0 | P121: 0 | Q121: _ | R121: =IF(P121>0,P121/M121,"_") -> _ | AL121: 0
A122: ميني بان 1/2 كيلو | B122: ='تقرير حركة يومية'!F122 -> 0 | C122: 5 | E122: 5 | F122: ='تقرير حركة يومية'!I122 -> 0 | G122: 0 | L122: 0 | M122: ='تقرير حركة يومية'!N122 -> 98 | N122: 0 | O122: 0 | P122: 0 | Q122: _ | R122: =IF(P122>0,P122/M122,"_") -> _ | AC122: 5 | AL122: 0
A123: ميني بان | B123: ='تقرير حركة يومية'!F123 -> 0 | C123: 0 | E123: 0 | F123: ='تقرير حركة يومية'!I123 -> 0 | G123: 0 | L123: 0 | M123: ='تقرير حركة يومية'!N123 -> 195 | N123: 0 | O123: 0 | P123: 0 | Q123: _ | R123: _ | AL123: 0
A124: ميني بيتزا | B124: ='تقرير حركة يومية'!F124 -> 0 | C124: 5 | E124: 5 | F124: ='تقرير حركة يومية'!I124 -> 1 | G124: 0 | L124: 1 | M124: ='تقرير حركة يومية'!N124 -> 27 | N124: 27 | O124: 0 | P124: -27 | Q124: -1 | R124: _ | AC124: 5 | AL124: 0
A125: مينى ديب | B125: ='تقرير حركة يومية'!F125 -> 0 | C125: 3 | E125: 3 | F125: ='تقرير حركة يومية'!I125 -> 0 | G125: 0 | L125: 0 | M125: ='تقرير حركة يومية'!N125 -> 85 | N125: 0 | O125: 0 | P125: 0 | Q125: _ | R125: _ | AC125: 3 | AL125: 0
A126: حوادق (كرواسون كيري) | B126: ='تقرير حركة يومية'!F126 -> 0 | C126: 0 | E126: 0 | F126: ='تقرير حركة يومية'!I126 -> 2 | G126: 0 | L126: 2 | M126: ='تقرير حركة يومية'!N126 -> 27 | N126: 54 | O126: 0 | P126: -54 | Q126: -2 | R126: _ | AL126: 0
A127: كيك شاى 1/2 ك | B127: ='تقرير حركة يومية'!F127 -> 0 | C127: 0 | E127: 0 | F127: ='تقرير حركة يومية'!I127 -> 0 | G127: 0 | L127: 0 | M127: ='تقرير حركة يومية'!N127 -> 60 | N127: 0 | O127: 0 | P127: 0 | Q127: _ | R127: _ | AL127: 0
A128: قالب كيك | B128: ='تقرير حركة يومية'!F128 -> 0 | C128: 0 | E128: 0 | F128: ='تقرير حركة يومية'!I128 -> 3 | G128: 0 | L128: 3 | M128: ='تقرير حركة يومية'!N128 -> 50 | N128: 150 | O128: 0 | P128: -150 | Q128: -3 | R128: _ | AL128: 0
A129: قراقيش ساده /رايب | B129: ='تقرير حركة يومية'!F129 -> 0 | C129: 15 | E129: 0 | F129: ='تقرير حركة يومية'!I129 -> 2 | G129: 15 | L129: 17 | M129: ='تقرير حركة يومية'!N129 -> 95 | N129: 1615 | O129: 0 | P129: -1615 | Q129: -17 | R129: _ | T129: 15 | AA129: 10 | AB129: 5 | AL129: 0
A130: قراقيش عجوه | B130: ='تقرير حركة يومية'!F130 -> 0 | C130: 0 | E130: 0 | F130: ='تقرير حركة يومية'!I130 -> 7 | G130: 0 | L130: 7 | M130: ='تقرير حركة يومية'!N130 -> 110 | N130: 770 | O130: 0 | P130: -770 | Q130: -7 | R130: _ | AL130: 0
A131: معمول عجوة | B131: ='تقرير حركة يومية'!F131 -> 0 | C131: 0 | E131: 0 | F131: ='تقرير حركة يومية'!I131 -> 0 | G131: 0 | L131: 0 | M131: ='تقرير حركة يومية'!N131 -> 110 | N131: 0 | O131: 0 | P131: 0 | Q131: _ | R131: _ | AL131: 0
A132: بسكوتات | B132: ='تقرير حركة يومية'!F132 -> 0 | C132: 0 | E132: 0 | F132: ='تقرير حركة يومية'!I132 -> 22 | G132: 0 | L132: 22 | M132: ='تقرير حركة يومية'!N132 -> 120 | N132: 2640 | O132: 0 | P132: -2640 | Q132: -22 | R132: _ | AL132: 0
A133: بسكوت كوكيز/شوكلت/زبيب/ بالمية | B133: ='تقرير حركة يومية'!F133 -> 0 | C133: 10 | E133: 0 | F133: ='تقرير حركة يومية'!I133 -> 16 | G133: 10 | L133: 26 | M133: ='تقرير حركة يومية'!N133 -> 150 | N133: 3900 | O133: 0 | P133: -3900 | Q133: -26 | R133: _ | T133: 10 | AA133: 10 | AL133: 0
A134: كب كوكيز | B134: ='تقرير حركة يومية'!F134 -> 0 | C134: 0 | E134: =B134+C134-D134-G134 -> 0 | F134: ='تقرير حركة يومية'!I134 -> 1 | G134: =SUM(T134:X134)-Y134 -> 0 | L134: 1 | M134: 35 | N134: 35 | O134: =AL134-I134 -> 0 | P134: -35 | Q134: -1 | R134: =IF(P134>0,P134/M134,"_") -> _
A135: سابيله / غريبه / بيتى فور | B135: ='تقرير حركة يومية'!F135 -> 0 | C135: 0 | E135: =B135+C135-D135-G135 -> 0 | F135: ='تقرير حركة يومية'!I135 -> 29 | G135: =SUM(T135:X135)-Y135 -> 0 | L135: 29 | M135: ='تقرير حركة يومية'!N135 -> 150 | N135: 4350 | O135: =AL135-I135 -> 0 | P135: -4350 | Q135: -29 | R135: =IF(P135>0,P135/M135,"_") -> _ | AL135: 0
A136: كريسينا | B136: ='تقرير حركة يومية'!F136 -> 0 | C136: 0 | E136: =B136+C136-D136-G136 -> 0 | F136: ='تقرير حركة يومية'!I136 -> 0 | G136: =SUM(T136:X136)-Y136 -> 0 | L136: 0 | M136: ='تقرير حركة يومية'!N136 -> 60 | N136: =L136*M136 -> 0 | O136: =AL136-I136 -> 0 | P136: =O136-N136 -> 0 | Q136: =IF(P136<0,P136/M136,"_") -> _ | R136: =IF(P136>0,P136/M136,"_") -> _ | AL136: 0
A137: باتون ساليه | B137: ='تقرير حركة يومية'!F137 -> 0 | C137: 5 | E137: 0 | F137: ='تقرير حركة يومية'!I137 -> 3 | G137: 5 | L137: 8 | M137: ='تقرير حركة يومية'!N137 -> 55 | N137: 440 | O137: 0 | P137: -440 | Q137: -8 | R137: _ | T137: 5 | AA137: 5 | AL137: 0
A138: برازق | B138: ='تقرير حركة يومية'!F138 -> 0 | C138: =SUM(AA138:AG138) -> 0 | E138: 0 | F138: ='تقرير حركة يومية'!I138 -> 0 | G138: 0 | L138: 0 | M138: ='تقرير حركة يومية'!N138 -> 150 | N138: 0 | O138: 0 | P138: 0 | Q138: _ | R138: _ | AL138: 0
A139: كحك ساده | B139: ='تقرير حركة يومية'!F139 -> 0 | C139: 0 | E139: 0 | F139: ='تقرير حركة يومية'!I139 -> 10 | G139: 0 | L139: 10 | M139: ='تقرير حركة يومية'!N139 -> 135 | N139: 1350 | O139: 0 | P139: -1350 | Q139: -10 | R139: _ | AL139: =AK139+AJ139+AI139 -> 0
A140: كحك عين جمل | B140: ='تقرير حركة يومية'!F140 -> 0 | C140: 0 | E140: 0 | F140: ='تقرير حركة يومية'!I140 -> 7 | G140: 0 | L140: 7 | M140: ='تقرير حركة يومية'!N140 -> 145 | N140: 1015 | O140: 0 | P140: -1015 | Q140: -7 | R140: _ | AL140: 0
A141: كحك فستق | B141: ='تقرير حركة يومية'!F141 -> 0 | C141: 0 | E141: 0 | F141: ='تقرير حركة يومية'!I141 -> 0 | G141: 0 | L141: =G141+F141-H141-J141-K141 -> 0 | M141: ='تقرير حركة يومية'!N141 -> 195 | N141: 0 | O141: 0 | P141: 0 | Q141: _ | R141: _ | AL141: 0
A142: كحك مكسرات | B142: ='تقرير حركة يومية'!F142 -> 0 | C142: 0 | E142: 0 | F142: ='تقرير حركة يومية'!I142 -> 1 | G142: 0 | L142: 1 | M142: ='تقرير حركة يومية'!N142 -> 145 | N142: 145 | O142: 0 | P142: -145 | Q142: -1 | R142: _ | AL142: 0
A143: كحك ملبن ساده | B143: ='تقرير حركة يومية'!F143 -> 0 | C143: 0 | E143: 0 | F143: ='تقرير حركة يومية'!I143 -> 3 | G143: 0 | L143: 3 | M143: ='تقرير حركة يومية'!N143 -> 115 | N143: 345 | O143: 0 | P143: -345 | Q143: -3 | R143: _ | AL143: 0
A144: امبلاج | B144: ='تقرير حركة يومية'!F144 -> 0 | C144: 0 | E144: 0 | F144: ='تقرير حركة يومية'!I144 -> 14970 | G144: 0 | L144: 14970 | M144: ='تقرير حركة يومية'!N144 -> 1 | N144: 14970 | O144: 0 | P144: -14970 | Q144: -14970 | R144: _ | AL144: 0
A145: شيكولاته ميكس الصياد | B145: ='تقرير حركة يومية'!F145 -> 0 | C145: 0 | E145: 0 | F145: ='تقرير حركة يومية'!I145 -> 4 | G145: 0 | L145: 4 | M145: ='تقرير حركة يومية'!N145 -> 400 | N145: 1600 | O145: 0 | P145: -1600 | Q145: -4 | R145: _ | AL145: 0
A146: علبة التوفير 800. جرام حلاوة مولد | B146: ='تقرير حركة يومية'!F146 -> 0 | C146: 0 | E146: 0 | F146: ='تقرير حركة يومية'!I146 -> 0 | G146: 0 | L146: 0 | M146: ='تقرير حركة يومية'!N146 -> 155 | N146: 0 | O146: 0 | P146: 0 | Q146: _ | R146: _ | AL146: 0
A147: علبة مشكل 1 ك فيستفال | B147: ='تقرير حركة يومية'!F147 -> 0 | C147: 0 | E147: 0 | F147: ='تقرير حركة يومية'!I147 -> 0 | G147: 0 | L147: 0 | M147: ='تقرير حركة يومية'!N147 -> 195 | N147: 0 | O147: 0 | P147: 0 | Q147: _ | R147: _ | AL147: 0
A148: علبة 1.5 ك مشكل كلاسيك | B148: ='تقرير حركة يومية'!F148 -> 0 | C148: 0 | E148: 0 | F148: ='تقرير حركة يومية'!I148 -> 0 | G148: 0 | L148: 0 | M148: ='تقرير حركة يومية'!N148 -> 255 | N148: 0 | O148: 0 | P148: 0 | Q148: _ | R148: _ | AL148: 0
A149: علبة مشكل كرنفال صاج 1.5 ك | B149: ='تقرير حركة يومية'!F149 -> 0 | C149: 0 | E149: 0 | F149: ='تقرير حركة يومية'!I149 -> 0 | G149: 0 | L149: 0 | M149: ='تقرير حركة يومية'!N149 -> 315 | N149: 0 | O149: 0 | P149: 0 | Q149: _ | R149: _ | AL149: 0
A150: علبة مكسات 1.5 ك | B150: ='تقرير حركة يومية'!F150 -> 0 | C150: 0 | E150: 0 | F150: ='تقرير حركة يومية'!I150 -> 0 | G150: 0 | L150: 0 | M150: ='تقرير حركة يومية'!N150 -> 350 | N150: 0 | O150: 0 | P150: 0 | Q150: _ | R150: _ | AL150: 0
A151: علبة جواهر 1.5 ك | B151: ='تقرير حركة يومية'!F151 -> 0 | C151: 0 | E151: 0 | F151: ='تقرير حركة يومية'!I151 -> 0 | G151: 0 | L151: 0 | M151: ='تقرير حركة يومية'!N151 -> 365 | N151: 0 | O151: 0 | P151: 0 | Q151: _ | R151: _ | AL151: 0
A152: علبة جزرية سوداني 1/2 ك | B152: ='تقرير حركة يومية'!F152 -> 0 | C152: 0 | E152: 0 | F152: ='تقرير حركة يومية'!I152 -> 0 | G152: 0 | L152: 0 | M152: ='تقرير حركة يومية'!N152 -> 55 | N152: 0 | O152: 0 | P152: 0 | Q152: _ | R152: _ | AL152: 0
A153: علبة مشكل فرحة المولد 1.5 ك | B153: ='تقرير حركة يومية'!F153 -> 0 | C153: 0 | E153: 0 | F153: ='تقرير حركة يومية'!I153 -> 0 | G153: 0 | L153: 0 | M153: ='تقرير حركة يومية'!N153 -> 305 | N153: 0 | O153: 0 | P153: 0 | Q153: _ | R153: _ | AL153: 0
A154: علبة الليلة الكبيرة 2.2 ك | B154: ='تقرير حركة يومية'!F154 -> 0 | C154: 0 | E154: 0 | F154: ='تقرير حركة يومية'!I154 -> 0 | G154: 0 | L154: 0 | M154: ='تقرير حركة يومية'!N154 -> 680 | N154: 0 | O154: 0 | P154: 0 | Q154: _ | R154: _ | AL154: 0
A155: علبة كنوز 2.5 ك | B155: ='تقرير حركة يومية'!F155 -> 0 | C155: 0 | E155: 0 | F155: ='تقرير حركة يومية'!I155 -> 0 | G155: 0 | L155: 0 | M155: ='تقرير حركة يومية'!N155 -> 890 | N155: 0 | O155: 0 | P155: 0 | Q155: _ | R155: _ | AL155: 0
A156: علبة مشكل علف 1/2 ك | B156: ='تقرير حركة يومية'!F156 -> 0 | C156: 0 | E156: 0 | F156: ='تقرير حركة يومية'!I156 -> 0 | G156: 0 | L156: 0 | M156: ='تقرير حركة يومية'!N156 -> 97.5 | N156: 0 | O156: 0 | P156: 0 | Q156: _ | R156: _ | AL156: 0
A157: علبة مشكل علف 1 ك | B157: ='تقرير حركة يومية'!F157 -> 0 | C157: 0 | E157: 0 | F157: ='تقرير حركة يومية'!I157 -> 0 | G157: 0 | L157: 0 | M157: ='تقرير حركة يومية'!N157 -> 195 | N157: 0 | O157: 0 | P157: 0 | Q157: _ | R157: _ | AL157: 0
A158: علبة علف سوداني 1/2 ك | B158: ='تقرير حركة يومية'!F158 -> 0 | C158: 0 | E158: 0 | F158: ='تقرير حركة يومية'!I158 -> 0 | G158: 0 | L158: 0 | M158: ='تقرير حركة يومية'!N158 -> 97.5 | N158: 0 | O158: 0 | P158: 0 | Q158: _ | R158: _ | AL158: 0
A159: علبة قرص حمصية 1/2 ك | B159: ='تقرير حركة يومية'!F159 -> 0 | C159: 0 | E159: 0 | F159: ='تقرير حركة يومية'!I159 -> 0 | G159: 0 | L159: 0 | M159: ='تقرير حركة يومية'!N159 -> 65 | N159: 0 | O159: 0 | P159: 0 | Q159: _ | R159: _ | AL159: 0
A160: علبة مشكل مربات 1/2 ك | B160: ='تقرير حركة يومية'!F160 -> 0 | C160: 0 | E160: 0 | F160: ='تقرير حركة يومية'!I160 -> 0 | G160: 0 | L160: 0 | M160: ='تقرير حركة يومية'!N160 -> 135 | N160: 0 | O160: 0 | P160: 0 | Q160: _ | R160: _ | AL160: 0
A161: قشطة مارشيملو | B161: ='تقرير حركة يومية'!F161 -> 0 | C161: 0 | E161: 0 | F161: ='تقرير حركة يومية'!I161 -> 0 | G161: 0 | L161: 0 | M161: ='تقرير حركة يومية'!N161 -> 180 | N161: 0 | O161: 0 | P161: 0 | Q161: _ | R161: _ | AL161: 0
A162: علبة ملبن فواكه 1/2 ك | B162: ='تقرير حركة يومية'!F162 -> 0 | C162: 0 | E162: 0 | F162: ='تقرير حركة يومية'!I162 -> 2 | G162: 0 | L162: 2 | M162: ='تقرير حركة يومية'!N162 -> 50 | N162: 100 | O162: 0 | P162: -100 | Q162: -2 | R162: _ | AL162: 0
A163: علبة نوجا سوداني 1/4 ك | B163: ='تقرير حركة يومية'!F163 -> 0 | C163: 0 | E163: 0 | F163: ='تقرير حركة يومية'!I163 -> 0 | G163: 0 | L163: 0 | M163: ='تقرير حركة يومية'!N163 -> 65 | N163: 0 | O163: 0 | P163: 0 | Q163: _ | R163: _ | AL163: 0
A164: علبة ملبن حبل عين جمل 1/2 ك | B164: ='تقرير حركة يومية'!F164 -> 0 | C164: 0 | E164: 0 | F164: ='تقرير حركة يومية'!I164 -> 1.24 | G164: 0 | L164: 1.24 | M164: ='تقرير حركة يومية'!N164 -> 460 | N164: 570.4 | O164: 0 | P164: -570.4 | Q164: -1.24 | R164: _ | AL164: 0
A165: علبة بندقية 1/4 ك | B165: ='تقرير حركة يومية'!F165 -> 0 | C165: 0 | E165: 0 | F165: ='تقرير حركة يومية'!I165 -> 0 | G165: 0 | L165: 0 | M165: ='تقرير حركة يومية'!N165 -> 245 | N165: 0 | O165: 0 | P165: 0 | Q165: _ | R165: _ | AL165: 0
A166: علبة لوزية 1/4 ك | B166: ='تقرير حركة يومية'!F166 -> 0 | C166: 0 | E166: 0 | F166: ='تقرير حركة يومية'!I166 -> 0 | G166: 0 | L166: 0 | M166: ='تقرير حركة يومية'!N166 -> 185 | N166: 0 | O166: 0 | P166: 0 | Q166: _ | R166: _ | AL166: 0
A167: علبة القرمشة 1/2 ك | B167: ='تقرير حركة يومية'!F167 -> 0 | C167: 0 | E167: 0 | F167: ='تقرير حركة يومية'!I167 -> 0 | G167: 0 | L167: 0 | M167: ='تقرير حركة يومية'!N167 -> 97.5 | N167: 0 | O167: 0 | P167: 0 | Q167: _ | R167: _ | AL167: 0
A168: علبة شيكولاته مشكلة 650 جم | B168: ='تقرير حركة يومية'!F168 -> 0 | C168: 0 | E168: 0 | F168: ='تقرير حركة يومية'!I168 -> 0 | G168: 0 | L168: 0 | M168: ='تقرير حركة يومية'!N168 -> 165 | N168: =L168*M168 -> 0 | O168: =AL168-I168 -> 0 | P168: =O168-N168 -> 0 | Q168: =IF(P168<0,P168/M168,"_") -> _ | AL168: 0
A169: كنافة مانجو كبير / بولة مركب | B169: ='تقرير حركة يومية'!F169 -> 0 | C169: 0 | E169: 0 | F169: ='تقرير حركة يومية'!I169 -> 0 | G169: 0 | L169: 0 | M169: ='تقرير حركة يومية'!N169 -> 175 | N169: 0 | O169: 0 | P169: 0 | Q169: _ | R169: =IF(P169>0,P169/M169,"_") -> _ | AL169: 0
A170: كنافة مانجو ديو نوتيلا وسط | B170: ='تقرير حركة يومية'!F170 -> 0 | C170: 0 | E170: 0 | F170: ='تقرير حركة يومية'!I170 -> 0 | G170: 0 | L170: 0 | M170: ='تقرير حركة يومية'!N170 -> 155 | N170: 0 | O170: 0 | P170: 0 | Q170: _ | R170: _ | AL170: 0
A171: كنافة مانجو ديو نوتيلا كبير | B171: ='تقرير حركة يومية'!F171 -> 0 | C171: 0 | E171: 0 | F171: ='تقرير حركة يومية'!I171 -> 0 | G171: 0 | L171: 0 | M171: ='تقرير حركة يومية'!N171 -> 260 | N171: 0 | O171: 0 | P171: 0 | Q171: _ | R171: _ | AL171: 0
A172: قشطوطه دبي | B172: ='تقرير حركة يومية'!F172 -> 0 | C172: 0 | E172: 0 | F172: ='تقرير حركة يومية'!I172 -> 0 | G172: 0 | L172: 0 | M172: ='تقرير حركة يومية'!N172 -> 50 | N172: 0 | O172: 0 | P172: 0 | Q172: _ | R172: _ | AL172: 0
A173: اساتوك | B173: ='تقرير حركة يومية'!F173 -> 0 | C173: 0 | E173: 0 | F173: ='تقرير حركة يومية'!I173 -> 0 | G173: 0 | L173: 0 | M173: ='تقرير حركة يومية'!N173 -> 90 | N173: 0 | O173: 0 | P173: 0 | Q173: _ | R173: _ | AL173: 0
A174: كب كنافة صغير | B174: ='تقرير حركة يومية'!F174 -> 0 | C174: 0 | E174: 0 | F174: ='تقرير حركة يومية'!I174 -> 0 | G174: 0 | L174: 0 | M174: ='تقرير حركة يومية'!N174 -> 35 | N174: 0 | O174: 0 | P174: 0 | Q174: _ | R174: _ | AL174: 0
A175: عصير سوبيا | B175: ='تقرير حركة يومية'!F175 -> 0 | C175: 10 | E175: 0 | F175: ='تقرير حركة يومية'!I175 -> 2 | G175: 10 | L175: 12 | M175: ='تقرير حركة يومية'!N175 -> 20 | N175: 240 | O175: 0 | P175: -240 | Q175: -12 | R175: _ | T175: 10 | AA175: 10 | AL175: 0
A176: عصير مانجو فريش | B176: ='تقرير حركة يومية'!F176 -> 0 | C176: 5 | E176: 0 | F176: ='تقرير حركة يومية'!I176 -> 9 | G176: 5 | L176: 14 | M176: ='تقرير حركة يومية'!N176 -> 35 | N176: 490 | O176: 0 | P176: -490 | Q176: -14 | R176: _ | T176: 5 | AA176: 5 | AL176: 0
A177: عصير تمر هندى | B177: ='تقرير حركة يومية'!F177 -> 0 | C177: 0 | E177: 0 | F177: ='تقرير حركة يومية'!I177 -> 0 | G177: 0 | L177: 0 | M177: ='تقرير حركة يومية'!N177 -> 25 | N177: 0 | O177: 0 | P177: 0 | Q177: _ | R177: _ | AL177: 0
A178: عصير دووم | B178: ='تقرير حركة يومية'!F178 -> 0 | C178: 0 | E178: 0 | F178: ='تقرير حركة يومية'!I178 -> 0 | G178: 0 | L178: 0 | M178: ='تقرير حركة يومية'!N178 -> 25 | N178: 0 | O178: 0 | P178: 0 | Q178: _ | R178: _ | AL178: 0
A179: عصير عناب | B179: ='تقرير حركة يومية'!F179 -> 0 | C179: 0 | E179: 0 | F179: ='تقرير حركة يومية'!I179 -> 0 | G179: 0 | L179: 0 | M179: ='تقرير حركة يومية'!N179 -> 25 | N179: 0 | O179: 0 | P179: 0 | Q179: _ | R179: _ | AL179: 0
A180: عصير بطيخ | B180: ='تقرير حركة يومية'!F180 -> 0 | C180: 0 | E180: 0 | F180: ='تقرير حركة يومية'!I180 -> 0 | G180: 0 | L180: 0 | M180: ='تقرير حركة يومية'!N180 -> 35 | N180: 0 | O180: 0 | P180: 0 | Q180: _ | R180: _ | AL180: 0
A181: عصير بلح | B181: ='تقرير حركة يومية'!F181 -> 0 | C181: 0 | E181: 0 | F181: ='تقرير حركة يومية'!I181 -> 0 | G181: 0 | L181: 0 | M181: ='تقرير حركة يومية'!N181 -> 35 | N181: 0 | O181: 0 | P181: 0 | Q181: _ | R181: _ | AL181: 0
A182: عصير خروب | B182: ='تقرير حركة يومية'!F182 -> 0 | C182: 0 | E182: 0 | F182: ='تقرير حركة يومية'!I182 -> 0 | G182: 0 | L182: 0 | M182: ='تقرير حركة يومية'!N182 -> 25 | N182: 0 | O182: 0 | P182: 0 | Q182: _ | R182: _ | AL182: 0
A183: عصير توت | B183: ='تقرير حركة يومية'!F183 -> 0 | C183: 0 | E183: 0 | F183: ='تقرير حركة يومية'!I183 -> 0 | G183: 0 | L183: 0 | M183: ='تقرير حركة يومية'!N183 -> 35 | N183: 0 | O183: 0 | P183: 0 | Q183: _ | R183: _ | AL183: 0
A184: عصير فراوله | B184: ='تقرير حركة يومية'!F184 -> 0 | C184: 0 | E184: 0 | F184: ='تقرير حركة يومية'!I184 -> 0 | G184: 0 | L184: 0 | M184: ='تقرير حركة يومية'!N184 -> 35 | N184: 0 | O184: 0 | P184: 0 | Q184: _ | R184: _ | AL184: 0
A185: وجــبــة بـطـيـخ | B185: ='تقرير حركة يومية'!F185 -> 0 | C185: 0 | E185: 0 | F185: ='تقرير حركة يومية'!I185 -> 0 | G185: 0 | L185: 0 | M185: ='تقرير حركة يومية'!N185 -> 1 | N185: 0 | O185: 0 | P185: 0 | Q185: _ | R185: _ | AL185: 0
A186: وجــبــة بـلـح | B186: ='تقرير حركة يومية'!F186 -> 0 | C186: 0 | E186: 0 | F186: ='تقرير حركة يومية'!I186 -> 0 | G186: 0 | L186: 0 | M186: ='تقرير حركة يومية'!N186 -> 1 | N186: 0 | O186: 0 | P186: 0 | Q186: _ | R186: _ | AL186: 0
A187: كنافه بين نارين كريمة | B187: ='تقرير حركة يومية'!F187 -> 0 | C187: 0 | E187: 0 | F187: ='تقرير حركة يومية'!I187 -> 0 | G187: 0 | L187: 0 | M187: ='تقرير حركة يومية'!N187 -> 20 | N187: =L187*M187 -> 0 | O187: 0 | P187: =O187-N187 -> 0 | Q187: =IF(P187<0,P187/M187,"_") -> _ | R187: _ | AL187: 0
A188: كنافه بين نارين كريمة لوتس | B188: ='تقرير حركة يومية'!F188 -> 0 | C188: 0 | E188: 0 | F188: ='تقرير حركة يومية'!I188 -> 0 | G188: 0 | L188: 0 | M188: ='تقرير حركة يومية'!N188 -> 25 | N188: 0 | O188: 0 | P188: 0 | Q188: _ | R188: _ | AL188: 0
A189: كنافه بين نارين نوتيلا | B189: ='تقرير حركة يومية'!F189 -> 0 | C189: 0 | E189: 0 | F189: ='تقرير حركة يومية'!I189 -> 0 | G189: 0 | L189: 0 | M189: ='تقرير حركة يومية'!N189 -> 25 | N189: 0 | O189: 0 | P189: 0 | Q189: _ | R189: _ | AL189: 0
A190: كسكسي بلبن ومكسرات | B190: ='تقرير حركة يومية'!F190 -> 0 | C190: 0 | E190: 0 | F190: ='تقرير حركة يومية'!I190 -> 0 | G190: 0 | L190: 0 | M190: ='تقرير حركة يومية'!N190 -> 50 | N190: 0 | O190: 0 | P190: 0 | Q190: _ | R190: _ | AL190: 0
A191: بسبوسة بين نارين بالقشطة | B191: ='تقرير حركة يومية'!F191 -> 0 | C191: 0 | E191: 0 | F191: ='تقرير حركة يومية'!I191 -> 0 | G191: 0 | L191: 0 | M191: ='تقرير حركة يومية'!N191 -> 1 | N191: 0 | O191: 0 | P191: 0 | Q191: _ | R191: _ | AL191: 0
A192: زلابيا | B192: ='تقرير حركة يومية'!F192 -> 0 | C192: 0 | E192: 0 | F192: ='تقرير حركة يومية'!I192 -> 0 | G192: 0 | L192: 0 | M192: ='تقرير حركة يومية'!N192 -> 159.9 | N192: 0 | O192: 0 | P192: 0 | Q192: _ | R192: _ | AL192: 0
A193: زلابيا ص | B193: ='تقرير حركة يومية'!F193 -> 0 | C193: 0 | E193: 0 | F193: ='تقرير حركة يومية'!I193 -> 0 | G193: 0 | L193: 0 | M193: ='تقرير حركة يومية'!N193 -> 1 | N193: 0 | O193: 0 | P193: 0 | Q193: _ | R193: _ | AL193: =AK193+AJ193+AI193 -> 0
A194: زلابيا ك | B194: ='تقرير حركة يومية'!F194 -> 0 | C194: 0 | E194: 0 | F194: ='تقرير حركة يومية'!I194 -> 0 | G194: 0 | L194: 0 | M194: ='تقرير حركة يومية'!N194 -> 1 | N194: 0 | O194: 0 | P194: 0 | Q194: _ | R194: _ | AL194: =AK194+AJ194+AI194 -> 0
A195: فطير سادة | B195: ='تقرير حركة يومية'!F195 -> 0 | C195: 114 | E195: 114 | F195: ='تقرير حركة يومية'!I195 -> 0 | G195: 0 | L195: 0 | M195: ='تقرير حركة يومية'!N195 -> 1 | N195: 0 | O195: 0 | P195: 0 | Q195: _ | R195: _ | AC195: 114 | AL195: 0
A196: فطير سكر | B196: ='تقرير حركة يومية'!F196 -> 0 | C196: 0 | E196: 0 | F196: ='تقرير حركة يومية'!I196 -> 0 | G196: 0 | L196: 0 | M196: ='تقرير حركة يومية'!N196 -> 35 | N196: 0 | O196: 0 | P196: 0 | Q196: _ | R196: _ | AL196: 0
A197: فطير لوتس | B197: ='تقرير حركة يومية'!F197 -> 0 | C197: 0 | E197: 0 | F197: ='تقرير حركة يومية'!I197 -> 0 | G197: 0 | L197: 0 | M197: ='تقرير حركة يومية'!N197 -> 50 | N197: 0 | O197: 0 | P197: 0 | Q197: _ | R197: _ | AL197: 0
A198: فطير نوتيلا | B198: ='تقرير حركة يومية'!F198 -> 0 | C198: 0 | E198: 0 | F198: ='تقرير حركة يومية'!I198 -> 0 | G198: 0 | L198: 0 | M198: ='تقرير حركة يومية'!N198 -> 50 | N198: 0 | O198: 0 | P198: 0 | Q198: _ | R198: _ | AL198: 0
A199: فطير اوريو | B199: ='تقرير حركة يومية'!F199 -> 0 | C199: 0 | E199: 0 | F199: ='تقرير حركة يومية'!I199 -> 0 | G199: 0 | L199: 0 | M199: ='تقرير حركة يومية'!N199 -> 50 | N199: 0 | O199: 0 | P199: 0 | Q199: _ | R199: _ | AL199: 0
A200: غلة بليلة سادة وزن | B200: ='تقرير حركة يومية'!F200 -> 0 | C200: 0 | E200: =B200+C200-D200-G200 -> 0 | F200: ='تقرير حركة يومية'!I200 -> 0 | G200: =SUM(T200:X200)-Y200 -> 0 | L200: 0 | M200: ='تقرير حركة يومية'!N200 -> 400 | N200: 0 | O200: 0 | P200: 0 | Q200: _ | R200: _ | AL200: 0
A201: بليلة مكسرات | B201: ='تقرير حركة يومية'!F201 -> 0 | C201: 0 | E201: 0 | F201: ='تقرير حركة يومية'!I201 -> 0 | G201: 0 | L201: 0 | M201: ='تقرير حركة يومية'!N201 -> 45 | N201: 0 | O201: 0 | P201: 0 | Q201: _ | R201: _ | AL201: 0
... 83 more rows

Sheet جرد الأيس كريم
A1: جرد أيس كريم عادي 180 | E1: =E18+E24 -> 175.75
A2: م | B2: إجمالي وزن البوله | C2: العدد | D2: التخصيمة | E2: الصافي
A3: 1 | B3: 20 | C3: 4 | D3: 3.4 | E3: =B3-D3 -> 16.6
A4: 2 | B4: 19.5 | C4: 4 | D4: 4 | E4: =B4-D4 -> 15.5
A5: 3 | B5: 19.7 | C5: 4 | D5: 3.7 | E5: 16
A6: 4 | B6: 22.4 | C6: 4 | D6: 3.05 | E6: 19.35
A7: 5 | B7: 19.7 | C7: 4 | D7: 4 | E7: 15.7
A8: 6 | B8: 14.4 | C8: 3 | D8: 3 | E8: 11.4
A9: 7 | B9: 6.8 | C9: 2 | D9: 2 | E9: 4.8
A10: 8 | B10: 7.25 | C10: 3 | D10: 2.4 | E10: 4.85
A11: 9 | B11: 10.85 | C11: 3 | D11: 2.8 | E11: 8.05
A12: 10 | B12: 7.9 | C12: 2 | D12: 2 | E12: 5.9
A13: 11 | B13: =87/2 -> 43.5 | E13: 43.5
A14: 12 | E14: 0
A15: 13 | E15: 0
A16: 14 | E16: 0
A17: 15 | E17: 0
A18: الإجمالي | E18: =SUM(E3:E17) -> 161.65
A19: جرد أيس كريم عادي كافيتريا
A20: م | B20: إجمالي وزن البوله | C20: العدد | D20: التخصيمة | E20: الصافي
A21: 1 | B21: 17.6 | C21: 4 | D21: 3.5 | E21: =B21-D21 -> 14.1
A22: 2 | E22: =B22-D22 -> 0
A23: 3 | E23: =B23-D23 -> 0
A24: الإجمالي | E24: =SUM(E21:E23) -> 14.1
A25: جرد أيس كريم اسبشيال 240
A26: م | B26: إجمالي وزن البوله | C26: العدد | D26: التخصيمة | E26: الصافي
A27: 1 | B27: 6.7 | C27: 3 | D27: 3 | E27: =B27-D27 -> 3.7
A28: 2 | B28: 4.3 | C28: 1 | D28: 1 | E28: 3.3
A29: 3 | B29: 0.5 | E29: 0.5
A30: 4 | E30: 0
A31: 5 | E31: 0
A32: 6 | E32: 0
A33: الإجمالي | E33: =SUM(E27:E32) -> 7.5

Sheet رصيد المخزن
A2: م | B2: الصنف | C2: رصيد | D2: فحص | E2: التصحيح
A3: =_xlfn.AGGREGATE(3,5,$B$3:B3) -> 0 | B3: ='فصل شيفت'!A9 -> قطعه جاتوه كلاسيك | C3: ='فصل شيفت'!E9 -> 525
A4: =_xlfn.AGGREGATE(3,5,$B$3:B4) -> 0 | B4: ='فصل شيفت'!A10 -> قطعه جاتوه موس | C4: ='فصل شيفت'!E10 -> 98
A5: =_xlfn.AGGREGATE(3,5,$B$3:B5) -> 0 | B5: ='فصل شيفت'!A11 -> جاتوة سواريه | C5: ='فصل شيفت'!E11 -> 0
A6: =_xlfn.AGGREGATE(3,5,$B$3:B6) -> 0 | B6: ='فصل شيفت'!A12 -> اكلير / دنش | C6: ='فصل شيفت'!E12 -> 10
A7: =_xlfn.AGGREGATE(3,5,$B$3:B7) -> 0 | B7: ='فصل شيفت'!A13 -> ملفاى | C7: ='فصل شيفت'!E13 -> 0
A8: =_xlfn.AGGREGATE(3,5,$B$3:B8) -> 0 | B8: ='فصل شيفت'!A14 -> شوهات | C8: ='فصل شيفت'!E14 -> 16
A9: =_xlfn.AGGREGATE(3,5,$B$3:B9) -> 0 | B9: ='فصل شيفت'!A15 -> كب جار بوبس | C9: ='فصل شيفت'!E15 -> 0
A10: =_xlfn.AGGREGATE(3,5,$B$3:B10) -> 0 | B10: ='فصل شيفت'!A16 -> تورته اوستيك موس | C10: ='فصل شيفت'!E16 -> 0
A11: =_xlfn.AGGREGATE(3,5,$B$3:B11) -> 0 | B11: ='فصل شيفت'!A17 -> تورته مينى موس 180 | C11: ='فصل شيفت'!E17 -> 0
A12: =_xlfn.AGGREGATE(3,5,$B$3:B12) -> 0 | B12: ='فصل شيفت'!A18 -> تورته مينى شوكلت كيك 300 | C12: ='فصل شيفت'!E18 -> 0
A13: =_xlfn.AGGREGATE(3,5,$B$3:B13) -> 0 | B13: ='فصل شيفت'!A19 -> تورته دائري شوكلت كاملة 400 | C13: ='فصل شيفت'!E19 -> 0
A14: =_xlfn.AGGREGATE(3,5,$B$3:B14) -> 0 | B14: ='فصل شيفت'!A20 -> تورته مربع صغير310 | C14: ='فصل شيفت'!E20 -> 11
A15: =_xlfn.AGGREGATE(3,5,$B$3:B15) -> 0 | B15: ='فصل شيفت'!A21 -> تورتة هاف دائرى / فاكهة كاملة 380 | C15: ='فصل شيفت'!E21 -> 18
A16: =_xlfn.AGGREGATE(3,5,$B$3:B16) -> 0 | B16: ='فصل شيفت'!A22 -> تورته فور سيزون 440 | C16: ='فصل شيفت'!E22 -> 2
A17: =_xlfn.AGGREGATE(3,5,$B$3:B17) -> 0 | B17: ='فصل شيفت'!A23 -> تورته مربع كبير 435 | C17: ='فصل شيفت'!E23 -> 1
A18: =_xlfn.AGGREGATE(3,5,$B$3:B18) -> 0 | B18: ='فصل شيفت'!A24 -> تورته هاف كيت كات / روشيه / ويفر 430 | C18: ='فصل شيفت'!E24 -> 5
A19: =_xlfn.AGGREGATE(3,5,$B$3:B19) -> 0 | B19: ='فصل شيفت'!A25 -> تورته قلب كبير 445 | C19: ='فصل شيفت'!E25 -> 2
A20: =_xlfn.AGGREGATE(3,5,$B$3:B20) -> 0 | B20: ='فصل شيفت'!A26 -> تورته فونتانا 480 | C20: ='فصل شيفت'!E26 -> 0
A21: =_xlfn.AGGREGATE(3,5,$B$3:B21) -> 0 | B21: ='فصل شيفت'!A27 -> تورته دويــــــتـــــــو 30*30 (500) | C21: ='فصل شيفت'!E27 -> 1
A22: =_xlfn.AGGREGATE(3,5,$B$3:B22) -> 0 | B22: ='فصل شيفت'!A28 -> تورتة هاف 20*40 (550) | C22: ='فصل شيفت'!E28 -> 0
A23: =_xlfn.AGGREGATE(3,5,$B$3:B23) -> 0 | B23: ='فصل شيفت'!A29 -> تورته ايس سوسرول 245 | C23: ='فصل شيفت'!E29 -> 0
A24: =_xlfn.AGGREGATE(3,5,$B$3:B24) -> 0 | B24: ='فصل شيفت'!A30 -> تورته ايس كاساتا 315 | C24: ='فصل شيفت'!E30 -> 0
A25: =_xlfn.AGGREGATE(3,5,$B$3:B25) -> 0 | B25: ='فصل شيفت'!A31 -> كب بوبس ( دبل سوفت - ديو ) | C25: ='فصل شيفت'!E31 -> 30
A26: =_xlfn.AGGREGATE(3,5,$B$3:B26) -> 0 | B26: ='فصل شيفت'!A32 -> كب مينى ديسباسيتو | C26: ='فصل شيفت'!E32 -> 0
A27: =_xlfn.AGGREGATE(3,5,$B$3:B27) -> 0 | B27: ='فصل شيفت'!A33 -> كب شوكلت كيك | C27: ='فصل شيفت'!E33 -> 40
A28: =_xlfn.AGGREGATE(3,5,$B$3:B28) -> 0 | B28: ='فصل شيفت'!A34 -> ترايفل | C28: ='فصل شيفت'!E34 -> 25
A29: =_xlfn.AGGREGATE(3,5,$B$3:B29) -> 0 | B29: ='فصل شيفت'!A35 -> كب اساتوك دبي | C29: ='فصل شيفت'!E35 -> 5
A30: =_xlfn.AGGREGATE(3,5,$B$3:B30) -> 0 | B30: ='فصل شيفت'!A36 -> ديسباسيتو | C30: ='فصل شيفت'!E36 -> 0
A31: =_xlfn.AGGREGATE(3,5,$B$3:B31) -> 0 | B31: ='فصل شيفت'!A37 -> مولتن كيك | C31: ='فصل شيفت'!E37 -> 5
A32: =_xlfn.AGGREGATE(3,5,$B$3:B32) -> 0 | B32: ='فصل شيفت'!A38 -> باباز | C32: ='فصل شيفت'!E38 -> 0
A33: =_xlfn.AGGREGATE(3,5,$B$3:B33) -> 0 | B33: ='فصل شيفت'!A39 -> كوكتيل | C33: ='فصل شيفت'!E39 -> 0
A34: =_xlfn.AGGREGATE(3,5,$B$3:B34) -> 0 | B34: ='فصل شيفت'!A40 -> كب قشطوطة صغير | C34: ='فصل شيفت'!E40 -> 26
A35: =_xlfn.AGGREGATE(3,5,$B$3:B35) -> 0 | B35: ='فصل شيفت'!A41 -> كب قشطوطة كاندي /بسبوسه /ليزي كيك | C35: ='فصل شيفت'!E41 -> 14
A36: =_xlfn.AGGREGATE(3,5,$B$3:B36) -> 0 | B36: ='فصل شيفت'!A42 -> ام علي ساده | C36: ='فصل شيفت'!E42 -> 0
A37: =_xlfn.AGGREGATE(3,5,$B$3:B37) -> 0 | B37: ='فصل شيفت'!A43 -> ارز بلبن اسبيشيال عفروتو | C37: ='فصل شيفت'!E43 -> 0
A38: =_xlfn.AGGREGATE(3,5,$B$3:B38) -> 0 | B38: ='فصل شيفت'!A44 -> ارز بلبن اسبشيال مكسرات وقشطة | C38: ='فصل شيفت'!E44 -> 0
A39: =_xlfn.AGGREGATE(3,5,$B$3:B39) -> 0 | B39: ='فصل شيفت'!A45 -> ارز بلبن اسبيشيال اوريو | C39: ='فصل شيفت'!E45 -> 0
A40: =_xlfn.AGGREGATE(3,5,$B$3:B40) -> 0 | B40: ='فصل شيفت'!A46 -> ارز بلبن اسبيشيال قراصيا | C40: ='فصل شيفت'!E46 -> 0
A41: =_xlfn.AGGREGATE(3,5,$B$3:B41) -> 0 | B41: ='فصل شيفت'!A47 -> ارز بلبن اسبيشيال لوتس | C41: ='فصل شيفت'!E47 -> 0
A42: =_xlfn.AGGREGATE(3,5,$B$3:B42) -> 0 | B42: ='فصل شيفت'!A48 -> ارز بلبن اسبيشيال نوتيلا | C42: ='فصل شيفت'!E48 -> 0
A43: =_xlfn.AGGREGATE(3,5,$B$3:B43) -> 0 | B43: ='فصل شيفت'!A49 -> ارز بلبن بسابيسو | C43: ='فصل شيفت'!E49 -> 0
A44: =_xlfn.AGGREGATE(3,5,$B$3:B44) -> 0 | B44: ='فصل شيفت'!A50 -> ارز بلبن خدود الست | C44: ='فصل شيفت'!E50 -> 0
A45: =_xlfn.AGGREGATE(3,5,$B$3:B45) -> 0 | B45: ='فصل شيفت'!A51 -> ارز بلبن ساده | C45: ='فصل شيفت'!E51 -> 90
A46: =_xlfn.AGGREGATE(3,5,$B$3:B46) -> 0 | B46: ='فصل شيفت'!A51 -> ارز بلبن ساده | C46: ='فصل شيفت'!E51 -> 90
A47: =_xlfn.AGGREGATE(3,5,$B$3:B47) -> 0 | B47: ='فصل شيفت'!A52 -> ارز بلبن مكس الصياد | C47: ='فصل شيفت'!E52 -> 0
A48: =_xlfn.AGGREGATE(3,5,$B$3:B48) -> 0 | B48: ='فصل شيفت'!A53 -> ارز اسبيشيال كنافة مانجو | C48: ='فصل شيفت'!E53 -> 0
A49: =_xlfn.AGGREGATE(3,5,$B$3:B49) -> 0 | B49: ='فصل شيفت'!A54 -> ارز قنبلة فراوله | C49: ='فصل شيفت'!E54 -> 0
A50: =_xlfn.AGGREGATE(3,5,$B$3:B50) -> 0 | B50: ='فصل شيفت'!A55 -> ارز قنبلة موز وكراميل | C50: ='فصل شيفت'!E55 -> 0
A51: =_xlfn.AGGREGATE(3,5,$B$3:B51) -> 0 | B51: ='فصل شيفت'!A56 -> ارز قشطوطة سادة | C51: ='فصل شيفت'!E56 -> 0
A52: =_xlfn.AGGREGATE(3,5,$B$3:B52) -> 0 | B52: ='فصل شيفت'!A57 -> قشطوطة فراولة | C52: ='فصل شيفت'!E57 -> 0
A53: =_xlfn.AGGREGATE(3,5,$B$3:B53) -> 0 | B53: ='فصل شيفت'!A58 -> قشطوطة كراميل | C53: ='فصل شيفت'!E58 -> 0
A54: =_xlfn.AGGREGATE(3,5,$B$3:B54) -> 0 | B54: ='فصل شيفت'!A59 -> قشطوطه لوتس | C54: ='فصل شيفت'!E59 -> 0
A55: =_xlfn.AGGREGATE(3,5,$B$3:B55) -> 0 | B55: ='فصل شيفت'!A60 -> قشطوطه مانجو / فاكهة | C55: ='فصل شيفت'!E60 -> 0
A56: =_xlfn.AGGREGATE(3,5,$B$3:B56) -> 0 | B56: ='فصل شيفت'!A61 -> قشطوطه نوتيلا | C56: ='فصل شيفت'!E61 -> 0
A57: =_xlfn.AGGREGATE(3,5,$B$3:B57) -> 0 | B57: ='فصل شيفت'!A62 -> قشطوطة دندو | C57: ='فصل شيفت'!E62 -> 0
A58: =_xlfn.AGGREGATE(3,5,$B$3:B58) -> 0 | B58: ='فصل شيفت'!A63 -> قشطوطة كراميل صواني | C58: ='فصل شيفت'!E63 -> 0
A59: =_xlfn.AGGREGATE(3,5,$B$3:B59) -> 1 | B59: ='فصل شيفت'!A64 -> قشطوطة كريمة صواني | C59: ='فصل شيفت'!E64 -> 0
A60: =_xlfn.AGGREGATE(3,5,$B$3:B60) -> 1 | B60: ='فصل شيفت'!A65 -> ايس كريم كافيتريا - خام عادي | C60: ='فصل شيفت'!E65 -> 0
A61: =_xlfn.AGGREGATE(3,5,$B$3:B61) -> 1 | B61: ='فصل شيفت'!A66 -> ايس كريم كافيتريا - خام اسبيشيال | C61: ='فصل شيفت'!E66 -> 0
A62: =_xlfn.AGGREGATE(3,5,$B$3:B62) -> 1 | B62: ='فصل شيفت'!A67 -> ايس كريم - خام عادي 180 | C62: ='فصل شيفت'!E67 -> 0
A63: =_xlfn.AGGREGATE(3,5,$B$3:B63) -> 1 | B63: ='فصل شيفت'!A68 -> ايس كريم - خام اسبيشيال 250 | C63: ='فصل شيفت'!E68 -> 0
A64: =_xlfn.AGGREGATE(3,5,$B$3:B64) -> 1 | B64: ='فصل شيفت'!A69 -> كزرولة لبن ص 5.800 | C64: ='فصل شيفت'!E69 -> 0
A65: =_xlfn.AGGREGATE(3,5,$B$3:B65) -> 1 | B65: ='فصل شيفت'!A70 -> كزرولة لبن ك 3.600 | C65: ='فصل شيفت'!E70 -> 0
A66: =_xlfn.AGGREGATE(3,5,$B$3:B66) -> 1 | B66: ='فصل شيفت'!A71 -> كزرولة لبن ك 6.300 | C66: ='فصل شيفت'!E71 -> 0
A67: =_xlfn.AGGREGATE(3,5,$B$3:B67) -> 1 | B67: ='فصل شيفت'!A72 -> كزرولة لبن ك 6.600 | C67: ='فصل شيفت'!E72 -> 0
A68: =_xlfn.AGGREGATE(3,5,$B$3:B68) -> 2 | B68: ='فصل شيفت'!A73 -> مكسرات أيس | C68: ='فصل شيفت'!E73 -> 122
A69: =_xlfn.AGGREGATE(3,5,$B$3:B69) -> 2 | B69: ='فصل شيفت'!A74 -> بسكوت اوريو مطحون فطير | C69: ='فصل شيفت'!E74 -> 0
A70: =_xlfn.AGGREGATE(3,5,$B$3:B70) -> 2 | B70: ='فصل شيفت'!A75 -> بسكوت لوتس مطحون فطير | C70: ='فصل شيفت'!E75 -> 0
A71: =_xlfn.AGGREGATE(3,5,$B$3:B71) -> 2 | B71: ='فصل شيفت'!A76 -> صوص شوكلت وايت فطير | C71: ='فصل شيفت'!E76 -> 0
A72: =_xlfn.AGGREGATE(3,5,$B$3:B72) -> 2 | B72: ='فصل شيفت'!A77 -> صوص نوتيلا فطير | C72: ='فصل شيفت'!E77 -> 0
A73: =_xlfn.AGGREGATE(3,5,$B$3:B73) -> 2 | B73: ='فصل شيفت'!A78 -> صوص لوتس فطير | C73: ='فصل شيفت'!E78 -> 0
A74: =_xlfn.AGGREGATE(3,5,$B$3:B74) -> 2 | B74: ='فصل شيفت'!A79 -> علب مكسرات فطير | C74: ='فصل شيفت'!E79 -> 0
A75: =_xlfn.AGGREGATE(3,5,$B$3:B75) -> 3 | B75: ='فصل شيفت'!A80 -> علب مكسرات ارز فرع | C75: ='فصل شيفت'!E80 -> 102
A76: =_xlfn.AGGREGATE(3,5,$B$3:B76) -> 3 | B76: ='فصل شيفت'!A81 -> علب مكسرات بليلة | C76: ='فصل شيفت'!E81 -> 0
A77: =_xlfn.AGGREGATE(3,5,$B$3:B77) -> 3 | B77: ='فصل شيفت'!A82 -> كيس مكسرات بليلة | C77: ='فصل شيفت'!E82 -> 0
A78: =_xlfn.AGGREGATE(3,5,$B$3:B78) -> 3 | B78: ='فصل شيفت'!A83 -> مشبك دمياطي | C78: ='فصل شيفت'!E83 -> 0
A79: =_xlfn.AGGREGATE(3,5,$B$3:B79) -> 3 | B79: ='فصل شيفت'!A84 -> ساليزونات مشكله | C79: ='فصل شيفت'!E84 -> 0
A80: =_xlfn.AGGREGATE(3,5,$B$3:B80) -> 3 | B80: ='فصل شيفت'!A85 -> اسبيشيال لوكس 1/2 كيلو | C80: ='فصل شيفت'!E85 -> 0
A81: =_xlfn.AGGREGATE(3,5,$B$3:B81) -> 3 | B81: ='فصل شيفت'!A86 -> اسبيشيال لوكس | C81: ='فصل شيفت'!E86 -> 6.66
A82: =_xlfn.AGGREGATE(3,5,$B$3:B82) -> 3 | B82: ='فصل شيفت'!A87 -> مشكل شعبيات | C82: ='فصل شيفت'!E87 -> 0
A83: =_xlfn.AGGREGATE(3,5,$B$3:B83) -> 3 | B83: ='فصل شيفت'!A88 -> كنافه كريمه | C83: ='فصل شيفت'!E88 -> 0
A84: =_xlfn.AGGREGATE(3,5,$B$3:B84) -> 3 | B84: ='فصل شيفت'!A89 -> كنافه مكسرات | C84: ='فصل شيفت'!E89 -> 0
A85: =_xlfn.AGGREGATE(3,5,$B$3:B85) -> 3 | B85: ='فصل شيفت'!A90 -> لينزا | C85: ='فصل شيفت'!E90 -> 0
A86: =_xlfn.AGGREGATE(3,5,$B$3:B86) -> 3 | B86: ='فصل شيفت'!A91 -> مكرونه | C86: ='فصل شيفت'!E91 -> 0
A87: =_xlfn.AGGREGATE(3,5,$B$3:B87) -> 3 | B87: ='فصل شيفت'!A92 -> بسبوسه ساده | C87: ='فصل شيفت'!E92 -> 0
A88: =_xlfn.AGGREGATE(3,5,$B$3:B88) -> 3 | B88: ='فصل شيفت'!A93 -> رواني سادة بالعسل | C88: ='فصل شيفت'!E93 -> 0
A89: =_xlfn.AGGREGATE(3,5,$B$3:B89) -> 3 | B89: ='فصل شيفت'!A94 -> هريسه حشو مكسرات | C89: ='فصل شيفت'!E94 -> 0
A90: =_xlfn.AGGREGATE(3,5,$B$3:B90) -> 3 | B90: ='فصل شيفت'!A95 -> بسبوسه مكسرات | C90: ='فصل شيفت'!E95 -> 0
A91: =_xlfn.AGGREGATE(3,5,$B$3:B91) -> 3 | B91: ='فصل شيفت'!A96 -> بسبوسه فستق | C91: ='فصل شيفت'!E96 -> 0
A92: =_xlfn.AGGREGATE(3,5,$B$3:B92) -> 3 | B92: ='فصل شيفت'!A97 -> قشطات / بقلاوة كريمة | C92: ='فصل شيفت'!E97 -> 30.545
A93: =_xlfn.AGGREGATE(3,5,$B$3:B93) -> 3 | B93: ='فصل شيفت'!A98 -> بلح شام قشطه /فواكهه | C93: ='فصل شيفت'!E98 -> 0
A94: =_xlfn.AGGREGATE(3,5,$B$3:B94) -> 3 | B94: ='فصل شيفت'!A99 -> قطايف قشطة | C94: ='فصل شيفت'!E99 -> 0
A95: =_xlfn.AGGREGATE(3,5,$B$3:B95) -> 3 | B95: ='فصل شيفت'!A100 -> بقلاوة مكسرات | C95: ='فصل شيفت'!E100 -> 1.38
A96: =_xlfn.AGGREGATE(3,5,$B$3:B96) -> 3 | B96: ='فصل شيفت'!A101 -> كنافة اساور تاج | C96: ='فصل شيفت'!E101 -> 0
A97: =_xlfn.AGGREGATE(3,5,$B$3:B97) -> 3 | B97: ='فصل شيفت'!A102 -> كنافه سيخ بندق | C97: ='فصل شيفت'!E102 -> 0
A98: =_xlfn.AGGREGATE(3,5,$B$3:B98) -> 3 | B98: ='فصل شيفت'!A103 -> كنافه سيخ ساده | C98: ='فصل شيفت'!E103 -> 0
A99: =_xlfn.AGGREGATE(3,5,$B$3:B99) -> 3 | B99: ='فصل شيفت'!A104 -> كنافه عجوه | C99: ='فصل شيفت'!E104 -> 0
A100: =_xlfn.AGGREGATE(3,5,$B$3:B100) -> 3 | B100: ='فصل شيفت'!A105 -> كنافه بورمه فستق | C100: ='فصل شيفت'!E105 -> 0
A101: =_xlfn.AGGREGATE(3,5,$B$3:B101) -> 3 | B101: ='فصل شيفت'!A106 -> كنافه بورمه بندق | C101: ='فصل شيفت'!E106 -> 0
A102: =_xlfn.AGGREGATE(3,5,$B$3:B102) -> 3 | B102: ='فصل شيفت'!A107 -> كنافه دمياطي | C102: ='فصل شيفت'!E107 -> 0
A103: =_xlfn.AGGREGATE(3,5,$B$3:B103) -> 3 | B103: ='فصل شيفت'!A108 -> رموش / هريسه | C103: ='فصل شيفت'!E108 -> 1.7
A104: =_xlfn.AGGREGATE(3,5,$B$3:B104) -> 3 | B104: ='فصل شيفت'!A109 -> كـنـافـة تـمـر سـعـودي | C104: ='فصل شيفت'!E109 -> 0
A105: =_xlfn.AGGREGATE(3,5,$B$3:B105) -> 3 | B105: ='فصل شيفت'!A110 -> رطب شو | C105: ='فصل شيفت'!E110 -> 0
A106: =_xlfn.AGGREGATE(3,5,$B$3:B106) -> 3 | B106: ='فصل شيفت'!A111 -> فورمه بسبوسه ساده | C106: ='فصل شيفت'!E111 -> 2
A107: =_xlfn.AGGREGATE(3,5,$B$3:B107) -> 3 | B107: ='فصل شيفت'!A112 -> فورمه بسبوسه مكسرات | C107: ='فصل شيفت'!E112 -> 2
A108: =_xlfn.AGGREGATE(3,5,$B$3:B108) -> 3 | B108: ='فصل شيفت'!A113 -> فورمة كنافة كريمة | C108: ='فصل شيفت'!E113 -> 0
A109: =_xlfn.AGGREGATE(3,5,$B$3:B109) -> 3 | B109: ='فصل شيفت'!A114 -> فورمه كنافه مكسرات | C109: ='فصل شيفت'!E114 -> 0
A110: =_xlfn.AGGREGATE(3,5,$B$3:B110) -> 3 | B110: ='فصل شيفت'!A115 -> مشكل مقليات | C110: ='فصل شيفت'!E115 -> 0
A111: =_xlfn.AGGREGATE(3,5,$B$3:B111) -> 3 | B111: ='فصل شيفت'!A116 -> صوابع زينب / زلابيا | C111: ='فصل شيفت'!E116 -> 0
A112: =_xlfn.AGGREGATE(3,5,$B$3:B112) -> 3 | B112: ='فصل شيفت'!A117 -> بلح شام ساده | C112: ='فصل شيفت'!E117 -> 0
A113: =_xlfn.AGGREGATE(3,5,$B$3:B113) -> 3 | B113: ='فصل شيفت'!A118 -> أصابع السلطان | C113: ='فصل شيفت'!E118 -> 0
A114: =_xlfn.AGGREGATE(3,5,$B$3:B114) -> 3 | B114: ='فصل شيفت'!A119 -> قطايف مكسرات | C114: ='فصل شيفت'!E119 -> 0
A115: =_xlfn.AGGREGATE(3,5,$B$3:B115) -> 3 | B115: ='فصل شيفت'!A120 -> بغاشا | C115: ='فصل شيفت'!E120 -> 0
A116: =_xlfn.AGGREGATE(3,5,$B$3:B116) -> 3 | B116: ='فصل شيفت'!A121 -> خبز دايت | C116: ='فصل شيفت'!E121 -> 0
A117: =_xlfn.AGGREGATE(3,5,$B$3:B117) -> 3 | B117: ='فصل شيفت'!A122 -> ميني بان 1/2 كيلو | C117: ='فصل شيفت'!E122 -> 5
A118: =_xlfn.AGGREGATE(3,5,$B$3:B118) -> 3 | B118: ='فصل شيفت'!A123 -> ميني بان | C118: ='فصل شيفت'!E123 -> 0
A119: =_xlfn.AGGREGATE(3,5,$B$3:B119) -> 3 | B119: ='فصل شيفت'!A124 -> ميني بيتزا | C119: ='فصل شيفت'!E124 -> 5
A120: =_xlfn.AGGREGATE(3,5,$B$3:B120) -> 3 | B120: ='فصل شيفت'!A125 -> مينى ديب | C120: ='فصل شيفت'!E125 -> 3
A121: =_xlfn.AGGREGATE(3,5,$B$3:B121) -> 3 | B121: ='فصل شيفت'!A126 -> حوادق (كرواسون كيري) | C121: ='فصل شيفت'!E126 -> 0
A122: =_xlfn.AGGREGATE(3,5,$B$3:B122) -> 3 | B122: ='فصل شيفت'!A127 -> كيك شاى 1/2 ك | C122: ='فصل شيفت'!E127 -> 0
A123: =_xlfn.AGGREGATE(3,5,$B$3:B123) -> 3 | B123: ='فصل شيفت'!A128 -> قالب كيك | C123: ='فصل شيفت'!E128 -> 0
A124: =_xlfn.AGGREGATE(3,5,$B$3:B124) -> 3 | B124: ='فصل شيفت'!A129 -> قراقيش ساده /رايب | C124: ='فصل شيفت'!E129 -> 0
A125: =_xlfn.AGGREGATE(3,5,$B$3:B125) -> 3 | B125: ='فصل شيفت'!A130 -> قراقيش عجوه | C125: ='فصل شيفت'!E130 -> 0
A126: =_xlfn.AGGREGATE(3,5,$B$3:B126) -> 3 | B126: ='فصل شيفت'!A131 -> معمول عجوة | C126: ='فصل شيفت'!E131 -> 0
A127: =_xlfn.AGGREGATE(3,5,$B$3:B127) -> 3 | B127: ='فصل شيفت'!A132 -> بسكوتات | C127: ='فصل شيفت'!E132 -> 0
A128: =_xlfn.AGGREGATE(3,5,$B$3:B128) -> 3 | B128: ='فصل شيفت'!A133 -> بسكوت كوكيز/شوكلت/زبيب/ بالمية | C128: ='فصل شيفت'!E133 -> 0
A129: =_xlfn.AGGREGATE(3,5,$B$3:B129) -> 3 | B129: ='فصل شيفت'!A135 -> سابيله / غريبه / بيتى فور | C129: ='فصل شيفت'!E135 -> 0
A130: =_xlfn.AGGREGATE(3,5,$B$3:B130) -> 3 | B130: ='فصل شيفت'!A136 -> كريسينا | C130: ='فصل شيفت'!E136 -> 0
A131: =_xlfn.AGGREGATE(3,5,$B$3:B131) -> 3 | B131: ='فصل شيفت'!A137 -> باتون ساليه | C131: ='فصل شيفت'!E137 -> 0
A132: =_xlfn.AGGREGATE(3,5,$B$3:B132) -> 3 | B132: ='فصل شيفت'!A138 -> برازق | C132: ='فصل شيفت'!E138 -> 0
A133: =_xlfn.AGGREGATE(3,5,$B$3:B133) -> 3 | B133: ='فصل شيفت'!A139 -> كحك ساده | C133: ='فصل شيفت'!E139 -> 0
A134: =_xlfn.AGGREGATE(3,5,$B$3:B134) -> 3 | B134: ='فصل شيفت'!A140 -> كحك عين جمل | C134: ='فصل شيفت'!E140 -> 0
A135: =_xlfn.AGGREGATE(3,5,$B$3:B135) -> 3 | B135: ='فصل شيفت'!A141 -> كحك فستق | C135: ='فصل شيفت'!E141 -> 0
A136: =_xlfn.AGGREGATE(3,5,$B$3:B136) -> 3 | B136: ='فصل شيفت'!A142 -> كحك مكسرات | C136: ='فصل شيفت'!E142 -> 0
A137: =_xlfn.AGGREGATE(3,5,$B$3:B137) -> 3 | B137: ='فصل شيفت'!A143 -> كحك ملبن ساده | C137: ='فصل شيفت'!E143 -> 0
A138: =_xlfn.AGGREGATE(3,5,$B$3:B138) -> 3 | B138: ='فصل شيفت'!A144 -> امبلاج | C138: ='فصل شيفت'!E144 -> 0
A139: =_xlfn.AGGREGATE(3,5,$B$3:B139) -> 3 | B139: ='فصل شيفت'!A145 -> شيكولاته ميكس الصياد | C139: ='فصل شيفت'!E145 -> 0
A140: =_xlfn.AGGREGATE(3,5,$B$3:B140) -> 3 | B140: ='فصل شيفت'!A146 -> علبة التوفير 800. جرام حلاوة مولد | C140: ='فصل شيفت'!E146 -> 0
A141: =_xlfn.AGGREGATE(3,5,$B$3:B141) -> 3 | B141: ='فصل شيفت'!A147 -> علبة مشكل 1 ك فيستفال | C141: ='فصل شيفت'!E147 -> 0
A142: =_xlfn.AGGREGATE(3,5,$B$3:B142) -> 3 | B142: ='فصل شيفت'!A148 -> علبة 1.5 ك مشكل كلاسيك | C142: ='فصل شيفت'!E148 -> 0
A143: =_xlfn.AGGREGATE(3,5,$B$3:B143) -> 3 | B143: ='فصل شيفت'!A149 -> علبة مشكل كرنفال صاج 1.5 ك | C143: ='فصل شيفت'!E149 -> 0
A144: =_xlfn.AGGREGATE(3,5,$B$3:B144) -> 3 | B144: ='فصل شيفت'!A150 -> علبة مكسات 1.5 ك | C144: ='فصل شيفت'!E150 -> 0
A145: =_xlfn.AGGREGATE(3,5,$B$3:B145) -> 3 | B145: ='فصل شيفت'!A151 -> علبة جواهر 1.5 ك | C145: ='فصل شيفت'!E151 -> 0
A146: =_xlfn.AGGREGATE(3,5,$B$3:B146) -> 3 | B146: ='فصل شيفت'!A152 -> علبة جزرية سوداني 1/2 ك | C146: ='فصل شيفت'!E152 -> 0
A147: =_xlfn.AGGREGATE(3,5,$B$3:B147) -> 3 | B147: ='فصل شيفت'!A153 -> علبة مشكل فرحة المولد 1.5 ك | C147: ='فصل شيفت'!E153 -> 0
A148: =_xlfn.AGGREGATE(3,5,$B$3:B148) -> 3 | B148: ='فصل شيفت'!A154 -> علبة الليلة الكبيرة 2.2 ك | C148: ='فصل شيفت'!E154 -> 0
A149: =_xlfn.AGGREGATE(3,5,$B$3:B149) -> 3 | B149: ='فصل شيفت'!A155 -> علبة كنوز 2.5 ك | C149: ='فصل شيفت'!E155 -> 0
A150: =_xlfn.AGGREGATE(3,5,$B$3:B150) -> 3 | B150: ='فصل شيفت'!A156 -> علبة مشكل علف 1/2 ك | C150: ='فصل شيفت'!E156 -> 0
A151: =_xlfn.AGGREGATE(3,5,$B$3:B151) -> 3 | B151: ='فصل شيفت'!A157 -> علبة مشكل علف 1 ك | C151: ='فصل شيفت'!E157 -> 0
A152: =_xlfn.AGGREGATE(3,5,$B$3:B152) -> 3 | B152: ='فصل شيفت'!A158 -> علبة علف سوداني 1/2 ك | C152: ='فصل شيفت'!E158 -> 0
A153: =_xlfn.AGGREGATE(3,5,$B$3:B153) -> 3 | B153: ='فصل شيفت'!A159 -> علبة قرص حمصية 1/2 ك | C153: ='فصل شيفت'!E159 -> 0
A154: =_xlfn.AGGREGATE(3,5,$B$3:B154) -> 3 | B154: ='فصل شيفت'!A160 -> علبة مشكل مربات 1/2 ك | C154: ='فصل شيفت'!E160 -> 0
A155: =_xlfn.AGGREGATE(3,5,$B$3:B155) -> 3 | B155: ='فصل شيفت'!A161 -> قشطة مارشيملو | C155: ='فصل شيفت'!E161 -> 0
A156: =_xlfn.AGGREGATE(3,5,$B$3:B156) -> 3 | B156: ='فصل شيفت'!A162 -> علبة ملبن فواكه 1/2 ك | C156: ='فصل شيفت'!E162 -> 0
A157: =_xlfn.AGGREGATE(3,5,$B$3:B157) -> 3 | B157: ='فصل شيفت'!A163 -> علبة نوجا سوداني 1/4 ك | C157: ='فصل شيفت'!E163 -> 0
A158: =_xlfn.AGGREGATE(3,5,$B$3:B158) -> 3 | B158: ='فصل شيفت'!A164 -> علبة ملبن حبل عين جمل 1/2 ك | C158: ='فصل شيفت'!E164 -> 0
A159: =_xlfn.AGGREGATE(3,5,$B$3:B159) -> 3 | B159: ='فصل شيفت'!A165 -> علبة بندقية 1/4 ك | C159: ='فصل شيفت'!E165 -> 0
A160: =_xlfn.AGGREGATE(3,5,$B$3:B160) -> 3 | B160: ='فصل شيفت'!A166 -> علبة لوزية 1/4 ك | C160: ='فصل شيفت'!E166 -> 0
A161: =_xlfn.AGGREGATE(3,5,$B$3:B161) -> 3 | B161: ='فصل شيفت'!A167 -> علبة القرمشة 1/2 ك | C161: ='فصل شيفت'!E167 -> 0
A162: =_xlfn.AGGREGATE(3,5,$B$3:B162) -> 3 | B162: ='فصل شيفت'!A168 -> علبة شيكولاته مشكلة 650 جم | C162: ='فصل شيفت'!E168 -> 0
A163: =_xlfn.AGGREGATE(3,5,$B$3:B163) -> 3 | B163: ='فصل شيفت'!A169 -> كنافة مانجو كبير / بولة مركب | C163: ='فصل شيفت'!E169 -> 0
A164: =_xlfn.AGGREGATE(3,5,$B$3:B164) -> 3 | B164: ='فصل شيفت'!A170 -> كنافة مانجو ديو نوتيلا وسط | C164: ='فصل شيفت'!E170 -> 0
A165: =_xlfn.AGGREGATE(3,5,$B$3:B165) -> 3 | B165: ='فصل شيفت'!A171 -> كنافة مانجو ديو نوتيلا كبير | C165: ='فصل شيفت'!E171 -> 0
A166: =_xlfn.AGGREGATE(3,5,$B$3:B166) -> 3 | B166: ='فصل شيفت'!A172 -> قشطوطه دبي | C166: ='فصل شيفت'!E172 -> 0
A167: =_xlfn.AGGREGATE(3,5,$B$3:B167) -> 3 | B167: ='فصل شيفت'!A173 -> اساتوك | C167: ='فصل شيفت'!E173 -> 0
A168: =_xlfn.AGGREGATE(3,5,$B$3:B168) -> 3 | B168: ='فصل شيفت'!A174 -> كب كنافة صغير | C168: ='فصل شيفت'!E174 -> 0
A169: =_xlfn.AGGREGATE(3,5,$B$3:B169) -> 3 | B169: ='فصل شيفت'!A175 -> عصير سوبيا | C169: ='فصل شيفت'!E175 -> 0
A170: =_xlfn.AGGREGATE(3,5,$B$3:B170) -> 3 | B170: ='فصل شيفت'!A176 -> عصير مانجو فريش | C170: ='فصل شيفت'!E176 -> 0
A171: =_xlfn.AGGREGATE(3,5,$B$3:B171) -> 3 | B171: ='فصل شيفت'!A177 -> عصير تمر هندى | C171: ='فصل شيفت'!E177 -> 0
A172: =_xlfn.AGGREGATE(3,5,$B$3:B172) -> 3 | B172: ='فصل شيفت'!A178 -> عصير دووم | C172: ='فصل شيفت'!E178 -> 0
A173: =_xlfn.AGGREGATE(3,5,$B$3:B173) -> 3 | B173: ='فصل شيفت'!A179 -> عصير عناب | C173: ='فصل شيفت'!E179 -> 0
A174: =_xlfn.AGGREGATE(3,5,$B$3:B174) -> 3 | B174: ='فصل شيفت'!A180 -> عصير بطيخ | C174: ='فصل شيفت'!E180 -> 0
A175: =_xlfn.AGGREGATE(3,5,$B$3:B175) -> 3 | B175: ='فصل شيفت'!A181 -> عصير بلح | C175: ='فصل شيفت'!E181 -> 0
A176: =_xlfn.AGGREGATE(3,5,$B$3:B176) -> 3 | B176: ='فصل شيفت'!A182 -> عصير خروب | C176: ='فصل شيفت'!E182 -> 0
A177: =_xlfn.AGGREGATE(3,5,$B$3:B177) -> 3 | B177: ='فصل شيفت'!A183 -> عصير توت | C177: ='فصل شيفت'!E183 -> 0
A178: =_xlfn.AGGREGATE(3,5,$B$3:B178) -> 3 | B178: ='فصل شيفت'!A184 -> عصير فراوله | C178: ='فصل شيفت'!E184 -> 0
A179: =_xlfn.AGGREGATE(3,5,$B$3:B179) -> 3 | B179: ='فصل شيفت'!A185 -> وجــبــة بـطـيـخ | C179: ='فصل شيفت'!E185 -> 0
A180: =_xlfn.AGGREGATE(3,5,$B$3:B180) -> 3 | B180: ='فصل شيفت'!A186 -> وجــبــة بـلـح | C180: ='فصل شيفت'!E186 -> 0
A181: =_xlfn.AGGREGATE(3,5,$B$3:B181) -> 3 | B181: ='فصل شيفت'!A187 -> كنافه بين نارين كريمة | C181: ='فصل شيفت'!E187 -> 0
A182: =_xlfn.AGGREGATE(3,5,$B$3:B182) -> 3 | B182: ='فصل شيفت'!A188 -> كنافه بين نارين كريمة لوتس | C182: ='فصل شيفت'!E188 -> 0
A183: =_xlfn.AGGREGATE(3,5,$B$3:B183) -> 3 | B183: ='فصل شيفت'!A189 -> كنافه بين نارين نوتيلا | C183: ='فصل شيفت'!E189 -> 0
A184: =_xlfn.AGGREGATE(3,5,$B$3:B184) -> 3 | B184: ='فصل شيفت'!A190 -> كسكسي بلبن ومكسرات | C184: ='فصل شيفت'!E190 -> 0
A185: =_xlfn.AGGREGATE(3,5,$B$3:B185) -> 3 | B185: ='فصل شيفت'!A191 -> بسبوسة بين نارين بالقشطة | C185: ='فصل شيفت'!E191 -> 0
A186: =_xlfn.AGGREGATE(3,5,$B$3:B186) -> 3 | B186: ='فصل شيفت'!A192 -> زلابيا | C186: ='فصل شيفت'!E192 -> 0
A187: =_xlfn.AGGREGATE(3,5,$B$3:B187) -> 3 | B187: ='فصل شيفت'!A193 -> زلابيا ص | C187: ='فصل شيفت'!E193 -> 0
A188: =_xlfn.AGGREGATE(3,5,$B$3:B188) -> 3 | B188: ='فصل شيفت'!A194 -> زلابيا ك | C188: ='فصل شيفت'!E194 -> 0
A189: =_xlfn.AGGREGATE(3,5,$B$3:B189) -> 3 | B189: ='فصل شيفت'!A195 -> فطير سادة | C189: ='فصل شيفت'!E195 -> 114
A190: =_xlfn.AGGREGATE(3,5,$B$3:B190) -> 3 | B190: ='فصل شيفت'!A196 -> فطير سكر | C190: ='فصل شيفت'!E196 -> 0
A191: =_xlfn.AGGREGATE(3,5,$B$3:B191) -> 3 | B191: ='فصل شيفت'!A197 -> فطير لوتس | C191: ='فصل شيفت'!E197 -> 0
A192: =_xlfn.AGGREGATE(3,5,$B$3:B192) -> 3 | B192: ='فصل شيفت'!A198 -> فطير نوتيلا | C192: ='فصل شيفت'!E198 -> 0
A193: =_xlfn.AGGREGATE(3,5,$B$3:B193) -> 3 | B193: ='فصل شيفت'!A199 -> فطير اوريو | C193: ='فصل شيفت'!E199 -> 0
A194: =_xlfn.AGGREGATE(3,5,$B$3:B194) -> 3 | B194: ='فصل شيفت'!A200 -> غلة بليلة سادة وزن | C194: ='فصل شيفت'!E200 -> 0
A195: =_xlfn.AGGREGATE(3,5,$B$3:B195) -> 3 | B195: ='فصل شيفت'!A201 -> بليلة مكسرات | C195: ='فصل شيفت'!E201 -> 0
A196: =_xlfn.AGGREGATE(3,5,$B$3:B196) -> 3 | B196: ='فصل شيفت'!A202 -> بليلة اسبيشيال | C196: ='فصل شيفت'!E202 -> 0
A197: =_xlfn.AGGREGATE(3,5,$B$3:B197) -> 3 | B197: ='فصل شيفت'!A203 -> بليلة سوبر اسبيشيال | C197: ='فصل شيفت'!E203 -> 0
A198: =_xlfn.AGGREGATE(3,5,$B$3:B198) -> 3 | B198: ='فصل شيفت'!A204 -> استيك ايس كريم | C198: ='فصل شيفت'!E204 -> 0
A199: =_xlfn.AGGREGATE(3,5,$B$3:B199) -> 3 | B199: ='فصل شيفت'!A205 -> بسكوت/بوله فاضي | C199: ='فصل شيفت'!E205 -> 1000
A200: =_xlfn.AGGREGATE(3,5,$B$3:B200) -> 3 | B200: ='فصل شيفت'!A206 -> بسكوته صوص ورده | C200: ='فصل شيفت'!E206 -> 0
A201: =_xlfn.AGGREGATE(3,5,$B$3:B201) -> 3 | B201: ='فصل شيفت'!A207 -> جيلى ساده | C201: ='فصل شيفت'!E207 -> 0
... 73 more rows

Sheet اذون صرف واستلام
A1: إذن حركة أصناف بضاعة
E2: نوع الإذن
A3: التاريخ : | E3: وارد
A4: مــــــــــــــــن : | E4: منصرف
A5: إلـــــــــــــــــــى :
A7: م | B7: الصنف | C7: الكمية | D7: الوحدة | E7: مـــلاحظــــــــــــــــــــــــــــــــات
A8: 1
A9: 2
A10: 3
A11: 4
A12: 5
A13: 6
A14: 7
A15: 8
A16: 9
A17: 10
A18: توقيع المحاسب | C18: توقيع السائق | E18: توقيع مدير الفرع
A20: إذن حركة أصناف بضاعة
E21: نوع الإذن
A22: التاريخ : | E22: وارد
A23: مــــــــــــــــن : | E23: منصرف
A24: إلـــــــــــــــــــى :
A26: م | B26: الصنف | C26: الكمية | D26: الوحدة | E26: مـــلاحظــــــــــــــــــــــــــــــــات
A27: 1
A28: 2
A29: 3
A30: 4
A31: 5
A32: 6
A33: 7
A34: 8
A35: 9
A36: 10
A37: توقيع المحاسب | C37: توقيع السائق | E37: توقيع مدير الفرع
A40: إذن حركة أصناف بضاعة
E41: نوع الإذن
A42: التاريخ : | E42: وارد
A43: مــــــــــــــــن : | E43: منصرف
A44: إلـــــــــــــــــــى : | E44: تحويلات
A46: م | B46: الصنف | C46: الكمية | D46: الوحدة | E46: مـــلاحظــــــــــــــــــــــــــــــــات
A47: 1
A48: 2
A49: 3
A50: 4
A51: 5
A52: 6
A53: 7
A54: 8
A55: 9
A56: 10
A57: توقيع مدير الفرع | C57: توقيع المحاسب | E57: توقيع السائق

Sheet تحويل
B1: إذن حركة أصناف بضاعة
F2: نوع الإذن
B3: التاريخ : 25 /04 /2025 | F3: وارد
B4: مــــــــــــــــن : فرع شكري القوتلي | F4: منصرف √
B5: إلـــــــــــــــــــى : الدائري
B7: م | C7: الصنف | D7: الوحدة | E7: الكمية | F7: مـــلاحظــــــــــــــــــــــــــــــــات
B8: 1 | C8: قشطات | D8: وزن | F8: تحويل من فرع شكري الي الدائري
B9: 2
B10: 3
B11: 4
B12: 5
B13: 6
B14: توقيع المحاسب | D14: توقيع السائق | F14: توقيع مدير الفرع
B15: أحمد الصواف | F15: هشام رجب
B17: إذن حركة أصناف بضاعة
F18: نوع الإذن
B19: التاريخ : 25 /04 /2025 | F19: وارد
B20: مــــــــــــــــن : فرع شكري القوتلي | F20: منصرف √
B21: إلـــــــــــــــــــى : فرع السبع بنات
B23: م | C23: الصنف | D23: الكمية | E23: الوحدة | F23: مـــلاحظــــــــــــــــــــــــــــــــات
B24: 1 | C24: جاتوه كلاسيك | D24: عدد | E24: 120 | F24: تحويل من فرع شكري القوتلي إلي المصنع
B25: 2 | C25: تورت | D25: عدد | E25: 15
B26: 3 | C26: بسبوسه ساده | D26: وزن | E26: 1.95
B27: 4
B28: 5
B29: 6
B30: توقيع المحاسب | D30: توقيع السائق | F30: توقيع مدير الفرع
B31: مصطفي عيد | F31: هشام رجب
B33: إذن حركة أصناف بضاعة
F34: نوع الإذن
B35: التاريخ : 31 /1 /2025 | F35: وارد
B36: مــــــــــــــــن : فرع شكري القوتلي | F36: منصرف √
B37: إلـــــــــــــــــــى : فرع الدائري
B39: م | C39: الصنف | D39: الكمية | E39: الوحدة | F39: مـــلاحظــــــــــــــــــــــــــــــــات
B40: 1 | C40: قراقيش سادة | E40: عدد | F40: تحويل من فرع شكري القوتلي إلي
B41: 2 | C41: باتون سالية | E41: عدد
B42: 3 | C42: كيك شاي | E42: عدد
B43: 4 | C43: سابلية | E43: عدد
B44: 5 | C44: بيتي فور | E44: عدد
B45: 6 | C45: غريبة | E45: عدد
B46: 7 | C46: كوكيز | E46: عدد
B47: 8 | C47: فطير | E47: عدد
B48: 9 | C48: قشطات | E48: وزن
B49: 10 | C49: رموش / هريسه | E49: وزن
B50: توقيع المحاسب | D50: توقيع السائق | F50: توقيع مدير الفرع
B51: أحمد الصواف | F51: محمود خضر
B53: إذن حركة أصناف بضاعة
F54: نوع الإذن
B55: التاريخ : 23 /01 //2025 | F55: وارد
B56: مــــــــــــــــن : فرع شكري القوتلي | F56: منصرف √
B57: إلـــــــــــــــــــى : فرع السبع بنات
B59: م | C59: الصنف | D59: الكمية | E59: الوحدة | F59: مـــلاحظــــــــــــــــــــــــــــــــات
B60: 1 | C60: بسكويت / بوله فاضي | D60: 300 | E60: عدد | F60: تحويل من فرع شكري القوتلي إلي فرع السبع بنات
B61: 2
B62: 3
B63: 4
B64: 5
B65: 6
B66: 7
B67: 8
B68: 9
B69: 10
B70: توقيع المحاسب | D70: توقيع السائق | F70: توقيع مدير الفرع
B71: أحمد الصواف | F71: محمود خضر
